PublisherLabel,PublisherURI,"Body name","Body","Service area","Service division","Responsible unit","Expenses type","Date","Transaction","Amount","Supplier name"
"Bracknell Forest Council","http://opendatacommunities.org/id/unitary-authority/bracknell-forest","Bracknell Forest Council","00MA","Non-School Funding","Pre-School Education","Neighbourhood Nursery","Catering Consumables",01/10/2010 00:00:00,"6428026",517.85,"3663"
"Bracknell Forest Council","http://opendatacommunities.org/id/unitary-authority/bracknell-forest","Bracknell Forest Council","00MA","Recreation, Sports and Leisure","Golf Courses","Leisure DSO - Downshire Catering","Cost of Goods Sold",01/11/2010 00:00:00,"6428134",2622.6,"3663"
"Bracknell Forest Council","http://opendatacommunities.org/id/unitary-authority/bracknell-forest","Bracknell Forest Council","00MA","Recreation, Sports and Leisure","Retail Services, Catering & Licenced","Easthampstead Park Centre - Catering","Cost of Goods Sold",01/10/2010 00:00:00,"6428173",1414.41,"3663"
"Bracknell Forest Council","http://opendatacommunities.org/id/unitary-authority/bracknell-forest","Bracknell Forest Council","00MA","Recreation, Sports and Leisure","Retail Services, Catering & Licenced","Easthampstead Park Centre - Catering","Cost of Goods Sold",01/10/2010 00:00:00,"6428173",6131.94,"3663"
"Bracknell Forest Council","http://opendatacommunities.org/id/unitary-authority/bracknell-forest","Bracknell Forest Council","00MA","Recreation, Sports and Leisure","Indoor Sports & Recreation Facilities","Coral Reef - Catering & Bar","Cost of Goods Sold",01/11/2010 00:00:00,"6428395",2244.44,"3663"
"Bracknell Forest Council","http://opendatacommunities.org/id/unitary-authority/bracknell-forest","Bracknell Forest Council","00MA","Recreation, Sports and Leisure","Indoor Sports & Recreation Facilities","Edgbarrow/Sandhurst - Catering General","Cost of Goods Sold",01/11/2010 00:00:00,"6428768",551.33,"3663"
"Bracknell Forest Council","http://opendatacommunities.org/id/unitary-authority/bracknell-forest","Bracknell Forest Council","00MA","Recreation, Sports and Leisure","Indoor Sports & Recreation Facilities","Leisure Centre - Catering General","Cost of Goods Sold",01/11/2010 00:00:00,"6428782",3475.49,"3663"
"Bracknell Forest Council","http://opendatacommunities.org/id/unitary-authority/bracknell-forest","Bracknell Forest Council","00MA","Mental Health Needs (Under 65)","Residential Care Home Placements","Residential Placements-Mental Illness","Contracted Services",23/11/2010 00:00:00,"30164247",-3256.56,"2 CARE"
"Bracknell Forest Council","http://opendatacommunities.org/id/unitary-authority/bracknell-forest","Bracknell Forest Council","00MA","Mental Health Needs (Under 65)","Residential Care Home Placements","Residential Placements-Mental Illness","Contracted Services",23/11/2010 00:00:00,"30164247",2346,"2 CARE"
"Bracknell Forest Council","http://opendatacommunities.org/id/unitary-authority/bracknell-forest","Bracknell Forest Council","00MA","Culture and Heritage","Heritage Museums & Galleries","The Look Out","R&M - Service Contracts",28/10/2010 00:00:00,"6427391",1996,"ABA (CONSTRUCTION) LTD T/A ARD PLAYGROUNDS"
"Bracknell Forest Council","http://opendatacommunities.org/id/unitary-authority/bracknell-forest","Bracknell Forest Council","00MA","Open Spaces","Community Parks & Open Spaces","Play Areas","R&M - Planned",28/10/2010 00:00:00,"6428869",1250,"ABA (CONSTRUCTION) LTD T/A ARD PLAYGROUNDS"
"Bracknell Forest Council","http://opendatacommunities.org/id/unitary-authority/bracknell-forest","Bracknell Forest Council","00MA","Service Management & Support Services","Service Management & Support Services","Departmental IT","Computer Software Maintenance",19/11/2010 00:00:00,"6429660",19246,"ABRITAS LTD"
"Bracknell Forest Council","http://opendatacommunities.org/id/unitary-authority/bracknell-forest","Bracknell Forest Council","00MA","Older People (Aged 65 or Over)","Nursing Home Placements","Nursing Home Placements-Elderly","Contracted Services",23/11/2010 00:00:00,"30164247",2203.88,"ACORN HEALTHCARE LTD T/A ACORN LODGE NURSING CARE"
"Bracknell Forest Council","http://opendatacommunities.org/id/unitary-authority/bracknell-forest","Bracknell Forest Council","00MA","Children Looked After (CLA)","Children's Homes","Children's Home Placements","Contracted Services",01/11/2010 00:00:00,"6428074",11571.3,"ACTIVE8 CARE LTD"
"Bracknell Forest Council","http://opendatacommunities.org/id/unitary-authority/bracknell-forest","Bracknell Forest Council","00MA","Recreation, Sports and Leisure","Golf Courses","Leisure DSO - Downshire Golf Shop","Cost of Goods Sold",01/10/2010 00:00:00,"6428233",984.74,"ACUSHNET LIMITED"
"Bracknell Forest Council","http://opendatacommunities.org/id/unitary-authority/bracknell-forest","Bracknell Forest Council","00MA","","","Disabled Facilities Grant","Grants Paid",23/11/2010 00:00:00,"6429710",3547.68,"ADAPTABLE BUILDING SERVICES"
"Bracknell Forest Council","http://opendatacommunities.org/id/unitary-authority/bracknell-forest","Bracknell Forest Council","00MA","","","Disabled Facilities Grant","Grants Paid",23/11/2010 00:00:00,"6429712",4715,"ADAPTABLE BUILDING SERVICES"
"Bracknell Forest Council","http://opendatacommunities.org/id/unitary-authority/bracknell-forest","Bracknell Forest Council","00MA","","","Disabled Facilities Grant","Grants Paid",23/11/2010 00:00:00,"6429715",6065,"ADAPTABLE BUILDING SERVICES"
"Bracknell Forest Council","http://opendatacommunities.org/id/unitary-authority/bracknell-forest","Bracknell Forest Council","00MA","","","Disabled Facilities Grant","Grants Paid",23/11/2010 00:00:00,"6429716",3635,"ADAPTABLE BUILDING SERVICES"
"Bracknell Forest Council","http://opendatacommunities.org/id/unitary-authority/bracknell-forest","Bracknell Forest Council","00MA","Learning Disability (under 65)","Direct Payments - LD","Direct Payments - LD","Direct Payments to Clients",09/11/2010 00:00:00,"30163587",1001.2,"REDACTED PERSONAL DATA"
"Bracknell Forest Council","http://opendatacommunities.org/id/unitary-authority/bracknell-forest","Bracknell Forest Council","00MA","Economic Development","Premises Development","Longshot Lane Industrial Estate","Consultants Fees",29/10/2010 00:00:00,"6427556",4703,"AEA TECHNOLOGY ENVIRONMENT"
"Bracknell Forest Council","http://opendatacommunities.org/id/unitary-authority/bracknell-forest","Bracknell Forest Council","00MA","Waste Disposal","Disposal of Waste","London Road Tip","Consultants Fees",29/10/2010 00:00:00,"6427837",2155,"AEA TECHNOLOGY ENVIRONMENT"
"Bracknell Forest Council","http://opendatacommunities.org/id/unitary-authority/bracknell-forest","Bracknell Forest Council","00MA","Waste Disposal","Disposal of Waste","London Road Tip","Consultants Fees",29/10/2010 00:00:00,"6427838",1219,"AEA TECHNOLOGY ENVIRONMENT"
"Bracknell Forest Council","http://opendatacommunities.org/id/unitary-authority/bracknell-forest","Bracknell Forest Council","00MA","Open Spaces","Countryside Recreation & Management","Longhill Gas Monitoring","Consultants Fees",29/10/2010 00:00:00,"6430044",2234,"AEA TECHNOLOGY ENVIRONMENT"
"Bracknell Forest Council","http://opendatacommunities.org/id/unitary-authority/bracknell-forest","Bracknell Forest Council","00MA","","","Garth Hill - Client Fees","Consultant Fees",18/10/2010 00:00:00,"6428262",7000,"AECOM"
"Bracknell Forest Council","http://opendatacommunities.org/id/unitary-authority/bracknell-forest","Bracknell Forest Council","00MA","Transport Planning, Policy & Strategy","Transport Policy, Planning & Strategy","Transportation Planning","Other Fees for Bought-in Services",28/10/2010 00:00:00,"6428799",3940,"AECOM"
"Bracknell Forest Council","http://opendatacommunities.org/id/unitary-authority/bracknell-forest","Bracknell Forest Council","00MA","Learning Disability (under 65)","Residential Care Home Placements","Residential Placements-Lrng Disab","Contracted Services",23/11/2010 00:00:00,"30164247",4760,"AFFINITY TRUST"
"Bracknell Forest Council","http://opendatacommunities.org/id/unitary-authority/bracknell-forest","Bracknell Forest Council","00MA","Learning Disability (under 65)","Residential Care Home Placements","Residential Placements-Lrng Disab","Contracted Services",23/11/2010 00:00:00,"30164247",8380,"AITCH CARE HOMES (LONDON) LTD"
"Bracknell Forest Council","http://opendatacommunities.org/id/unitary-authority/bracknell-forest","Bracknell Forest Council","00MA","Learning Disability (under 65)","Other Services to Adults With a LD","Other Care & Support-Lrng Disab","Other Support to Clients",02/06/2010 00:00:00,"6427151",3000,"ALBIN & CO SOLICITORS"
"Bracknell Forest Council","http://opendatacommunities.org/id/unitary-authority/bracknell-forest","Bracknell Forest Council","00MA","Mental Health Needs (Under 65)","Residential Care Home Placements","Residential Placements-Mental Illness","Contracted Services",23/11/2010 00:00:00,"30164247",1253.56,"ALDWICK RESIDENTIAL CARE HOME"
"Bracknell Forest Council","http://opendatacommunities.org/id/unitary-authority/bracknell-forest","Bracknell Forest Council","00MA","Recreation, Sports and Leisure","Retail Services, Catering & Licenced","Easthampstead Park Conference Centre","Cleaning materials",10/11/2010 00:00:00,"6429102",1257.62,"ALLIANCE DISPOSABLES LTD"
"Bracknell Forest Council","http://opendatacommunities.org/id/unitary-authority/bracknell-forest","Bracknell Forest Council","00MA","Physical Disability/Sensory Impairment","Assessment & Care Management","Older People & Long Term Conditions Team","Agency",01/11/2010 00:00:00,"6427741",1409.12,"ALLIED GLOBAL LTD"
"Bracknell Forest Council","http://opendatacommunities.org/id/unitary-authority/bracknell-forest","Bracknell Forest Council","00MA","Older People (Aged 65 or Over)","Home Care","LD Live-In Carers","Contracted Services",09/11/2010 00:00:00,"30163583",3185.28,"ALLIED HEALTHCARE GROUP LTD"
"Bracknell Forest Council","http://opendatacommunities.org/id/unitary-authority/bracknell-forest","Bracknell Forest Council","00MA","Older People (Aged 65 or Over)","Home Care","LD Live-In Carers","Contracted Services",09/11/2010 00:00:00,"30163583",3888.51,"ALLIED HEALTHCARE GROUP LTD"
"Bracknell Forest Council","http://opendatacommunities.org/id/unitary-authority/bracknell-forest","Bracknell Forest Council","00MA","Older People (Aged 65 or Over)","Home Care","LD Live-In Carers","Contracted Services",30/11/2010 00:00:00,"30164576",3185.28,"ALLIED HEALTHCARE GROUP LTD"
"Bracknell Forest Council","http://opendatacommunities.org/id/unitary-authority/bracknell-forest","Bracknell Forest Council","00MA","Older People (Aged 65 or Over)","Home Care","LD Live-In Carers","Contracted Services",30/11/2010 00:00:00,"30164576",3343.78,"ALLIED HEALTHCARE GROUP LTD"
"Bracknell Forest Council","http://opendatacommunities.org/id/unitary-authority/bracknell-forest","Bracknell Forest Council","00MA","Other Children's & Family Services","Leaving Care Services","QP - Care Leavers","Contracted Services",01/11/2010 00:00:00,"6429992",651,"ALMA SUPPORTED LODGINGS"
"Bracknell Forest Council","http://opendatacommunities.org/id/unitary-authority/bracknell-forest","Bracknell Forest Council","00MA","Asylum Seekers","Unaccompanied Children","Asylum Seekers (UASC)","Contracted Services",01/11/2010 00:00:00,"6429993",1798,"ALMA SUPPORTED LODGINGS"
"Bracknell Forest Council","http://opendatacommunities.org/id/unitary-authority/bracknell-forest","Bracknell Forest Council","00MA","Asylum Seekers","Unaccompanied Children","Asylum Seekers (UASC)","Contracted Services",01/11/2010 00:00:00,"6429994",1798,"ALMA SUPPORTED LODGINGS"
"Bracknell Forest Council","http://opendatacommunities.org/id/unitary-authority/bracknell-forest","Bracknell Forest Council","00MA","Asylum Seekers","Unaccompanied Children","Asylum Seekers (UASC)","Contracted Services",01/11/2010 00:00:00,"6429995",1798,"ALMA SUPPORTED LODGINGS"
"Bracknell Forest Council","http://opendatacommunities.org/id/unitary-authority/bracknell-forest","Bracknell Forest Council","00MA","Vehicles &  Plant","Vehicles and Plant Summary Account","Vehicles and Plant","Operating Lease Charge",01/11/2010 00:00:00,"6429301",534.99,"ALPHABET (GB) LTD"
"Bracknell Forest Council","http://opendatacommunities.org/id/unitary-authority/bracknell-forest","Bracknell Forest Council","00MA","","","Crown Wood Primary","Construction - Other Direct Expenses",12/08/2010 00:00:00,"6424736",10031.6,"ALS GROUP LTD"
"Bracknell Forest Council","http://opendatacommunities.org/id/unitary-authority/bracknell-forest","Bracknell Forest Council","00MA","Older People (Aged 65 or Over)","Residential Care Home Placements","Residential Placements-Elderly","Contracted Services",23/11/2010 00:00:00,"30164247",1699.12,"AMBERBROOK MANAGEMENT LTD"
"Bracknell Forest Council","http://opendatacommunities.org/id/unitary-authority/bracknell-forest","Bracknell Forest Council","00MA","Older People (Aged 65 or Over)","Residential Care Home Placements","Residential Placements-Elderly","Contracted Services",23/11/2010 00:00:00,"30164247",1819.12,"AMBERBROOK MANAGEMENT LTD"
"Bracknell Forest Council","http://opendatacommunities.org/id/unitary-authority/bracknell-forest","Bracknell Forest Council","00MA","Older People (Aged 65 or Over)","Residential Care Home Placements","Residential Placements-Elderly","Contracted Services",23/11/2010 00:00:00,"30164247",1923.68,"AMBERBROOK MANAGEMENT LTD"
"Bracknell Forest Council","http://opendatacommunities.org/id/unitary-authority/bracknell-forest","Bracknell Forest Council","00MA","Older People (Aged 65 or Over)","Residential Care Home Placements","Residential Placements-Elderly","Contracted Services",23/11/2010 00:00:00,"30164247",1923.68,"AMBERBROOK MANAGEMENT LTD"
"Bracknell Forest Council","http://opendatacommunities.org/id/unitary-authority/bracknell-forest","Bracknell Forest Council","00MA","Older People (Aged 65 or Over)","Residential Care Home Placements","Residential Placements-Elderly","Contracted Services",23/11/2010 00:00:00,"30164247",1923.68,"AMBERBROOK MANAGEMENT LTD"
"Bracknell Forest Council","http://opendatacommunities.org/id/unitary-authority/bracknell-forest","Bracknell Forest Council","00MA","Older People (Aged 65 or Over)","Residential Care Home Placements","Residential Placements-Elderly","Contracted Services",23/11/2010 00:00:00,"30164247",1923.68,"AMBERBROOK MANAGEMENT LTD"
"Bracknell Forest Council","http://opendatacommunities.org/id/unitary-authority/bracknell-forest","Bracknell Forest Council","00MA","Older People (Aged 65 or Over)","Residential Care Home Placements","Residential Placements-Elderly","Contracted Services",23/11/2010 00:00:00,"30164247",1923.68,"AMBERBROOK MANAGEMENT LTD"
"Bracknell Forest Council","http://opendatacommunities.org/id/unitary-authority/bracknell-forest","Bracknell Forest Council","00MA","Older People (Aged 65 or Over)","Nursing Home Placements","Nursing Home Placements-Elderly","Contracted Services",23/11/2010 00:00:00,"30164247",2348.88,"AMBERBROOK MANAGEMENT LTD"
"Bracknell Forest Council","http://opendatacommunities.org/id/unitary-authority/bracknell-forest","Bracknell Forest Council","00MA","Older People (Aged 65 or Over)","Nursing Home Placements","Nursing Home Placements-Elderly","Contracted Services",23/11/2010 00:00:00,"30164247",2358.48,"AMBERBROOK MANAGEMENT LTD"
"Bracknell Forest Council","http://opendatacommunities.org/id/unitary-authority/bracknell-forest","Bracknell Forest Council","00MA","Older People (Aged 65 or Over)","Nursing Home Placements","Nursing Home Placements-Elderly","Contracted Services",23/11/2010 00:00:00,"30164247",2358.48,"AMBERBROOK MANAGEMENT LTD"
"Bracknell Forest Council","http://opendatacommunities.org/id/unitary-authority/bracknell-forest","Bracknell Forest Council","00MA","Older People (Aged 65 or Over)","Nursing Home Placements","Nursing Home Placements-Elderly","Contracted Services",23/11/2010 00:00:00,"30164247",2402.32,"AMBERBROOK MANAGEMENT LTD"
"Bracknell Forest Council","http://opendatacommunities.org/id/unitary-authority/bracknell-forest","Bracknell Forest Council","00MA","Older People (Aged 65 or Over)","Nursing Home Placements","Nursing Home Placements-Elderly","Contracted Services",23/11/2010 00:00:00,"30164247",2564.8,"AMBERBROOK MANAGEMENT LTD"
"Bracknell Forest Council","http://opendatacommunities.org/id/unitary-authority/bracknell-forest","Bracknell Forest Council","00MA","Older People (Aged 65 or Over)","Nursing Home Placements","Nursing Home Placements-Elderly","Contracted Services",23/11/2010 00:00:00,"30164247",2638.68,"AMBERBROOK MANAGEMENT LTD"
"Bracknell Forest Council","http://opendatacommunities.org/id/unitary-authority/bracknell-forest","Bracknell Forest Council","00MA","Older People (Aged 65 or Over)","Residential Care Home Placements","Residential Placements-Elderly","Contracted Services",23/11/2010 00:00:00,"30164247",2768.27,"AMBERBROOK MANAGEMENT LTD"
"Bracknell Forest Council","http://opendatacommunities.org/id/unitary-authority/bracknell-forest","Bracknell Forest Council","00MA","Culture and Heritage","Heritage Museums & Galleries","The Look Out","Office Stationery",01/12/2010 00:00:00,"30164696",49.5,"BANNER"
"Bracknell Forest Council","http://opendatacommunities.org/id/unitary-authority/bracknell-forest","Bracknell Forest Council","00MA","Central Support Services - COF","Information Technology","Information Technology - Management","Office Stationery",01/12/2010 00:00:00,"30164696",49.6,"BANNER"
"Bracknell Forest Council","http://opendatacommunities.org/id/unitary-authority/bracknell-forest","Bracknell Forest Council","00MA","Education Management & Support Service","Performance & Resources","Reception & Office Services","Office Stationery",01/12/2010 00:00:00,"30164696",50.34,"BANNER"
"Bracknell Forest Council","http://opendatacommunities.org/id/unitary-authority/bracknell-forest","Bracknell Forest Council","00MA","Older People (Aged 65 or Over)","Assessment & Care Management","Emergency Duty Team (Out of Hours Serv)","Office Stationery",01/12/2010 00:00:00,"30164696",50.76,"BANNER"
"Bracknell Forest Council","http://opendatacommunities.org/id/unitary-authority/bracknell-forest","Bracknell Forest Council","00MA","Holding Accounts in Budget Book COF","Corporate Serv - Reprographics & Printing","Reprographics & Printing","Office Stationery",01/12/2010 00:00:00,"30164696",51.04,"BANNER"
"Bracknell Forest Council","http://opendatacommunities.org/id/unitary-authority/bracknell-forest","Bracknell Forest Council","00MA","Registration of Electors","Registration of Electors","Electoral Registration","Office Stationery",01/12/2010 00:00:00,"30164696",52.34,"BANNER"
"Bracknell Forest Council","http://opendatacommunities.org/id/unitary-authority/bracknell-forest","Bracknell Forest Council","00MA","Central Support Services - COF","Valuers","Property Services","Office Stationery",01/12/2010 00:00:00,"30164696",52.4,"BANNER"
"Bracknell Forest Council","http://opendatacommunities.org/id/unitary-authority/bracknell-forest","Bracknell Forest Council","00MA","Learning Disability (under 65)","Assessment & Care Management","Learning Disability Team","Office Stationery",01/12/2010 00:00:00,"30164696",54.16,"BANNER"
"Bracknell Forest Council","http://opendatacommunities.org/id/unitary-authority/bracknell-forest","Bracknell Forest Council","00MA","Central Support Services - COF","Valuers","Property Services","Office Stationery",01/12/2010 00:00:00,"30164696",54.16,"BANNER"
"Bracknell Forest Council","http://opendatacommunities.org/id/unitary-authority/bracknell-forest","Bracknell Forest Council","00MA","Family Support Services","Family Centres","Family Centre Running Costs","Office Stationery",01/12/2010 00:00:00,"30164696",54.16,"BANNER"
"Bracknell Forest Council","http://opendatacommunities.org/id/unitary-authority/bracknell-forest","Bracknell Forest Council","00MA","Central Support Services - COF","Finance","Finance Departmental Administration","Office Stationery",01/12/2010 00:00:00,"30164696",54.16,"BANNER"
"Bracknell Forest Council","http://opendatacommunities.org/id/unitary-authority/bracknell-forest","Bracknell Forest Council","00MA","Education Management & Support Service","Education Department - Other","South East Grid for Learning","Office Stationery",01/12/2010 00:00:00,"30164696",54.21,"BANNER"
"Bracknell Forest Council","http://opendatacommunities.org/id/unitary-authority/bracknell-forest","Bracknell Forest Council","00MA","Central Support Services - COF","Information Technology","Information Technology - Management","Office Stationery",01/12/2010 00:00:00,"30164696",54.85,"BANNER"
"Bracknell Forest Council","http://opendatacommunities.org/id/unitary-authority/bracknell-forest","Bracknell Forest Council","00MA","Central Support Services - COF","Information Technology","Information Technology - Management","Office Stationery",01/12/2010 00:00:00,"30164696",54.85,"BANNER"
"Bracknell Forest Council","http://opendatacommunities.org/id/unitary-authority/bracknell-forest","Bracknell Forest Council","00MA","Support Services & Management Costs","Management and Administration","Head of Service -Adults","Office Stationery",01/12/2010 00:00:00,"30164696",59.7,"BANNER"
"Bracknell Forest Council","http://opendatacommunities.org/id/unitary-authority/bracknell-forest","Bracknell Forest Council","00MA","Older People (Aged 65 or Over)","Residential Care Home Placements","Residential Placements-Elderly","Contracted Services",23/11/2010 00:00:00,"30164247",3641.25,"AMBERBROOK MANAGEMENT LTD"
"Bracknell Forest Council","http://opendatacommunities.org/id/unitary-authority/bracknell-forest","Bracknell Forest Council","00MA","Older People (Aged 65 or Over)","Nursing Home Placements","Nursing Home Placements-Elderly","Contracted Services",23/11/2010 00:00:00,"30164247",4997.16,"AMBERBROOK MANAGEMENT LTD"
"Bracknell Forest Council","http://opendatacommunities.org/id/unitary-authority/bracknell-forest","Bracknell Forest Council","00MA","Older People (Aged 65 or Over)","Nursing Home Placements","Nursing Home Placements-Elderly","Contracted Services",23/11/2010 00:00:00,"30164247",5160.24,"AMBERBROOK MANAGEMENT LTD"
"Bracknell Forest Council","http://opendatacommunities.org/id/unitary-authority/bracknell-forest","Bracknell Forest Council","00MA","Older People (Aged 65 or Over)","Nursing Home Placements","Nursing Home Placements-Elderly","Contracted Services",23/11/2010 00:00:00,"30164247",8858.43,"AMBERBROOK MANAGEMENT LTD"
"Bracknell Forest Council","http://opendatacommunities.org/id/unitary-authority/bracknell-forest","Bracknell Forest Council","00MA","Older People (Aged 65 or Over)","Residential Care Home Placements","Elderly  Respite Care","Contracted Services",30/11/2010 00:00:00,"30164576",755.74,"AMBERBROOK MANAGEMENT LTD"
"Bracknell Forest Council","http://opendatacommunities.org/id/unitary-authority/bracknell-forest","Bracknell Forest Council","00MA","","","Sandy Lane Primary","IT Software",22/10/2010 00:00:00,"6427564",1848,"AMI EDUCATION SOLUTIONS LTD"
"Bracknell Forest Council","http://opendatacommunities.org/id/unitary-authority/bracknell-forest","Bracknell Forest Council","00MA","Education Management & Support Service","Performance & Resources","Information Technology - Section","Computer Software",22/10/2010 00:00:00,"6427565",920,"AMI EDUCATION SOLUTIONS LTD"
"Bracknell Forest Council","http://opendatacommunities.org/id/unitary-authority/bracknell-forest","Bracknell Forest Council","00MA","Education Management & Support Service","School Related Expenditure","HTS Interim","Taxi Fares - Home/School Transport",31/10/2010 00:00:00,"6428140",4876.8,"AMK CHAUFFEUR DRIVE LIMITED"
"Bracknell Forest Council","http://opendatacommunities.org/id/unitary-authority/bracknell-forest","Bracknell Forest Council","00MA","Education Management & Support Service","School Related Expenditure","HTS Interim","Taxi Fares - Home/School Transport",31/10/2010 00:00:00,"6428140",4944.64,"AMK CHAUFFEUR DRIVE LIMITED"
"Bracknell Forest Council","http://opendatacommunities.org/id/unitary-authority/bracknell-forest","Bracknell Forest Council","00MA","Recreation, Sports and Leisure","Retail Services, Catering & Licenced","Easthampstead Park Centre - Catering","Cost of Goods Sold",23/10/2010 00:00:00,"6426879",1050.16,"AMS WHOLESALE"
"Bracknell Forest Council","http://opendatacommunities.org/id/unitary-authority/bracknell-forest","Bracknell Forest Council","00MA","Recreation, Sports and Leisure","Retail Services, Catering & Licenced","Easthampstead Park Centre - Catering","Cost of Goods Sold",25/10/2010 00:00:00,"6428040",1105.39,"AMS WHOLESALE"
"Bracknell Forest Council","http://opendatacommunities.org/id/unitary-authority/bracknell-forest","Bracknell Forest Council","00MA","Recreation, Sports and Leisure","Retail Services, Catering & Licenced","Easthampstead Park Centre - Catering","Cost of Goods Sold",06/11/2010 00:00:00,"6429101",896.25,"AMS WHOLESALE"
"Bracknell Forest Council","http://opendatacommunities.org/id/unitary-authority/bracknell-forest","Bracknell Forest Council","00MA","Recreation, Sports and Leisure","Retail Services, Catering & Licenced","Easthampstead Park Centre - Catering","Cost of Goods Sold",20/11/2010 00:00:00,"6429611",1193.16,"AMS WHOLESALE"
"Bracknell Forest Council","http://opendatacommunities.org/id/unitary-authority/bracknell-forest","Bracknell Forest Council","00MA","Supporting People","Supporting People","Supporting People Payments","Transfer Payments - Supporting People",25/10/2010 00:00:00,"6426634",11845.8,"ANCHOR TRUST"
"Bracknell Forest Council","http://opendatacommunities.org/id/unitary-authority/bracknell-forest","Bracknell Forest Council","00MA","","","Disabled Facilities Grant","Grants Paid",23/11/2010 00:00:00,"6429709",612,"ANCHOR TRUST"
"Bracknell Forest Council","http://opendatacommunities.org/id/unitary-authority/bracknell-forest","Bracknell Forest Council","00MA","","","Disabled Facilities Grant","Grants Paid",23/11/2010 00:00:00,"6429711",752.25,"ANCHOR TRUST"
"Bracknell Forest Council","http://opendatacommunities.org/id/unitary-authority/bracknell-forest","Bracknell Forest Council","00MA","","","Disabled Facilities Grant","Grants Paid",24/11/2010 00:00:00,"6429919",628.5,"ANCHOR TRUST"
"Bracknell Forest Council","http://opendatacommunities.org/id/unitary-authority/bracknell-forest","Bracknell Forest Council","00MA","","","Disabled Facilities Grant","Grants Paid",24/11/2010 00:00:00,"6429920",1228.5,"ANCHOR TRUST"
"Bracknell Forest Council","http://opendatacommunities.org/id/unitary-authority/bracknell-forest","Bracknell Forest Council","00MA","Older People (Aged 65 or Over)","Residential Care Home Placements","Residential Placements-Elderly","Contracted Services",23/11/2010 00:00:00,"30164247",1587.12,"ANCHOR TRUST"
"Bracknell Forest Council","http://opendatacommunities.org/id/unitary-authority/bracknell-forest","Bracknell Forest Council","00MA","Central Support Services - COF","Personnel","Training Courses","Training Costs",01/11/2010 00:00:00,"6429420",2250,"ANDERSON STOCKLEY ACCREDITED TRAINING LIMITED"
"Bracknell Forest Council","http://opendatacommunities.org/id/unitary-authority/bracknell-forest","Bracknell Forest Council","00MA","Learning Disability (under 65)","Direct Payments - LD","Direct Payments - LD","Direct Payments to Clients",09/11/2010 00:00:00,"30163587",835.32,"REDACTED PERSONAL DATA"
"Bracknell Forest Council","http://opendatacommunities.org/id/unitary-authority/bracknell-forest","Bracknell Forest Council","00MA","Older People (Aged 65 or Over)","Home Care","Elderly Live-In Carers","Contracted Services",30/11/2010 00:00:00,"30164576",557.14,"ANGEL AU PAIRS"
"Bracknell Forest Council","http://opendatacommunities.org/id/unitary-authority/bracknell-forest","Bracknell Forest Council","00MA","Older People (Aged 65 or Over)","Home Care","Home Care-Elderly","Contracted Services",04/11/2010 00:00:00,"30163427",205.2,"ANGELCARE NURSING AGENCY"
"Bracknell Forest Council","http://opendatacommunities.org/id/unitary-authority/bracknell-forest","Bracknell Forest Council","00MA","Older People (Aged 65 or Over)","Home Care","Home Care-Elderly","Contracted Services",04/11/2010 00:00:00,"30163427",223.2,"ANGELCARE NURSING AGENCY"
"Bracknell Forest Council","http://opendatacommunities.org/id/unitary-authority/bracknell-forest","Bracknell Forest Council","00MA","Older People (Aged 65 or Over)","Home Care","Home Care-Elderly","Contracted Services",04/11/2010 00:00:00,"30163427",570.6,"ANGELCARE NURSING AGENCY"
"Bracknell Forest Council","http://opendatacommunities.org/id/unitary-authority/bracknell-forest","Bracknell Forest Council","00MA","Older People (Aged 65 or Over)","Home Care","Home Care-Elderly","Contracted Services",04/11/2010 00:00:00,"30163427",1231.2,"ANGELCARE NURSING AGENCY"
"Bracknell Forest Council","http://opendatacommunities.org/id/unitary-authority/bracknell-forest","Bracknell Forest Council","00MA","Older People (Aged 65 or Over)","Home Care","Home Care-Elderly","Contracted Services",04/11/2010 00:00:00,"30163427",1641.6,"ANGELCARE NURSING AGENCY"
"Bracknell Forest Council","http://opendatacommunities.org/id/unitary-authority/bracknell-forest","Bracknell Forest Council","00MA","Older People (Aged 65 or Over)","Home Care","Home Care-Elderly","Contracted Services",04/11/2010 00:00:00,"30163427",1641.6,"ANGELCARE NURSING AGENCY"
"Bracknell Forest Council","http://opendatacommunities.org/id/unitary-authority/bracknell-forest","Bracknell Forest Council","00MA","Older People (Aged 65 or Over)","Home Care","Home Care-Elderly","Contracted Services",04/11/2010 00:00:00,"30163427",1846.8,"ANGELCARE NURSING AGENCY"
"Bracknell Forest Council","http://opendatacommunities.org/id/unitary-authority/bracknell-forest","Bracknell Forest Council","00MA","Older People (Aged 65 or Over)","Home Care","Home Care-Elderly","Contracted Services",04/11/2010 00:00:00,"30163427",2016,"ANGELCARE NURSING AGENCY"
"Bracknell Forest Council","http://opendatacommunities.org/id/unitary-authority/bracknell-forest","Bracknell Forest Council","00MA","Learning Disability (under 65)","Homecare","Supported Living (Homecare) LD","Contracted Services",30/11/2010 00:00:00,"30164576",136.8,"ANGELCARE NURSING AGENCY"
"Bracknell Forest Council","http://opendatacommunities.org/id/unitary-authority/bracknell-forest","Bracknell Forest Council","00MA","Older People (Aged 65 or Over)","Home Care","Supported Living (Homecare) LD over 65","Contracted Services",30/11/2010 00:00:00,"30164576",151.2,"ANGELCARE NURSING AGENCY"
"Bracknell Forest Council","http://opendatacommunities.org/id/unitary-authority/bracknell-forest","Bracknell Forest Council","00MA","Mental Health Needs (Under 65)","Homecare","Home Care Mental Illness","Contracted Services",30/11/2010 00:00:00,"30164576",172.8,"ANGELCARE NURSING AGENCY"
"Bracknell Forest Council","http://opendatacommunities.org/id/unitary-authority/bracknell-forest","Bracknell Forest Council","00MA","Older People (Aged 65 or Over)","Home Care","Home Care-Elderly","Contracted Services",30/11/2010 00:00:00,"30164576",259.2,"ANGELCARE NURSING AGENCY"
"Bracknell Forest Council","http://opendatacommunities.org/id/unitary-authority/bracknell-forest","Bracknell Forest Council","00MA","Older People (Aged 65 or Over)","Home Care","Home Care-Elderly","Contracted Services",30/11/2010 00:00:00,"30164576",316.8,"ANGELCARE NURSING AGENCY"
"Bracknell Forest Council","http://opendatacommunities.org/id/unitary-authority/bracknell-forest","Bracknell Forest Council","00MA","Older People (Aged 65 or Over)","Home Care","Home Care-Elderly","Contracted Services",30/11/2010 00:00:00,"30164576",421.2,"ANGELCARE NURSING AGENCY"
"Bracknell Forest Council","http://opendatacommunities.org/id/unitary-authority/bracknell-forest","Bracknell Forest Council","00MA","Older People (Aged 65 or Over)","Home Care","Home Care-Elderly","Contracted Services",30/11/2010 00:00:00,"30164576",561.6,"ANGELCARE NURSING AGENCY"
"Bracknell Forest Council","http://opendatacommunities.org/id/unitary-authority/bracknell-forest","Bracknell Forest Council","00MA","Older People (Aged 65 or Over)","Home Care","Home Care-Elderly","Contracted Services",30/11/2010 00:00:00,"30164576",612,"ANGELCARE NURSING AGENCY"
"Bracknell Forest Council","http://opendatacommunities.org/id/unitary-authority/bracknell-forest","Bracknell Forest Council","00MA","Older People (Aged 65 or Over)","Home Care","Home Care-Elderly","Contracted Services",30/11/2010 00:00:00,"30164576",1065.6,"ANGELCARE NURSING AGENCY"
"Bracknell Forest Council","http://opendatacommunities.org/id/unitary-authority/bracknell-forest","Bracknell Forest Council","00MA","Older People (Aged 65 or Over)","Home Care","Home Care-Elderly","Contracted Services",30/11/2010 00:00:00,"30164576",1512,"ANGELCARE NURSING AGENCY"
"Bracknell Forest Council","http://opendatacommunities.org/id/unitary-authority/bracknell-forest","Bracknell Forest Council","00MA","Older People (Aged 65 or Over)","Home Care","Home Care-Elderly","Contracted Services",30/11/2010 00:00:00,"30164576",1612.8,"ANGELCARE NURSING AGENCY"
"Bracknell Forest Council","http://opendatacommunities.org/id/unitary-authority/bracknell-forest","Bracknell Forest Council","00MA","Older People (Aged 65 or Over)","Home Care","Home Care-Elderly","Contracted Services",30/11/2010 00:00:00,"30164576",3427.2,"ANGELCARE NURSING AGENCY"
"Bracknell Forest Council","http://opendatacommunities.org/id/unitary-authority/bracknell-forest","Bracknell Forest Council","00MA","","","Improvements & Capitalised Repairs (Council Wide)","Construction - Contract Payments",19/10/2010 00:00:00,"6427697",23298.21,"ANGLIAN WINDOWS LIMITED"
"Bracknell Forest Council","http://opendatacommunities.org/id/unitary-authority/bracknell-forest","Bracknell Forest Council","00MA","","","Improvements & Capitalised Repairs (Council Wide)","Construction - Other Direct Expenses",16/11/2010 00:00:00,"6429700",1340.08,"ANGLIAN WINDOWS LIMITED"
"Bracknell Forest Council","http://opendatacommunities.org/id/unitary-authority/bracknell-forest","Bracknell Forest Council","00MA","Holding Accounts in Budget Book COF","Corporate Serv - Reprographics & Printing","Reprographics & Printing","Materials",05/11/2010 00:00:00,"6428549",574.96,"ANTALIS MCNAUGHTON LTD"
"Bracknell Forest Council","http://opendatacommunities.org/id/unitary-authority/bracknell-forest","Bracknell Forest Council","00MA","","","Edgbarrow Post 16","IT Software",01/11/2010 00:00:00,"6428316",2950,"ANTEON GENERAL DYNAMICS"
"Bracknell Forest Council","http://opendatacommunities.org/id/unitary-authority/bracknell-forest","Bracknell Forest Council","00MA","Recreation, Sports and Leisure","Retail Services, Catering & Licenced","Easthampstead Park Conference Centre","R&M - Reactive",17/10/2010 00:00:00,"6426846",626.53,"ARGOS BUSINESS SOLUTIONS"
"Bracknell Forest Council","http://opendatacommunities.org/id/unitary-authority/bracknell-forest","Bracknell Forest Council","00MA","Non-School Funding","Youth Services","Youth Opportunity Fund","Youth & Community Activities",17/11/2010 00:00:00,"6428932",2500,"ARTEMIS STUDIOS LTD"
"Bracknell Forest Council","http://opendatacommunities.org/id/unitary-authority/bracknell-forest","Bracknell Forest Council","00MA","","","Asbestos Management","Construction - Other Direct Expenses",29/10/2010 00:00:00,"6428463",1400,"ASBESTECH LIMITED"
"Bracknell Forest Council","http://opendatacommunities.org/id/unitary-authority/bracknell-forest","Bracknell Forest Council","00MA","","","Asbestos Management","Construction - Other Direct Expenses",29/10/2010 00:00:00,"6428464",3850,"ASBESTECH LIMITED"
"Bracknell Forest Council","http://opendatacommunities.org/id/unitary-authority/bracknell-forest","Bracknell Forest Council","00MA","","","Asbestos Management","Construction - Other Direct Expenses",29/10/2010 00:00:00,"6428473",3150,"ASBESTECH LIMITED"
"Bracknell Forest Council","http://opendatacommunities.org/id/unitary-authority/bracknell-forest","Bracknell Forest Council","00MA","Non-School Funding","Pre-School Education","SSEYCG Graduate leader Fund","Grants and Donations",08/11/2010 00:00:00,"6429025",3750,"ASCOT & CRANBOURNE PRE-SCHOOL"
"Bracknell Forest Council","http://opendatacommunities.org/id/unitary-authority/bracknell-forest","Bracknell Forest Council","00MA","Mental Health Needs (Under 65)","Nursing Home Placements","Nursing Home Placements-Mental Illness","Contracted Services",23/11/2010 00:00:00,"30164247",2500,"ASCOT NURSING HOME LTD"
"Bracknell Forest Council","http://opendatacommunities.org/id/unitary-authority/bracknell-forest","Bracknell Forest Council","00MA","Physical Disability/Sensory Impairment","Nursing Home Placements","Nursing Home Placements-Physical Disabty","Contracted Services",23/11/2010 00:00:00,"30164247",4246.48,"ASCOT NURSING HOME LTD"
"Bracknell Forest Council","http://opendatacommunities.org/id/unitary-authority/bracknell-forest","Bracknell Forest Council","00MA","Older People (Aged 65 or Over)","Nursing Home Placements","Nursing Home Placements MH 65 and Over","Contracted Services",23/11/2010 00:00:00,"30164247",7687.32,"ASCOT NURSING HOME LTD"
"Bracknell Forest Council","http://opendatacommunities.org/id/unitary-authority/bracknell-forest","Bracknell Forest Council","00MA","Older People (Aged 65 or Over)","Residential Care Home Placements","Residential Placements-Elderly","Contracted Services",23/11/2010 00:00:00,"30164247",-2197.23,"ASCOT RESIDENTIAL HOMES LTD"
"Bracknell Forest Council","http://opendatacommunities.org/id/unitary-authority/bracknell-forest","Bracknell Forest Council","00MA","Older People (Aged 65 or Over)","Nursing Home Placements","Nursing Home Placements-Elderly","Contracted Services",23/11/2010 00:00:00,"30164247",252.69,"ASCOT RESIDENTIAL HOMES LTD"
"Bracknell Forest Council","http://opendatacommunities.org/id/unitary-authority/bracknell-forest","Bracknell Forest Council","00MA","Older People (Aged 65 or Over)","Residential Care Home Placements","Residential Placements-Elderly","Contracted Services",23/11/2010 00:00:00,"30164247",1819.12,"ASCOT RESIDENTIAL HOMES LTD"
"Bracknell Forest Council","http://opendatacommunities.org/id/unitary-authority/bracknell-forest","Bracknell Forest Council","00MA","Older People (Aged 65 or Over)","Residential Care Home Placements","Residential Placements-Elderly","Contracted Services",23/11/2010 00:00:00,"30164247",1923.68,"ASCOT RESIDENTIAL HOMES LTD"
"Bracknell Forest Council","http://opendatacommunities.org/id/unitary-authority/bracknell-forest","Bracknell Forest Council","00MA","Older People (Aged 65 or Over)","Nursing Home Placements","Nursing Home Placements-Elderly","Contracted Services",23/11/2010 00:00:00,"30164247",2306.12,"ASCOT RESIDENTIAL HOMES LTD"
"Bracknell Forest Council","http://opendatacommunities.org/id/unitary-authority/bracknell-forest","Bracknell Forest Council","00MA","Older People (Aged 65 or Over)","Nursing Home Placements","Nursing Home Placements-Elderly","Contracted Services",23/11/2010 00:00:00,"30164247",2358.48,"ASCOT RESIDENTIAL HOMES LTD"
"Bracknell Forest Council","http://opendatacommunities.org/id/unitary-authority/bracknell-forest","Bracknell Forest Council","00MA","Older People (Aged 65 or Over)","Nursing Home Placements","Nursing Home Placements-Elderly","Contracted Services",23/11/2010 00:00:00,"30164247",2358.48,"ASCOT RESIDENTIAL HOMES LTD"
"Bracknell Forest Council","http://opendatacommunities.org/id/unitary-authority/bracknell-forest","Bracknell Forest Council","00MA","Older People (Aged 65 or Over)","Nursing Home Placements","Nursing Home Placements-Elderly","Contracted Services",23/11/2010 00:00:00,"30164247",2358.48,"ASCOT RESIDENTIAL HOMES LTD"
"Bracknell Forest Council","http://opendatacommunities.org/id/unitary-authority/bracknell-forest","Bracknell Forest Council","00MA","Older People (Aged 65 or Over)","Nursing Home Placements","Nursing Home Placements-Elderly","Contracted Services",23/11/2010 00:00:00,"30164247",2567.6,"ASCOT RESIDENTIAL HOMES LTD"
"Bracknell Forest Council","http://opendatacommunities.org/id/unitary-authority/bracknell-forest","Bracknell Forest Council","00MA","Older People (Aged 65 or Over)","Residential Care Home Placements","Residential Placements MH 65 and Over","Contracted Services",23/11/2010 00:00:00,"30164247",2800,"ASCOT RESIDENTIAL HOMES LTD"
"Bracknell Forest Council","http://opendatacommunities.org/id/unitary-authority/bracknell-forest","Bracknell Forest Council","00MA","Older People (Aged 65 or Over)","Nursing Home Placements","Nursing Home Placements-Elderly","Contracted Services",23/11/2010 00:00:00,"30164247",4926.08,"ASCOT RESIDENTIAL HOMES LTD"
"Bracknell Forest Council","http://opendatacommunities.org/id/unitary-authority/bracknell-forest","Bracknell Forest Council","00MA","Older People (Aged 65 or Over)","Nursing Home Placements","Nursing Home Placements-Elderly","Contracted Services",23/11/2010 00:00:00,"30164247",2336.84,"ASHBOURNE HOMES"
"Bracknell Forest Council","http://opendatacommunities.org/id/unitary-authority/bracknell-forest","Bracknell Forest Council","00MA","Older People (Aged 65 or Over)","Nursing Home Placements","Nursing Home Placements-Elderly","Contracted Services",23/11/2010 00:00:00,"30164247",2358.48,"ASHBOURNE HOMES"
"Bracknell Forest Council","http://opendatacommunities.org/id/unitary-authority/bracknell-forest","Bracknell Forest Council","00MA","Older People (Aged 65 or Over)","Nursing Home Placements","Nursing Home Placements-Elderly","Contracted Services",23/11/2010 00:00:00,"30164247",2358.48,"ASHBOURNE HOMES"
"Bracknell Forest Council","http://opendatacommunities.org/id/unitary-authority/bracknell-forest","Bracknell Forest Council","00MA","Older People (Aged 65 or Over)","Nursing Home Placements","Nursing Home Placements-Elderly","Contracted Services",23/11/2010 00:00:00,"30164247",2358.48,"ASHBOURNE HOMES"
"Bracknell Forest Council","http://opendatacommunities.org/id/unitary-authority/bracknell-forest","Bracknell Forest Council","00MA","Older People (Aged 65 or Over)","Nursing Home Placements","Nursing Home Placements-Elderly","Contracted Services",23/11/2010 00:00:00,"30164247",2358.48,"ASHBOURNE HOMES"
"Bracknell Forest Council","http://opendatacommunities.org/id/unitary-authority/bracknell-forest","Bracknell Forest Council","00MA","Older People (Aged 65 or Over)","Nursing Home Placements","Nursing Home Placements-Elderly","Contracted Services",23/11/2010 00:00:00,"30164247",2360.04,"ASHBOURNE HOMES"
"Bracknell Forest Council","http://opendatacommunities.org/id/unitary-authority/bracknell-forest","Bracknell Forest Council","00MA","Older People (Aged 65 or Over)","Nursing Home Placements","Nursing Home Placements-Elderly","Contracted Services",23/11/2010 00:00:00,"30164247",2528.88,"ASHBOURNE HOMES"
"Bracknell Forest Council","http://opendatacommunities.org/id/unitary-authority/bracknell-forest","Bracknell Forest Council","00MA","Libraries","Stock Ordering, Cataloguing & Distribution","Library Book Fund","Audio/Visual materials",25/10/2010 00:00:00,"6427299",658.76,"ASKEWS"
"Bracknell Forest Council","http://opendatacommunities.org/id/unitary-authority/bracknell-forest","Bracknell Forest Council","00MA","Libraries","Stock Ordering, Cataloguing & Distribution","Library Book Fund","Audio/Visual materials",01/11/2010 00:00:00,"6428012",809.42,"ASKEWS"
"Bracknell Forest Council","http://opendatacommunities.org/id/unitary-authority/bracknell-forest","Bracknell Forest Council","00MA","Education Management & Support Service","Education Department - Management","Management Team","Approved Conference Fees & Expenses",30/07/2010 00:00:00,"6429664",800,"ASSOC OF DIRECTORS OF CHILDREN'S SERVICES"
"Bracknell Forest Council","http://opendatacommunities.org/id/unitary-authority/bracknell-forest","Bracknell Forest Council","00MA","Structural Maintenance","Bridges","Bridges","Consultants Fees",08/10/2010 00:00:00,"6427252",3349.57,"ATKINS LTD"
"Bracknell Forest Council","http://opendatacommunities.org/id/unitary-authority/bracknell-forest","Bracknell Forest Council","00MA","Structural Maintenance","Bridges","Bridges","Consultants Fees",02/11/2010 00:00:00,"6429907",9795.04,"ATKINS LTD"
"Bracknell Forest Council","http://opendatacommunities.org/id/unitary-authority/bracknell-forest","Bracknell Forest Council","00MA","Older People (Aged 65 or Over)","Nursing Home Placements","Nursing Home Placements-Elderly","Contracted Services",23/11/2010 00:00:00,"30164247",2638.68,"ATKINSONS PRIVATE HOMES"
"Bracknell Forest Council","http://opendatacommunities.org/id/unitary-authority/bracknell-forest","Bracknell Forest Council","00MA","Older People (Aged 65 or Over)","Nursing Home Placements","Nursing Home Placements-Elderly","Contracted Services",23/11/2010 00:00:00,"30164247",2638.68,"ATKINSONS PRIVATE HOMES"
"Bracknell Forest Council","http://opendatacommunities.org/id/unitary-authority/bracknell-forest","Bracknell Forest Council","00MA","Older People (Aged 65 or Over)","Nursing Home Placements","Nursing Home Placements-Elderly","Contracted Services",23/11/2010 00:00:00,"30164247",3019.84,"ATKINSONS PRIVATE HOMES"
"Bracknell Forest Council","http://opendatacommunities.org/id/unitary-authority/bracknell-forest","Bracknell Forest Council","00MA","Learning Disability (under 65)","Residential Care Home Placements","Sec 28A - Rsdntl Plcmnts - Learning Disa","Contracted Services",23/11/2010 00:00:00,"30164247",7825.72,"ATLAS PROJECT TEAM LTD"
"Bracknell Forest Council","http://opendatacommunities.org/id/unitary-authority/bracknell-forest","Bracknell Forest Council","00MA","Learning Disability (under 65)","Residential Care Home Placements","Sec 28A - Rsdntl Plcmnts - Learning Disa","Contracted Services",23/11/2010 00:00:00,"30164247",8326.84,"ATLAS PROJECT TEAM LTD"
"Bracknell Forest Council","http://opendatacommunities.org/id/unitary-authority/bracknell-forest","Bracknell Forest Council","00MA","Education Management & Support Service","Education Department - Other","South East Grid for Learning","External Agency Services",11/11/2010 00:00:00,"6429419",13795,"ATOMWIDE"
"Bracknell Forest Council","http://opendatacommunities.org/id/unitary-authority/bracknell-forest","Bracknell Forest Council","00MA","Corporate Management COF","Corporate Management COF","Cserv. - Tax Making & Statutory Account","Statutory Auditors Fees",29/10/2010 00:00:00,"6427630",36925.5,"AUDIT COMMISSION"
"Bracknell Forest Council","http://opendatacommunities.org/id/unitary-authority/bracknell-forest","Bracknell Forest Council","00MA","Corporate Management COF","Corporate Management COF","Cserv. - Tax Making & Statutory Account","Statutory Auditors Fees",12/11/2010 00:00:00,"6428721",1825,"AUDIT COMMISSION"
"Bracknell Forest Council","http://opendatacommunities.org/id/unitary-authority/bracknell-forest","Bracknell Forest Council","00MA","Learning Disability (under 65)","Residential Care Home Placements","Residential Placements-Lrng Disab","Contracted Services",23/11/2010 00:00:00,"30164247",5260.52,"AUTISM SPECIALISED CARE HOMES LTD"
"Bracknell Forest Council","http://opendatacommunities.org/id/unitary-authority/bracknell-forest","Bracknell Forest Council","00MA","Learning Disability (under 65)","Residential Care Home Placements","Residential Placements-Lrng Disab","Contracted Services",23/11/2010 00:00:00,"30164247",6025.84,"AVON AUTISTIC FOUNDATION"
"Bracknell Forest Council","http://opendatacommunities.org/id/unitary-authority/bracknell-forest","Bracknell Forest Council","00MA","Education Management & Support Service","Performance & Resources","Information Technology - Section","Computer Software",28/10/2010 00:00:00,"6427871",710,"AVR INTERNATIONAL LIMITED"
"Bracknell Forest Council","http://opendatacommunities.org/id/unitary-authority/bracknell-forest","Bracknell Forest Council","00MA","Vehicles &  Plant","Vehicles and Plant Summary Account","Vehicles and Plant","Vehicle Repairs",15/09/2010 00:00:00,"6429295",-544,"AVS STEPS LTD"
"Bracknell Forest Council","http://opendatacommunities.org/id/unitary-authority/bracknell-forest","Bracknell Forest Council","00MA","Vehicles &  Plant","Vehicles and Plant Summary Account","Vehicles and Plant","Vehicle Repairs",06/09/2010 00:00:00,"6429355",939,"AVS STEPS LTD"
"Bracknell Forest Council","http://opendatacommunities.org/id/unitary-authority/bracknell-forest","Bracknell Forest Council","00MA","Education Management & Support Service","Education Department - Other","South East Grid for Learning","Approved Conference Fees & Expenses",21/10/2010 00:00:00,"6427950",9419.07,"BABCOCK 4S LTD"
"Bracknell Forest Council","http://opendatacommunities.org/id/unitary-authority/bracknell-forest","Bracknell Forest Council","00MA","Recreation, Sports and Leisure","Indoor Sports & Recreation Facilities","Leisure DSO - Leisure Centre","Training Costs",25/10/2010 00:00:00,"6428345",625,"BACR EDUCATION CONSORTIUM"
"Bracknell Forest Council","http://opendatacommunities.org/id/unitary-authority/bracknell-forest","Bracknell Forest Council","00MA","Street Lighting (including Energy Costs)","Street Lighting","Lighting","Contracted Services",30/10/2010 00:00:00,"6428454",56768.1,"BALFOUR BEATTY INFRASTRUCTURE SERVICES"
"Bracknell Forest Council","http://opendatacommunities.org/id/unitary-authority/bracknell-forest","Bracknell Forest Council","00MA","Support Services & Management Costs","Management and Administration","Head of Service -Adults","Office Stationery",01/12/2010 00:00:00,"30164696",-33.66,"BANNER"
"Bracknell Forest Council","http://opendatacommunities.org/id/unitary-authority/bracknell-forest","Bracknell Forest Council","00MA","Non-School Funding","Youth Services","Whitegrove Youth Centre","Office Stationery",01/12/2010 00:00:00,"30164696",-8.77,"BANNER"
"Bracknell Forest Council","http://opendatacommunities.org/id/unitary-authority/bracknell-forest","Bracknell Forest Council","00MA","Holding Accounts in Budget Book COF","Corporate Serv - Reprographics & Printing","Reprographics & Printing","Office Stationery",01/12/2010 00:00:00,"30164696",-8.73,"BANNER"
"Bracknell Forest Council","http://opendatacommunities.org/id/unitary-authority/bracknell-forest","Bracknell Forest Council","00MA","Support Services & Management Costs","Management and Administration","Head of Service -Adults","Office Stationery",01/12/2010 00:00:00,"30164696",0.11,"BANNER"
"Bracknell Forest Council","http://opendatacommunities.org/id/unitary-authority/bracknell-forest","Bracknell Forest Council","00MA","Central Support Services - COF","Finance","Finance Departmental Administration","Office Stationery",01/12/2010 00:00:00,"30164696",0.11,"BANNER"
"Bracknell Forest Council","http://opendatacommunities.org/id/unitary-authority/bracknell-forest","Bracknell Forest Council","00MA","Central Support Services - COF","Finance","Finance Departmental Administration","Office Stationery",01/12/2010 00:00:00,"30164696",0.13,"BANNER"
"Bracknell Forest Council","http://opendatacommunities.org/id/unitary-authority/bracknell-forest","Bracknell Forest Council","00MA","Learning Disability (under 65)","Assessment & Care Management","Learning Disability Team","Office Stationery",01/12/2010 00:00:00,"30164696",0.14,"BANNER"
"Bracknell Forest Council","http://opendatacommunities.org/id/unitary-authority/bracknell-forest","Bracknell Forest Council","00MA","Older People (Aged 65 or Over)","Assessment & Care Management","Emergency Duty Team (Out of Hours Serv)","Office Stationery",01/12/2010 00:00:00,"30164696",0.18,"BANNER"
"Bracknell Forest Council","http://opendatacommunities.org/id/unitary-authority/bracknell-forest","Bracknell Forest Council","00MA","Community Safety (Crime Reduction)","Community Safety","Community Safety","Office Stationery",01/12/2010 00:00:00,"30164696",0.19,"BANNER"
"Bracknell Forest Council","http://opendatacommunities.org/id/unitary-authority/bracknell-forest","Bracknell Forest Council","00MA","Learning Disability (under 65)","Assessment & Care Management","Learning Disability Team","Office Stationery",01/12/2010 00:00:00,"30164696",0.2,"BANNER"
"Bracknell Forest Council","http://opendatacommunities.org/id/unitary-authority/bracknell-forest","Bracknell Forest Council","00MA","Non-School Funding","Pre-School Education","GSSG - Extended Schools","Office Stationery",01/12/2010 00:00:00,"30164696",0.2,"BANNER"
"Bracknell Forest Council","http://opendatacommunities.org/id/unitary-authority/bracknell-forest","Bracknell Forest Council","00MA","Support Services & Management Costs","Management and Administration","Head of Service -Adults","Office Stationery",01/12/2010 00:00:00,"30164696",0.2,"BANNER"
"Bracknell Forest Council","http://opendatacommunities.org/id/unitary-authority/bracknell-forest","Bracknell Forest Council","00MA","Non-School Funding","Pre-School Education","The Oaks Children's Centre","Office Stationery",01/12/2010 00:00:00,"30164696",0.21,"BANNER"
"Bracknell Forest Council","http://opendatacommunities.org/id/unitary-authority/bracknell-forest","Bracknell Forest Council","00MA","Education Management & Support Service","Education Department - Other","Education Library Service","Office Stationery",01/12/2010 00:00:00,"30164696",0.21,"BANNER"
"Bracknell Forest Council","http://opendatacommunities.org/id/unitary-authority/bracknell-forest","Bracknell Forest Council","00MA","Central Support Services - COF","Finance","Finance Departmental Administration","Office Stationery",01/12/2010 00:00:00,"30164696",0.22,"BANNER"
"Bracknell Forest Council","http://opendatacommunities.org/id/unitary-authority/bracknell-forest","Bracknell Forest Council","00MA","Central Support Services - COF","Finance","Finance Departmental Administration","Office Stationery",01/12/2010 00:00:00,"30164696",0.22,"BANNER"
"Bracknell Forest Council","http://opendatacommunities.org/id/unitary-authority/bracknell-forest","Bracknell Forest Council","00MA","Learning Disability (under 65)","Day Care","Bracknell Day Services","Office Stationery",01/12/2010 00:00:00,"30164696",0.22,"BANNER"
"Bracknell Forest Council","http://opendatacommunities.org/id/unitary-authority/bracknell-forest","Bracknell Forest Council","00MA","Central Support Services - COF","Finance","Finance Departmental Administration","Office Stationery",01/12/2010 00:00:00,"30164696",0.26,"BANNER"
"Bracknell Forest Council","http://opendatacommunities.org/id/unitary-authority/bracknell-forest","Bracknell Forest Council","00MA","Support Services & Management Costs","Management and Administration","Head of Service -Adults","Office Stationery",01/12/2010 00:00:00,"30164696",0.28,"BANNER"
"Bracknell Forest Council","http://opendatacommunities.org/id/unitary-authority/bracknell-forest","Bracknell Forest Council","00MA","Non-School Funding","Pre-School Education","GSSG - Extended Schools","Office Stationery",01/12/2010 00:00:00,"30164696",0.28,"BANNER"
"Bracknell Forest Council","http://opendatacommunities.org/id/unitary-authority/bracknell-forest","Bracknell Forest Council","00MA","Central Support Services - COF","Finance","Finance Departmental Administration","Office Stationery",01/12/2010 00:00:00,"30164696",0.3,"BANNER"
"Bracknell Forest Council","http://opendatacommunities.org/id/unitary-authority/bracknell-forest","Bracknell Forest Council","00MA","Family Support Services","Other Family Support Services","Portman Close Running Costs","Office Stationery",01/12/2010 00:00:00,"30164696",0.34,"BANNER"
"Bracknell Forest Council","http://opendatacommunities.org/id/unitary-authority/bracknell-forest","Bracknell Forest Council","00MA","Learning Disability (under 65)","Day Care","Bracknell Day Services","Office Stationery",01/12/2010 00:00:00,"30164696",0.34,"BANNER"
"Bracknell Forest Council","http://opendatacommunities.org/id/unitary-authority/bracknell-forest","Bracknell Forest Council","00MA","Non-School Funding","Pre-School Education","The Oaks Children's Centre","Office Stationery",01/12/2010 00:00:00,"30164696",0.36,"BANNER"
"Bracknell Forest Council","http://opendatacommunities.org/id/unitary-authority/bracknell-forest","Bracknell Forest Council","00MA","Central Support Services - COF","Policy Unit","Chief Executive's Office","Office Stationery",01/12/2010 00:00:00,"30164696",0.36,"BANNER"
"Bracknell Forest Council","http://opendatacommunities.org/id/unitary-authority/bracknell-forest","Bracknell Forest Council","00MA","Education Management & Support Service","Education Department - Other","Education Library Service","Office Stationery",01/12/2010 00:00:00,"30164696",0.36,"BANNER"
"Bracknell Forest Council","http://opendatacommunities.org/id/unitary-authority/bracknell-forest","Bracknell Forest Council","00MA","Youth Justice","Youth Offender Teams","YJB Core Funding","Office Stationery",01/12/2010 00:00:00,"30164696",0.38,"BANNER"
"Bracknell Forest Council","http://opendatacommunities.org/id/unitary-authority/bracknell-forest","Bracknell Forest Council","00MA","Family Support Services","Other Family Support Services","FAST","Office Stationery",01/12/2010 00:00:00,"30164696",0.44,"BANNER"
"Bracknell Forest Council","http://opendatacommunities.org/id/unitary-authority/bracknell-forest","Bracknell Forest Council","00MA","Learning Disability (under 65)","Assessment & Care Management","Learning Disability Team","Office Stationery",01/12/2010 00:00:00,"30164696",0.44,"BANNER"
"Bracknell Forest Council","http://opendatacommunities.org/id/unitary-authority/bracknell-forest","Bracknell Forest Council","00MA","Learning Disability (under 65)","Assessment & Care Management","Learning Disability Team","Office Stationery",01/12/2010 00:00:00,"30164696",0.44,"BANNER"
"Bracknell Forest Council","http://opendatacommunities.org/id/unitary-authority/bracknell-forest","Bracknell Forest Council","00MA","Non-School Funding","Youth Services","Whitegrove Youth Centre","Office Stationery",01/12/2010 00:00:00,"30164696",0.45,"BANNER"
"Bracknell Forest Council","http://opendatacommunities.org/id/unitary-authority/bracknell-forest","Bracknell Forest Council","00MA","Service Management & Support Services","Service Management & Support Services","Departmental Office Services","Office Stationery",01/12/2010 00:00:00,"30164696",0.47,"BANNER"
"Bracknell Forest Council","http://opendatacommunities.org/id/unitary-authority/bracknell-forest","Bracknell Forest Council","00MA","Democratic Representation & Management COF","Democratic Representation & Management - COF","Committee Servicing","Office Stationery",01/12/2010 00:00:00,"30164696",0.49,"BANNER"
"Bracknell Forest Council","http://opendatacommunities.org/id/unitary-authority/bracknell-forest","Bracknell Forest Council","00MA","Service Management & Support Services","Service Management & Support Services","Departmental Office Services","Office Stationery",01/12/2010 00:00:00,"30164696",0.49,"BANNER"
"Bracknell Forest Council","http://opendatacommunities.org/id/unitary-authority/bracknell-forest","Bracknell Forest Council","00MA","Education Management & Support Service","Education Department - Other","Education Library Service","Office Stationery",01/12/2010 00:00:00,"30164696",0.49,"BANNER"
"Bracknell Forest Council","http://opendatacommunities.org/id/unitary-authority/bracknell-forest","Bracknell Forest Council","00MA","Central Support Services - COF","Policy Unit","Chief Executive's Office","Office Stationery",01/12/2010 00:00:00,"30164696",0.5,"BANNER"
"Bracknell Forest Council","http://opendatacommunities.org/id/unitary-authority/bracknell-forest","Bracknell Forest Council","00MA","Service Management & Support Services","Service Management & Support Services","Departmental Office Services","Office Stationery",01/12/2010 00:00:00,"30164696",0.51,"BANNER"
"Bracknell Forest Council","http://opendatacommunities.org/id/unitary-authority/bracknell-forest","Bracknell Forest Council","00MA","Education Management & Support Service","Education Department - Other","Education Library Service","Office Stationery",01/12/2010 00:00:00,"30164696",0.51,"BANNER"
"Bracknell Forest Council","http://opendatacommunities.org/id/unitary-authority/bracknell-forest","Bracknell Forest Council","00MA","Culture and Heritage","Heritage Museums & Galleries","The Look Out","Office Stationery",01/12/2010 00:00:00,"30164696",0.6,"BANNER"
"Bracknell Forest Council","http://opendatacommunities.org/id/unitary-authority/bracknell-forest","Bracknell Forest Council","00MA","Support Services & Management Costs","Management and Administration","Head of Service -Adults","Office Stationery",01/12/2010 00:00:00,"30164696",0.6,"BANNER"
"Bracknell Forest Council","http://opendatacommunities.org/id/unitary-authority/bracknell-forest","Bracknell Forest Council","00MA","Non-School Funding","Youth Services","Youth & Community Administration","Office Stationery",01/12/2010 00:00:00,"30164696",0.66,"BANNER"
"Bracknell Forest Council","http://opendatacommunities.org/id/unitary-authority/bracknell-forest","Bracknell Forest Council","00MA","Learning Disability (under 65)","Assessment & Care Management","Learning Disability Team","Office Stationery",01/12/2010 00:00:00,"30164696",0.7,"BANNER"
"Bracknell Forest Council","http://opendatacommunities.org/id/unitary-authority/bracknell-forest","Bracknell Forest Council","00MA","Learning Disability (under 65)","Assessment & Care Management","Learning Disability Team","Office Stationery",01/12/2010 00:00:00,"30164696",0.7,"BANNER"
"Bracknell Forest Council","http://opendatacommunities.org/id/unitary-authority/bracknell-forest","Bracknell Forest Council","00MA","Central Support Services - COF","Finance","Finance Departmental Administration","Office Stationery",01/12/2010 00:00:00,"30164696",0.7,"BANNER"
"Bracknell Forest Council","http://opendatacommunities.org/id/unitary-authority/bracknell-forest","Bracknell Forest Council","00MA","Family Support Services","Other Family Support Services","FAST","Office Stationery",01/12/2010 00:00:00,"30164696",0.73,"BANNER"
"Bracknell Forest Council","http://opendatacommunities.org/id/unitary-authority/bracknell-forest","Bracknell Forest Council","00MA","Learning Disability (under 65)","Assessment & Care Management","Learning Disability Team","Office Stationery",01/12/2010 00:00:00,"30164696",0.73,"BANNER"
"Bracknell Forest Council","http://opendatacommunities.org/id/unitary-authority/bracknell-forest","Bracknell Forest Council","00MA","Service Management & Support Services","Service Management & Support Services","Departmental Office Services","Office Stationery",01/12/2010 00:00:00,"30164696",0.73,"BANNER"
"Bracknell Forest Council","http://opendatacommunities.org/id/unitary-authority/bracknell-forest","Bracknell Forest Council","00MA","Family Support Services","Other Family Support Services","FAST","Office Stationery",01/12/2010 00:00:00,"30164696",0.74,"BANNER"
"Bracknell Forest Council","http://opendatacommunities.org/id/unitary-authority/bracknell-forest","Bracknell Forest Council","00MA","Democratic Representation & Management COF","Democratic Representation & Management - COF","Members Services","Office Stationery",01/12/2010 00:00:00,"30164696",0.76,"BANNER"
"Bracknell Forest Council","http://opendatacommunities.org/id/unitary-authority/bracknell-forest","Bracknell Forest Council","00MA","Learning Disability (under 65)","Day Care","Bracknell Day Services","Office Stationery",01/12/2010 00:00:00,"30164696",0.78,"BANNER"
"Bracknell Forest Council","http://opendatacommunities.org/id/unitary-authority/bracknell-forest","Bracknell Forest Council","00MA","Support Services & Management Costs","Management and Administration","Head of Service -Adults","Office Stationery",01/12/2010 00:00:00,"30164696",59.7,"BANNER"
"Bracknell Forest Council","http://opendatacommunities.org/id/unitary-authority/bracknell-forest","Bracknell Forest Council","00MA","Older People (Aged 65 or Over)","Residential Care Home Placements","Heathlands EPH","Office Stationery",01/12/2010 00:00:00,"30164696",62.65,"BANNER"
"Bracknell Forest Council","http://opendatacommunities.org/id/unitary-authority/bracknell-forest","Bracknell Forest Council","00MA","Older People (Aged 65 or Over)","Residential Care Home Placements","Heathlands EPH","Office Stationery",01/12/2010 00:00:00,"30164696",62.65,"BANNER"
"Bracknell Forest Council","http://opendatacommunities.org/id/unitary-authority/bracknell-forest","Bracknell Forest Council","00MA","Non-School Funding","Adult & Community Learning","Open Learning Centre - Brakenhale","Office Stationery",01/12/2010 00:00:00,"30164696",65.94,"BANNER"
"Bracknell Forest Council","http://opendatacommunities.org/id/unitary-authority/bracknell-forest","Bracknell Forest Council","00MA","Education Management & Support Service","Performance & Resources","Reception & Office Services","Office Stationery",01/12/2010 00:00:00,"30164696",65.94,"BANNER"
"Bracknell Forest Council","http://opendatacommunities.org/id/unitary-authority/bracknell-forest","Bracknell Forest Council","00MA","Education Management & Support Service","Performance & Resources","Reception & Office Services","Office Stationery",01/12/2010 00:00:00,"30164696",65.94,"BANNER"
"Bracknell Forest Council","http://opendatacommunities.org/id/unitary-authority/bracknell-forest","Bracknell Forest Council","00MA","Youth Justice","Youth Offender Teams","YJB Core Funding","Office Stationery",01/12/2010 00:00:00,"30164696",65.94,"BANNER"
"Bracknell Forest Council","http://opendatacommunities.org/id/unitary-authority/bracknell-forest","Bracknell Forest Council","00MA","Central Support Services - COF","Valuers","Property Services","Office Stationery",01/12/2010 00:00:00,"30164696",67.2,"BANNER"
"Bracknell Forest Council","http://opendatacommunities.org/id/unitary-authority/bracknell-forest","Bracknell Forest Council","00MA","Central Support Services - COF","Personnel","Personnel Services","Office Stationery",01/12/2010 00:00:00,"30164696",67.68,"BANNER"
"Bracknell Forest Council","http://opendatacommunities.org/id/unitary-authority/bracknell-forest","Bracknell Forest Council","00MA","Service Management & Support Services","Service Management & Support Services","Departmental Office Services","Office Stationery",01/12/2010 00:00:00,"30164696",67.7,"BANNER"
"Bracknell Forest Council","http://opendatacommunities.org/id/unitary-authority/bracknell-forest","Bracknell Forest Council","00MA","Service Management & Support Services","Service Management & Support Services","Departmental Office Services","Office Stationery",01/12/2010 00:00:00,"30164696",67.7,"BANNER"
"Bracknell Forest Council","http://opendatacommunities.org/id/unitary-authority/bracknell-forest","Bracknell Forest Council","00MA","Education Management & Support Service","School Related Expenditure","Education Centre","Office Stationery",01/12/2010 00:00:00,"30164696",68.94,"BANNER"
"Bracknell Forest Council","http://opendatacommunities.org/id/unitary-authority/bracknell-forest","Bracknell Forest Council","00MA","Holding Accounts in Budget Book COF","Corporate Serv - Reprographics & Printing","Reprographics & Printing","Office Stationery",01/12/2010 00:00:00,"30164696",69.52,"BANNER"
"Bracknell Forest Council","http://opendatacommunities.org/id/unitary-authority/bracknell-forest","Bracknell Forest Council","00MA","Non-School Funding","Adult & Community Learning","Open Learning Centre - Brakenhale","Office Stationery",01/12/2010 00:00:00,"30164696",69.75,"BANNER"
"Bracknell Forest Council","http://opendatacommunities.org/id/unitary-authority/bracknell-forest","Bracknell Forest Council","00MA","Education Management & Support Service","Performance & Resources","Reception & Office Services","Office Stationery",01/12/2010 00:00:00,"30164696",72.65,"BANNER"
"Bracknell Forest Council","http://opendatacommunities.org/id/unitary-authority/bracknell-forest","Bracknell Forest Council","00MA","Central Support Services - COF","Finance","Finance Departmental Administration","Office Stationery",01/12/2010 00:00:00,"30164696",73.72,"BANNER"
"Bracknell Forest Council","http://opendatacommunities.org/id/unitary-authority/bracknell-forest","Bracknell Forest Council","00MA","Central Support Services - COF","Finance","Finance Departmental Administration","Office Stationery",01/12/2010 00:00:00,"30164696",73.72,"BANNER"
"Bracknell Forest Council","http://opendatacommunities.org/id/unitary-authority/bracknell-forest","Bracknell Forest Council","00MA","Holding Accounts in Budget Book COF","Corporate Serv - Reprographics & Printing","Reprographics & Printing","Office Stationery",01/12/2010 00:00:00,"30164696",74.4,"BANNER"
"Bracknell Forest Council","http://opendatacommunities.org/id/unitary-authority/bracknell-forest","Bracknell Forest Council","00MA","Support Services & Management Costs","Management and Administration","Head of Service -Adults","Office Stationery",01/12/2010 00:00:00,"30164696",81.24,"BANNER"
"Bracknell Forest Council","http://opendatacommunities.org/id/unitary-authority/bracknell-forest","Bracknell Forest Council","00MA","Service Management & Support Services","Service Management & Support Services","Departmental Office Services","Office Stationery",01/12/2010 00:00:00,"30164696",81.24,"BANNER"
"Bracknell Forest Council","http://opendatacommunities.org/id/unitary-authority/bracknell-forest","Bracknell Forest Council","00MA","Service Management & Support Services","Service Management & Support Services","Departmental Office Services","Office Stationery",01/12/2010 00:00:00,"30164696",81.24,"BANNER"
"Bracknell Forest Council","http://opendatacommunities.org/id/unitary-authority/bracknell-forest","Bracknell Forest Council","00MA","Central Support Services - COF","Finance","Finance Departmental Administration","Office Stationery",01/12/2010 00:00:00,"30164696",81.24,"BANNER"
"Bracknell Forest Council","http://opendatacommunities.org/id/unitary-authority/bracknell-forest","Bracknell Forest Council","00MA","Culture and Heritage","Heritage Museums & Galleries","The Look Out","Office Stationery",01/12/2010 00:00:00,"30164696",84.6,"BANNER"
"Bracknell Forest Council","http://opendatacommunities.org/id/unitary-authority/bracknell-forest","Bracknell Forest Council","00MA","Education Management & Support Service","Performance & Resources","Reception & Office Services","Office Stationery",01/12/2010 00:00:00,"30164696",86.22,"BANNER"
"Bracknell Forest Council","http://opendatacommunities.org/id/unitary-authority/bracknell-forest","Bracknell Forest Council","00MA","Support Services & Management Costs","Management and Administration","Head of Service -Adults","Office Stationery",01/12/2010 00:00:00,"30164696",94.15,"BANNER"
"Bracknell Forest Council","http://opendatacommunities.org/id/unitary-authority/bracknell-forest","Bracknell Forest Council","00MA","Central Support Services - COF","Finance","Finance Departmental Administration","Office Stationery",01/12/2010 00:00:00,"30164696",94.15,"BANNER"
"Bracknell Forest Council","http://opendatacommunities.org/id/unitary-authority/bracknell-forest","Bracknell Forest Council","00MA","Service Management & Support Services","Service Management & Support Services","Departmental Office Services","Office Stationery",01/12/2010 00:00:00,"30164696",101.46,"BANNER"
"Bracknell Forest Council","http://opendatacommunities.org/id/unitary-authority/bracknell-forest","Bracknell Forest Council","00MA","Holding Accounts in Budget Book COF","Corporate Services - Office Services","Office Services - General Expenses","Office Stationery",01/12/2010 00:00:00,"30164696",108.32,"BANNER"
"Bracknell Forest Council","http://opendatacommunities.org/id/unitary-authority/bracknell-forest","Bracknell Forest Council","00MA","Central Support Services - COF","Customer Service Centre","Customer Services","Office Stationery",01/12/2010 00:00:00,"30164696",108.32,"BANNER"
"Bracknell Forest Council","http://opendatacommunities.org/id/unitary-authority/bracknell-forest","Bracknell Forest Council","00MA","Service Management & Support Services","Service Management & Support Services","Departmental Office Services","Office Stationery",01/12/2010 00:00:00,"30164696",0.78,"BANNER"
"Bracknell Forest Council","http://opendatacommunities.org/id/unitary-authority/bracknell-forest","Bracknell Forest Council","00MA","Holding Accounts in Budget Book COF","Corporate Services - Office Services","Office Services - General Expenses","Office Stationery",01/12/2010 00:00:00,"30164696",0.8,"BANNER"
"Bracknell Forest Council","http://opendatacommunities.org/id/unitary-authority/bracknell-forest","Bracknell Forest Council","00MA","Non-School Funding","Youth Services","Youth & Community Administration","Office Stationery",01/12/2010 00:00:00,"30164696",0.8,"BANNER"
"Bracknell Forest Council","http://opendatacommunities.org/id/unitary-authority/bracknell-forest","Bracknell Forest Council","00MA","Other Adult Services","Substance Abuse (Addictions)","TA Running Costs","Office Stationery",01/12/2010 00:00:00,"30164696",0.8,"BANNER"
"Bracknell Forest Council","http://opendatacommunities.org/id/unitary-authority/bracknell-forest","Bracknell Forest Council","00MA","Education Management & Support Service","Education Department - Other","Education Library Service","Office Stationery",01/12/2010 00:00:00,"30164696",0.8,"BANNER"
"Bracknell Forest Council","http://opendatacommunities.org/id/unitary-authority/bracknell-forest","Bracknell Forest Council","00MA","Non-School Funding","Youth Services","NRG","Office Stationery",01/12/2010 00:00:00,"30164696",0.82,"BANNER"
"Bracknell Forest Council","http://opendatacommunities.org/id/unitary-authority/bracknell-forest","Bracknell Forest Council","00MA","Recreation, Sports and Leisure","Dual Use Centres","Edgbarrow/Sandhurst Joint Expenses","Office Stationery",01/12/2010 00:00:00,"30164696",0.84,"BANNER"
"Bracknell Forest Council","http://opendatacommunities.org/id/unitary-authority/bracknell-forest","Bracknell Forest Council","00MA","Family Support Services","Other Family Support Services","Portman Close Running Costs","Office Stationery",01/12/2010 00:00:00,"30164696",0.87,"BANNER"
"Bracknell Forest Council","http://opendatacommunities.org/id/unitary-authority/bracknell-forest","Bracknell Forest Council","00MA","Non-School Funding","Pre-School Education","GSSG - Extended Schools","Office Stationery",01/12/2010 00:00:00,"30164696",0.87,"BANNER"
"Bracknell Forest Council","http://opendatacommunities.org/id/unitary-authority/bracknell-forest","Bracknell Forest Council","00MA","Family Support Services","Other Family Support Services","FAST","Office Stationery",01/12/2010 00:00:00,"30164696",0.9,"BANNER"
"Bracknell Forest Council","http://opendatacommunities.org/id/unitary-authority/bracknell-forest","Bracknell Forest Council","00MA","Support Services & Management Costs","Management and Administration","Head of Service -Adults","Office Stationery",01/12/2010 00:00:00,"30164696",0.91,"BANNER"
"Bracknell Forest Council","http://opendatacommunities.org/id/unitary-authority/bracknell-forest","Bracknell Forest Council","00MA","Service Management & Support Services","Service Management & Support Services","Departmental Office Services","Office Stationery",01/12/2010 00:00:00,"30164696",0.91,"BANNER"
"Bracknell Forest Council","http://opendatacommunities.org/id/unitary-authority/bracknell-forest","Bracknell Forest Council","00MA","Family Support Services","Other Family Support Services","Portman Close Running Costs","Office Stationery",01/12/2010 00:00:00,"30164696",0.91,"BANNER"
"Bracknell Forest Council","http://opendatacommunities.org/id/unitary-authority/bracknell-forest","Bracknell Forest Council","00MA","Central Support Services - COF","Finance","Finance Departmental Administration","Office Stationery",01/12/2010 00:00:00,"30164696",0.91,"BANNER"
"Bracknell Forest Council","http://opendatacommunities.org/id/unitary-authority/bracknell-forest","Bracknell Forest Council","00MA","Education Management & Support Service","Education Department - Other","Education Library Service","Office Stationery",01/12/2010 00:00:00,"30164696",0.91,"BANNER"
"Bracknell Forest Council","http://opendatacommunities.org/id/unitary-authority/bracknell-forest","Bracknell Forest Council","00MA","Service Management & Support Services","Service Management & Support Services","Departmental Office Services","Office Stationery",01/12/2010 00:00:00,"30164696",108.32,"BANNER"
"Bracknell Forest Council","http://opendatacommunities.org/id/unitary-authority/bracknell-forest","Bracknell Forest Council","00MA","Support Services & Management Costs","Management and Administration","Head of Service -Adults","Office Stationery",01/12/2010 00:00:00,"30164696",108.32,"BANNER"
"Bracknell Forest Council","http://opendatacommunities.org/id/unitary-authority/bracknell-forest","Bracknell Forest Council","00MA","Education Management & Support Service","Performance & Resources","Reception & Office Services","Office Stationery",01/12/2010 00:00:00,"30164696",109.9,"BANNER"
"Bracknell Forest Council","http://opendatacommunities.org/id/unitary-authority/bracknell-forest","Bracknell Forest Council","00MA","Education Management & Support Service","Performance & Resources","Reception & Office Services","Office Stationery",01/12/2010 00:00:00,"30164696",109.9,"BANNER"
"Bracknell Forest Council","http://opendatacommunities.org/id/unitary-authority/bracknell-forest","Bracknell Forest Council","00MA","Non-School Funding","Adult & Community Learning","Open Learning Centre - Brakenhale","Office Stationery",01/12/2010 00:00:00,"30164696",111.82,"BANNER"
"Bracknell Forest Council","http://opendatacommunities.org/id/unitary-authority/bracknell-forest","Bracknell Forest Council","00MA","Central Support Services - COF","Legal","Legal Services","Office Stationery",01/12/2010 00:00:00,"30164696",112.49,"BANNER"
"Bracknell Forest Council","http://opendatacommunities.org/id/unitary-authority/bracknell-forest","Bracknell Forest Council","00MA","Family Support Services","Other Family Support Services","Portman Close Running Costs","Office Stationery",01/12/2010 00:00:00,"30164696",112.49,"BANNER"
"Bracknell Forest Council","http://opendatacommunities.org/id/unitary-authority/bracknell-forest","Bracknell Forest Council","00MA","Recreation, Sports and Leisure","Indoor Sports & Recreation Facilities","Leisure DSO - Leisure Centre","Office Stationery",01/12/2010 00:00:00,"30164696",128.96,"BANNER"
"Bracknell Forest Council","http://opendatacommunities.org/id/unitary-authority/bracknell-forest","Bracknell Forest Council","00MA","Service Management & Support Services","Service Management & Support Services","Departmental Office Services","Office Stationery",01/12/2010 00:00:00,"30164696",135.4,"BANNER"
"Bracknell Forest Council","http://opendatacommunities.org/id/unitary-authority/bracknell-forest","Bracknell Forest Council","00MA","Childrens services-Commissioning & SW","Commissioning & Social Work","Administration Running Costs","Office Stationery",01/12/2010 00:00:00,"30164696",135.4,"BANNER"
"Bracknell Forest Council","http://opendatacommunities.org/id/unitary-authority/bracknell-forest","Bracknell Forest Council","00MA","Service Management & Support Services","Service Management & Support Services","Departmental IT","Office Stationery",01/12/2010 00:00:00,"30164696",145.3,"BANNER"
"Bracknell Forest Council","http://opendatacommunities.org/id/unitary-authority/bracknell-forest","Bracknell Forest Council","00MA","Service Management & Support Services","Service Management & Support Services","Departmental Office Services","Office Stationery",01/12/2010 00:00:00,"30164696",155.39,"BANNER"
"Bracknell Forest Council","http://opendatacommunities.org/id/unitary-authority/bracknell-forest","Bracknell Forest Council","00MA","Holding Accounts in Budget Book COF","Corporate Serv - Reprographics & Printing","Reprographics & Printing","Office Stationery",01/12/2010 00:00:00,"30164696",163,"BANNER"
"Bracknell Forest Council","http://opendatacommunities.org/id/unitary-authority/bracknell-forest","Bracknell Forest Council","00MA","Central Support Services - COF","Legal","Legal Services","Office Stationery",01/12/2010 00:00:00,"30164696",169.2,"BANNER"
"Bracknell Forest Council","http://opendatacommunities.org/id/unitary-authority/bracknell-forest","Bracknell Forest Council","00MA","Support Services & Management Costs","Management and Administration","Head of Service -Adults","Office Stationery",01/12/2010 00:00:00,"30164696",0.91,"BANNER"
"Bracknell Forest Council","http://opendatacommunities.org/id/unitary-authority/bracknell-forest","Bracknell Forest Council","00MA","Non-School Funding","Youth Services","Priestwood Youth Centre","Office Stationery",01/12/2010 00:00:00,"30164696",0.92,"BANNER"
"Bracknell Forest Council","http://opendatacommunities.org/id/unitary-authority/bracknell-forest","Bracknell Forest Council","00MA","Family Support Services","Other Family Support Services","FAST","Office Stationery",01/12/2010 00:00:00,"30164696",0.93,"BANNER"
"Bracknell Forest Council","http://opendatacommunities.org/id/unitary-authority/bracknell-forest","Bracknell Forest Council","00MA","Service Management & Support Services","Service Management & Support Services","Departmental Office Services","Office Stationery",01/12/2010 00:00:00,"30164696",0.94,"BANNER"
"Bracknell Forest Council","http://opendatacommunities.org/id/unitary-authority/bracknell-forest","Bracknell Forest Council","00MA","Non-School Funding","Youth Services","NRG","Office Stationery",01/12/2010 00:00:00,"30164696",1,"BANNER"
"Bracknell Forest Council","http://opendatacommunities.org/id/unitary-authority/bracknell-forest","Bracknell Forest Council","00MA","Service Management & Support Services","Service Management & Support Services","Departmental Office Services","Office Stationery",01/12/2010 00:00:00,"30164696",1,"BANNER"
"Bracknell Forest Council","http://opendatacommunities.org/id/unitary-authority/bracknell-forest","Bracknell Forest Council","00MA","Service Management & Support Services","Service Management & Support Services","Departmental Office Services","Office Stationery",01/12/2010 00:00:00,"30164696",1,"BANNER"
"Bracknell Forest Council","http://opendatacommunities.org/id/unitary-authority/bracknell-forest","Bracknell Forest Council","00MA","Older People (Aged 65 or Over)","Assessment & Care Management","Emergency Duty Team (Out of Hours Serv)","Office Stationery",01/12/2010 00:00:00,"30164696",1,"BANNER"
"Bracknell Forest Council","http://opendatacommunities.org/id/unitary-authority/bracknell-forest","Bracknell Forest Council","00MA","Service Management & Support Services","Service Management & Support Services","Departmental Office Services","Office Stationery",01/12/2010 00:00:00,"30164696",1.01,"BANNER"
"Bracknell Forest Council","http://opendatacommunities.org/id/unitary-authority/bracknell-forest","Bracknell Forest Council","00MA","Recreation, Sports and Leisure","Dual Use Centres","Edgbarrow/Sandhurst Joint Expenses","Office Stationery",01/12/2010 00:00:00,"30164696",1.02,"BANNER"
"Bracknell Forest Council","http://opendatacommunities.org/id/unitary-authority/bracknell-forest","Bracknell Forest Council","00MA","Older People (Aged 65 or Over)","Residential Care Home Placements","Heathlands EPH","Office Stationery",01/12/2010 00:00:00,"30164696",1.02,"BANNER"
"Bracknell Forest Council","http://opendatacommunities.org/id/unitary-authority/bracknell-forest","Bracknell Forest Council","00MA","Non-School Funding","Pre-School Education","GSSG - Extended Schools","Office Stationery",01/12/2010 00:00:00,"30164696",1.04,"BANNER"
"Bracknell Forest Council","http://opendatacommunities.org/id/unitary-authority/bracknell-forest","Bracknell Forest Council","00MA","Support Services & Management Costs","Management and Administration","Head of Service -Adults","Office Stationery",01/12/2010 00:00:00,"30164696",1.1,"BANNER"
"Bracknell Forest Council","http://opendatacommunities.org/id/unitary-authority/bracknell-forest","Bracknell Forest Council","00MA","Central Support Services - COF","Policy Unit","Chief Executive's Office","Office Stationery",01/12/2010 00:00:00,"30164696",1.13,"BANNER"
"Bracknell Forest Council","http://opendatacommunities.org/id/unitary-authority/bracknell-forest","Bracknell Forest Council","00MA","Central Support Services - COF","Personnel","Personnel Services","Office Stationery",01/12/2010 00:00:00,"30164696",1.13,"BANNER"
"Bracknell Forest Council","http://opendatacommunities.org/id/unitary-authority/bracknell-forest","Bracknell Forest Council","00MA","Service Management & Support Services","Service Management & Support Services","Departmental Office Services","Office Stationery",01/12/2010 00:00:00,"30164696",1.19,"BANNER"
"Bracknell Forest Council","http://opendatacommunities.org/id/unitary-authority/bracknell-forest","Bracknell Forest Council","00MA","Service Management & Support Services","Service Management & Support Services","Departmental Office Services","Office Stationery",01/12/2010 00:00:00,"30164696",1.2,"BANNER"
"Bracknell Forest Council","http://opendatacommunities.org/id/unitary-authority/bracknell-forest","Bracknell Forest Council","00MA","Central Support Services - COF","Finance","Finance Departmental Administration","Office Stationery",01/12/2010 00:00:00,"30164696",1.2,"BANNER"
"Bracknell Forest Council","http://opendatacommunities.org/id/unitary-authority/bracknell-forest","Bracknell Forest Council","00MA","Non-School Funding","Pre-School Education","GSSG - Extended Schools","Office Stationery",01/12/2010 00:00:00,"30164696",1.22,"BANNER"
"Bracknell Forest Council","http://opendatacommunities.org/id/unitary-authority/bracknell-forest","Bracknell Forest Council","00MA","Central Support Services - COF","Policy Unit","Chief Executive's Office","Office Stationery",01/12/2010 00:00:00,"30164696",1.24,"BANNER"
"Bracknell Forest Council","http://opendatacommunities.org/id/unitary-authority/bracknell-forest","Bracknell Forest Council","00MA","Service Management & Support Services","Service Management & Support Services","Departmental Office Services","Office Stationery",01/12/2010 00:00:00,"30164696",1.32,"BANNER"
"Bracknell Forest Council","http://opendatacommunities.org/id/unitary-authority/bracknell-forest","Bracknell Forest Council","00MA","Central Support Services - COF","Policy Unit","Chief Executive's Office","Office Stationery",01/12/2010 00:00:00,"30164696",1.34,"BANNER"
"Bracknell Forest Council","http://opendatacommunities.org/id/unitary-authority/bracknell-forest","Bracknell Forest Council","00MA","Central Support Services - COF","Policy Unit","Chief Executive's Office","Office Stationery",01/12/2010 00:00:00,"30164696",1.43,"BANNER"
"Bracknell Forest Council","http://opendatacommunities.org/id/unitary-authority/bracknell-forest","Bracknell Forest Council","00MA","Support Services & Management Costs","Management and Administration","Head of Service -Adults","Office Stationery",01/12/2010 00:00:00,"30164696",1.43,"BANNER"
"Bracknell Forest Council","http://opendatacommunities.org/id/unitary-authority/bracknell-forest","Bracknell Forest Council","00MA","Democratic Representation & Management COF","Democratic Representation & Management - COF","Committee Servicing","Office Stationery",01/12/2010 00:00:00,"30164696",1.44,"BANNER"
"Bracknell Forest Council","http://opendatacommunities.org/id/unitary-authority/bracknell-forest","Bracknell Forest Council","00MA","Service Management & Support Services","Service Management & Support Services","Departmental Office Services","Office Stationery",01/12/2010 00:00:00,"30164696",1.44,"BANNER"
"Bracknell Forest Council","http://opendatacommunities.org/id/unitary-authority/bracknell-forest","Bracknell Forest Council","00MA","Family Support Services","Other Family Support Services","Portman Close Running Costs","Office Stationery",01/12/2010 00:00:00,"30164696",1.44,"BANNER"
"Bracknell Forest Council","http://opendatacommunities.org/id/unitary-authority/bracknell-forest","Bracknell Forest Council","00MA","Non-School Funding","Pre-School Education","GSSG - Extended Schools","Office Stationery",01/12/2010 00:00:00,"30164696",1.44,"BANNER"
"Bracknell Forest Council","http://opendatacommunities.org/id/unitary-authority/bracknell-forest","Bracknell Forest Council","00MA","Central Support Services - COF","Finance","Finance Departmental Administration","Office Stationery",01/12/2010 00:00:00,"30164696",1.44,"BANNER"
"Bracknell Forest Council","http://opendatacommunities.org/id/unitary-authority/bracknell-forest","Bracknell Forest Council","00MA","Family Support Services","Other Family Support Services","FAST","Office Stationery",01/12/2010 00:00:00,"30164696",1.45,"BANNER"
"Bracknell Forest Council","http://opendatacommunities.org/id/unitary-authority/bracknell-forest","Bracknell Forest Council","00MA","Learning Disability (under 65)","Assessment & Care Management","Learning Disability Team","Office Stationery",01/12/2010 00:00:00,"30164696",1.46,"BANNER"
"Bracknell Forest Council","http://opendatacommunities.org/id/unitary-authority/bracknell-forest","Bracknell Forest Council","00MA","Non-School Funding","Youth Services","Priestwood Youth Centre","Office Stationery",01/12/2010 00:00:00,"30164696",1.46,"BANNER"
"Bracknell Forest Council","http://opendatacommunities.org/id/unitary-authority/bracknell-forest","Bracknell Forest Council","00MA","Recreation, Sports and Leisure","Dual Use Centres","Edgbarrow/Sandhurst Joint Expenses","Office Stationery",01/12/2010 00:00:00,"30164696",1.46,"BANNER"
"Bracknell Forest Council","http://opendatacommunities.org/id/unitary-authority/bracknell-forest","Bracknell Forest Council","00MA","Service Management & Support Services","Service Management & Support Services","Departmental Office Services","Office Stationery",01/12/2010 00:00:00,"30164696",1.46,"BANNER"
"Bracknell Forest Council","http://opendatacommunities.org/id/unitary-authority/bracknell-forest","Bracknell Forest Council","00MA","Non-School Funding","Youth Services","Priestwood Youth Centre","Office Stationery",01/12/2010 00:00:00,"30164696",1.48,"BANNER"
"Bracknell Forest Council","http://opendatacommunities.org/id/unitary-authority/bracknell-forest","Bracknell Forest Council","00MA","Central Support Services - COF","Policy Unit","Chief Executive's Office","Office Stationery",01/12/2010 00:00:00,"30164696",1.5,"BANNER"
"Bracknell Forest Council","http://opendatacommunities.org/id/unitary-authority/bracknell-forest","Bracknell Forest Council","00MA","Support Services & Management Costs","Management and Administration","Head of Service -Adults","Office Stationery",01/12/2010 00:00:00,"30164696",1.58,"BANNER"
"Bracknell Forest Council","http://opendatacommunities.org/id/unitary-authority/bracknell-forest","Bracknell Forest Council","00MA","Non-School Funding","Youth Services","Whitegrove Youth Centre","Office Stationery",01/12/2010 00:00:00,"30164696",1.58,"BANNER"
"Bracknell Forest Council","http://opendatacommunities.org/id/unitary-authority/bracknell-forest","Bracknell Forest Council","00MA","Non-School Funding","Youth Services","North Ascot Youth Centre","Office Stationery",01/12/2010 00:00:00,"30164696",1.58,"BANNER"
"Bracknell Forest Council","http://opendatacommunities.org/id/unitary-authority/bracknell-forest","Bracknell Forest Council","00MA","Family Support Services","Other Family Support Services","FAST","Office Stationery",01/12/2010 00:00:00,"30164696",1.6,"BANNER"
"Bracknell Forest Council","http://opendatacommunities.org/id/unitary-authority/bracknell-forest","Bracknell Forest Council","00MA","Central Support Services - COF","Personnel","Personnel Services","Office Stationery",01/12/2010 00:00:00,"30164696",1.6,"BANNER"
"Bracknell Forest Council","http://opendatacommunities.org/id/unitary-authority/bracknell-forest","Bracknell Forest Council","00MA","Recreation, Sports and Leisure","Indoor Sports & Recreation Facilities","Leisure DSO - Leisure Centre","Office Stationery",01/12/2010 00:00:00,"30164696",1.6,"BANNER"
"Bracknell Forest Council","http://opendatacommunities.org/id/unitary-authority/bracknell-forest","Bracknell Forest Council","00MA","Service Management & Support Services","Service Management & Support Services","Departmental Office Services","Office Stationery",01/12/2010 00:00:00,"30164696",1.62,"BANNER"
"Bracknell Forest Council","http://opendatacommunities.org/id/unitary-authority/bracknell-forest","Bracknell Forest Council","00MA","Family Support Services","Family Centres","Family Centre Running Costs","Office Stationery",01/12/2010 00:00:00,"30164696",1.62,"BANNER"
"Bracknell Forest Council","http://opendatacommunities.org/id/unitary-authority/bracknell-forest","Bracknell Forest Council","00MA","Recreation, Sports and Leisure","Dual Use Centres","Edgbarrow/Sandhurst Joint Expenses","Office Stationery",01/12/2010 00:00:00,"30164696",1.67,"BANNER"
"Bracknell Forest Council","http://opendatacommunities.org/id/unitary-authority/bracknell-forest","Bracknell Forest Council","00MA","Support Services & Management Costs","Management and Administration","Head of Service -Adults","Office Stationery",01/12/2010 00:00:00,"30164696",1.71,"BANNER"
"Bracknell Forest Council","http://opendatacommunities.org/id/unitary-authority/bracknell-forest","Bracknell Forest Council","00MA","Education Management & Support Service","Performance & Resources","Reception & Office Services","Office Stationery",01/12/2010 00:00:00,"30164696",1.76,"BANNER"
"Bracknell Forest Council","http://opendatacommunities.org/id/unitary-authority/bracknell-forest","Bracknell Forest Council","00MA","Recreation, Sports and Leisure","Indoor Sports & Recreation Facilities","Leisure DSO - Leisure Centre","Office Stationery",01/12/2010 00:00:00,"30164696",1.86,"BANNER"
"Bracknell Forest Council","http://opendatacommunities.org/id/unitary-authority/bracknell-forest","Bracknell Forest Council","00MA","Support Services & Management Costs","Management and Administration","Head of Service -Adults","Office Stationery",01/12/2010 00:00:00,"30164696",1.86,"BANNER"
"Bracknell Forest Council","http://opendatacommunities.org/id/unitary-authority/bracknell-forest","Bracknell Forest Council","00MA","Culture and Heritage","Heritage Museums & Galleries","The Look Out","Office Stationery",01/12/2010 00:00:00,"30164696",1.88,"BANNER"
"Bracknell Forest Council","http://opendatacommunities.org/id/unitary-authority/bracknell-forest","Bracknell Forest Council","00MA","Central Support Services - COF","Finance","Finance Departmental Administration","Office Stationery",01/12/2010 00:00:00,"30164696",1.9,"BANNER"
"Bracknell Forest Council","http://opendatacommunities.org/id/unitary-authority/bracknell-forest","Bracknell Forest Council","00MA","Support Services & Management Costs","Management and Administration","Head of Service -Adults","Office Stationery",01/12/2010 00:00:00,"30164696",1.9,"BANNER"
"Bracknell Forest Council","http://opendatacommunities.org/id/unitary-authority/bracknell-forest","Bracknell Forest Council","00MA","Service Management & Support Services","Service Management & Support Services","Departmental Office Services","Office Stationery",01/12/2010 00:00:00,"30164696",1.92,"BANNER"
"Bracknell Forest Council","http://opendatacommunities.org/id/unitary-authority/bracknell-forest","Bracknell Forest Council","00MA","Non-School Funding","Pre-School Education","GSSG - Extended Schools","Office Stationery",01/12/2010 00:00:00,"30164696",1.92,"BANNER"
"Bracknell Forest Council","http://opendatacommunities.org/id/unitary-authority/bracknell-forest","Bracknell Forest Council","00MA","Youth Justice","Youth Offender Teams","YJB Core Funding","Office Stationery",01/12/2010 00:00:00,"30164696",1.92,"BANNER"
"Bracknell Forest Council","http://opendatacommunities.org/id/unitary-authority/bracknell-forest","Bracknell Forest Council","00MA","Support Services & Management Costs","Management and Administration","Head of Service -Adults","Office Stationery",01/12/2010 00:00:00,"30164696",1.97,"BANNER"
"Bracknell Forest Council","http://opendatacommunities.org/id/unitary-authority/bracknell-forest","Bracknell Forest Council","00MA","Central Support Services - COF","Policy Unit","Chief Executive's Office","Office Stationery",01/12/2010 00:00:00,"30164696",1.97,"BANNER"
"Bracknell Forest Council","http://opendatacommunities.org/id/unitary-authority/bracknell-forest","Bracknell Forest Council","00MA","Recreation, Sports and Leisure","Dual Use Centres","Edgbarrow/Sandhurst Joint Expenses","Office Stationery",01/12/2010 00:00:00,"30164696",1.97,"BANNER"
"Bracknell Forest Council","http://opendatacommunities.org/id/unitary-authority/bracknell-forest","Bracknell Forest Council","00MA","Central Support Services - COF","Policy Unit","Chief Executive's Office","Office Stationery",01/12/2010 00:00:00,"30164696",1.98,"BANNER"
"Bracknell Forest Council","http://opendatacommunities.org/id/unitary-authority/bracknell-forest","Bracknell Forest Council","00MA","Service Management & Support Services","Service Management & Support Services","Departmental Office Services","Office Stationery",01/12/2010 00:00:00,"30164696",1.99,"BANNER"
"Bracknell Forest Council","http://opendatacommunities.org/id/unitary-authority/bracknell-forest","Bracknell Forest Council","00MA","Recreation, Sports and Leisure","Indoor Sports & Recreation Facilities","Leisure DSO - Leisure Centre","Office Stationery",01/12/2010 00:00:00,"30164696",2,"BANNER"
"Bracknell Forest Council","http://opendatacommunities.org/id/unitary-authority/bracknell-forest","Bracknell Forest Council","00MA","Recreation, Sports and Leisure","Indoor Sports & Recreation Facilities","Leisure DSO - Leisure Centre","Office Stationery",01/12/2010 00:00:00,"30164696",2.01,"BANNER"
"Bracknell Forest Council","http://opendatacommunities.org/id/unitary-authority/bracknell-forest","Bracknell Forest Council","00MA","Holding Accounts in Budget Book COF","Corporate Services - Office Services","Office Services - General Expenses","Office Stationery",01/12/2010 00:00:00,"30164696",2.04,"BANNER"
"Bracknell Forest Council","http://opendatacommunities.org/id/unitary-authority/bracknell-forest","Bracknell Forest Council","00MA","Service Management & Support Services","Service Management & Support Services","Departmental Office Services","Office Stationery",01/12/2010 00:00:00,"30164696",2.04,"BANNER"
"Bracknell Forest Council","http://opendatacommunities.org/id/unitary-authority/bracknell-forest","Bracknell Forest Council","00MA","Non-School Funding","Pre-School Education","The Willows Children's Centre","Office Stationery",01/12/2010 00:00:00,"30164696",2.08,"BANNER"
"Bracknell Forest Council","http://opendatacommunities.org/id/unitary-authority/bracknell-forest","Bracknell Forest Council","00MA","Non-School Funding","Youth Services","Priestwood Youth Centre","Office Stationery",01/12/2010 00:00:00,"30164696",2.1,"BANNER"
"Bracknell Forest Council","http://opendatacommunities.org/id/unitary-authority/bracknell-forest","Bracknell Forest Council","00MA","Support Services & Management Costs","Management and Administration","Head of Service -Adults","Office Stationery",01/12/2010 00:00:00,"30164696",2.15,"BANNER"
"Bracknell Forest Council","http://opendatacommunities.org/id/unitary-authority/bracknell-forest","Bracknell Forest Council","00MA","Older People (Aged 65 or Over)","Assessment & Care Management","Emergency Duty Team (Out of Hours Serv)","Office Stationery",01/12/2010 00:00:00,"30164696",2.17,"BANNER"
"Bracknell Forest Council","http://opendatacommunities.org/id/unitary-authority/bracknell-forest","Bracknell Forest Council","00MA","Education Management & Support Service","Performance & Resources","Reception & Office Services","Office Stationery",01/12/2010 00:00:00,"30164696",2.18,"BANNER"
"Bracknell Forest Council","http://opendatacommunities.org/id/unitary-authority/bracknell-forest","Bracknell Forest Council","00MA","Support Services & Management Costs","Management and Administration","Head of Service -Adults","Office Stationery",01/12/2010 00:00:00,"30164696",2.19,"BANNER"
"Bracknell Forest Council","http://opendatacommunities.org/id/unitary-authority/bracknell-forest","Bracknell Forest Council","00MA","Holding Accounts in Budget Book COF","Corporate Services - Office Services","Courier Service","Office Stationery",01/12/2010 00:00:00,"30164696",2.19,"BANNER"
"Bracknell Forest Council","http://opendatacommunities.org/id/unitary-authority/bracknell-forest","Bracknell Forest Council","00MA","Non-School Funding","Pre-School Education","The Willows Children's Centre","Office Stationery",01/12/2010 00:00:00,"30164696",2.22,"BANNER"
"Bracknell Forest Council","http://opendatacommunities.org/id/unitary-authority/bracknell-forest","Bracknell Forest Council","00MA","Democratic Representation & Management COF","Democratic Representation & Management - COF","Committee Servicing","Office Stationery",01/12/2010 00:00:00,"30164696",2.24,"BANNER"
"Bracknell Forest Council","http://opendatacommunities.org/id/unitary-authority/bracknell-forest","Bracknell Forest Council","00MA","Central Support Services - COF","Fleet & Workshops","Integrated Transport Unit","Office Stationery",01/12/2010 00:00:00,"30164696",2.25,"BANNER"
"Bracknell Forest Council","http://opendatacommunities.org/id/unitary-authority/bracknell-forest","Bracknell Forest Council","00MA","Non-School Funding","Pre-School Education","GSSG - Extended Schools","Office Stationery",01/12/2010 00:00:00,"30164696",2.26,"BANNER"
"Bracknell Forest Council","http://opendatacommunities.org/id/unitary-authority/bracknell-forest","Bracknell Forest Council","00MA","Central Support Services - COF","Finance","Finance Departmental Administration","Office Stationery",01/12/2010 00:00:00,"30164696",2.28,"BANNER"
"Bracknell Forest Council","http://opendatacommunities.org/id/unitary-authority/bracknell-forest","Bracknell Forest Council","00MA","Learning Disability (under 65)","Assessment & Care Management","Learning Disability Team","Office Stationery",01/12/2010 00:00:00,"30164696",2.3,"BANNER"
"Bracknell Forest Council","http://opendatacommunities.org/id/unitary-authority/bracknell-forest","Bracknell Forest Council","00MA","Family Support Services","Other Family Support Services","Portman Close Running Costs","Office Stationery",01/12/2010 00:00:00,"30164696",2.37,"BANNER"
"Bracknell Forest Council","http://opendatacommunities.org/id/unitary-authority/bracknell-forest","Bracknell Forest Council","00MA","Democratic Representation & Management COF","Democratic Representation & Management - COF","Committee Servicing","Office Stationery",01/12/2010 00:00:00,"30164696",2.38,"BANNER"
"Bracknell Forest Council","http://opendatacommunities.org/id/unitary-authority/bracknell-forest","Bracknell Forest Council","00MA","Central Support Services - COF","Finance","Finance Departmental Administration","Office Stationery",01/12/2010 00:00:00,"30164696",2.4,"BANNER"
"Bracknell Forest Council","http://opendatacommunities.org/id/unitary-authority/bracknell-forest","Bracknell Forest Council","00MA","Central Support Services - COF","Finance","Finance Departmental Administration","Office Stationery",01/12/2010 00:00:00,"30164696",2.4,"BANNER"
"Bracknell Forest Council","http://opendatacommunities.org/id/unitary-authority/bracknell-forest","Bracknell Forest Council","00MA","Older People (Aged 65 or Over)","Assessment & Care Management","Emergency Duty Team (Out of Hours Serv)","Office Stationery",01/12/2010 00:00:00,"30164696",2.46,"BANNER"
"Bracknell Forest Council","http://opendatacommunities.org/id/unitary-authority/bracknell-forest","Bracknell Forest Council","00MA","Learning Disability (under 65)","Day Care","Bracknell Day Services","Office Stationery",01/12/2010 00:00:00,"30164696",2.55,"BANNER"
"Bracknell Forest Council","http://opendatacommunities.org/id/unitary-authority/bracknell-forest","Bracknell Forest Council","00MA","Learning Disability (under 65)","Day Care","Bracknell Day Services","Office Stationery",01/12/2010 00:00:00,"30164696",2.56,"BANNER"
"Bracknell Forest Council","http://opendatacommunities.org/id/unitary-authority/bracknell-forest","Bracknell Forest Council","00MA","Central Support Services - COF","Policy Unit","Chief Executive's Office","Office Stationery",01/12/2010 00:00:00,"30164696",2.58,"BANNER"
"Bracknell Forest Council","http://opendatacommunities.org/id/unitary-authority/bracknell-forest","Bracknell Forest Council","00MA","Support Services & Management Costs","Management and Administration","Head of Service -Adults","Office Stationery",01/12/2010 00:00:00,"30164696",2.63,"BANNER"
"Bracknell Forest Council","http://opendatacommunities.org/id/unitary-authority/bracknell-forest","Bracknell Forest Council","00MA","Family Support Services","Other Family Support Services","FAST","Office Stationery",01/12/2010 00:00:00,"30164696",2.74,"BANNER"
"Bracknell Forest Council","http://opendatacommunities.org/id/unitary-authority/bracknell-forest","Bracknell Forest Council","00MA","Support Services & Management Costs","Management and Administration","Head of Service -Adults","Office Stationery",01/12/2010 00:00:00,"30164696",2.75,"BANNER"
"Bracknell Forest Council","http://opendatacommunities.org/id/unitary-authority/bracknell-forest","Bracknell Forest Council","00MA","Non-School Funding","Youth Services","NRG","Office Stationery",01/12/2010 00:00:00,"30164696",2.75,"BANNER"
"Bracknell Forest Council","http://opendatacommunities.org/id/unitary-authority/bracknell-forest","Bracknell Forest Council","00MA","Central Support Services - COF","Information Technology","Information Technology - Management","Office Stationery",01/12/2010 00:00:00,"30164696",2.75,"BANNER"
"Bracknell Forest Council","http://opendatacommunities.org/id/unitary-authority/bracknell-forest","Bracknell Forest Council","00MA","Family Support Services","Family Centres","Family Centre Running Costs","Office Stationery",01/12/2010 00:00:00,"30164696",2.8,"BANNER"
"Bracknell Forest Council","http://opendatacommunities.org/id/unitary-authority/bracknell-forest","Bracknell Forest Council","00MA","Service Management & Support Services","Service Management & Support Services","Departmental Office Services","Office Stationery",01/12/2010 00:00:00,"30164696",2.82,"BANNER"
"Bracknell Forest Council","http://opendatacommunities.org/id/unitary-authority/bracknell-forest","Bracknell Forest Council","00MA","Non-School Funding","Pre-School Education","GSSG - Extended Schools","Office Stationery",01/12/2010 00:00:00,"30164696",2.87,"BANNER"
"Bracknell Forest Council","http://opendatacommunities.org/id/unitary-authority/bracknell-forest","Bracknell Forest Council","00MA","Service Management & Support Services","Service Management & Support Services","Departmental Office Services","Office Stationery",01/12/2010 00:00:00,"30164696",2.91,"BANNER"
"Bracknell Forest Council","http://opendatacommunities.org/id/unitary-authority/bracknell-forest","Bracknell Forest Council","00MA","Central Support Services - COF","Policy Unit","Chief Executive's Office","Office Stationery",01/12/2010 00:00:00,"30164696",2.91,"BANNER"
"Bracknell Forest Council","http://opendatacommunities.org/id/unitary-authority/bracknell-forest","Bracknell Forest Council","00MA","Service Management & Support Services","Service Management & Support Services","Departmental Office Services","Office Stationery",01/12/2010 00:00:00,"30164696",2.94,"BANNER"
"Bracknell Forest Council","http://opendatacommunities.org/id/unitary-authority/bracknell-forest","Bracknell Forest Council","00MA","Support Services & Management Costs","Management and Administration","Head of Service -Adults","Office Stationery",01/12/2010 00:00:00,"30164696",3.03,"BANNER"
"Bracknell Forest Council","http://opendatacommunities.org/id/unitary-authority/bracknell-forest","Bracknell Forest Council","00MA","Community Safety (Crime Reduction)","Community Safety","Community Safety","Office Stationery",01/12/2010 00:00:00,"30164696",3.06,"BANNER"
"Bracknell Forest Council","http://opendatacommunities.org/id/unitary-authority/bracknell-forest","Bracknell Forest Council","00MA","Central Support Services - COF","Customer Service Centre","Customer Services","Office Stationery",01/12/2010 00:00:00,"30164696",3.08,"BANNER"
"Bracknell Forest Council","http://opendatacommunities.org/id/unitary-authority/bracknell-forest","Bracknell Forest Council","00MA","Central Support Services - COF","Customer Service Centre","Customer Services","Office Stationery",01/12/2010 00:00:00,"30164696",3.08,"BANNER"
"Bracknell Forest Council","http://opendatacommunities.org/id/unitary-authority/bracknell-forest","Bracknell Forest Council","00MA","Service Management & Support Services","Service Management & Support Services","Departmental Office Services","Office Stationery",01/12/2010 00:00:00,"30164696",3.1,"BANNER"
"Bracknell Forest Council","http://opendatacommunities.org/id/unitary-authority/bracknell-forest","Bracknell Forest Council","00MA","Service Management & Support Services","Service Management & Support Services","Departmental Office Services","Office Stationery",01/12/2010 00:00:00,"30164696",3.1,"BANNER"
"Bracknell Forest Council","http://opendatacommunities.org/id/unitary-authority/bracknell-forest","Bracknell Forest Council","00MA","Education Management & Support Service","Performance & Resources","Reception & Office Services","Office Stationery",01/12/2010 00:00:00,"30164696",3.1,"BANNER"
"Bracknell Forest Council","http://opendatacommunities.org/id/unitary-authority/bracknell-forest","Bracknell Forest Council","00MA","Service Management & Support Services","Service Management & Support Services","Departmental Office Services","Office Stationery",01/12/2010 00:00:00,"30164696",3.17,"BANNER"
"Bracknell Forest Council","http://opendatacommunities.org/id/unitary-authority/bracknell-forest","Bracknell Forest Council","00MA","Family Support Services","Family Centres","Family Centre Running Costs","Office Stationery",01/12/2010 00:00:00,"30164696",3.2,"BANNER"
"Bracknell Forest Council","http://opendatacommunities.org/id/unitary-authority/bracknell-forest","Bracknell Forest Council","00MA","Central Support Services - COF","Policy Unit","Chief Executive's Office","Office Stationery",01/12/2010 00:00:00,"30164696",3.21,"BANNER"
"Bracknell Forest Council","http://opendatacommunities.org/id/unitary-authority/bracknell-forest","Bracknell Forest Council","00MA","Older People (Aged 65 or Over)","Assessment & Care Management","Emergency Duty Team (Out of Hours Serv)","Office Stationery",01/12/2010 00:00:00,"30164696",3.24,"BANNER"
"Bracknell Forest Council","http://opendatacommunities.org/id/unitary-authority/bracknell-forest","Bracknell Forest Council","00MA","Recreation, Sports and Leisure","Dual Use Centres","Edgbarrow/Sandhurst Joint Expenses","Office Stationery",01/12/2010 00:00:00,"30164696",3.28,"BANNER"
"Bracknell Forest Council","http://opendatacommunities.org/id/unitary-authority/bracknell-forest","Bracknell Forest Council","00MA","Central Support Services - COF","Finance","Finance Departmental Administration","Office Stationery",01/12/2010 00:00:00,"30164696",3.29,"BANNER"
"Bracknell Forest Council","http://opendatacommunities.org/id/unitary-authority/bracknell-forest","Bracknell Forest Council","00MA","Support Services & Management Costs","Management and Administration","Head of Service -Adults","Office Stationery",01/12/2010 00:00:00,"30164696",3.34,"BANNER"
"Bracknell Forest Council","http://opendatacommunities.org/id/unitary-authority/bracknell-forest","Bracknell Forest Council","00MA","Non-School Funding","Pre-School Education","The Willows Children's Centre","Office Stationery",01/12/2010 00:00:00,"30164696",3.35,"BANNER"
"Bracknell Forest Council","http://opendatacommunities.org/id/unitary-authority/bracknell-forest","Bracknell Forest Council","00MA","Family Support Services","Other Family Support Services","Portman Close Running Costs","Office Stationery",01/12/2010 00:00:00,"30164696",3.39,"BANNER"
"Bracknell Forest Council","http://opendatacommunities.org/id/unitary-authority/bracknell-forest","Bracknell Forest Council","00MA","Democratic Representation & Management COF","Democratic Representation & Management - COF","Members Services","Office Stationery",01/12/2010 00:00:00,"30164696",3.39,"BANNER"
"Bracknell Forest Council","http://opendatacommunities.org/id/unitary-authority/bracknell-forest","Bracknell Forest Council","00MA","Support Services & Management Costs","Management and Administration","Head of Service -Adults","Office Stationery",01/12/2010 00:00:00,"30164696",3.42,"BANNER"
"Bracknell Forest Council","http://opendatacommunities.org/id/unitary-authority/bracknell-forest","Bracknell Forest Council","00MA","Service Management & Support Services","Service Management & Support Services","Departmental Office Services","Office Stationery",01/12/2010 00:00:00,"30164696",3.42,"BANNER"
"Bracknell Forest Council","http://opendatacommunities.org/id/unitary-authority/bracknell-forest","Bracknell Forest Council","00MA","Non-School Funding","Pre-School Education","GSSG - Extended Schools","Office Stationery",01/12/2010 00:00:00,"30164696",3.56,"BANNER"
"Bracknell Forest Council","http://opendatacommunities.org/id/unitary-authority/bracknell-forest","Bracknell Forest Council","00MA","Service Management & Support Services","Service Management & Support Services","Departmental Office Services","Office Stationery",01/12/2010 00:00:00,"30164696",3.62,"BANNER"
"Bracknell Forest Council","http://opendatacommunities.org/id/unitary-authority/bracknell-forest","Bracknell Forest Council","00MA","Central Support Services - COF","Policy Unit","Chief Executive's Office","Office Stationery",01/12/2010 00:00:00,"30164696",3.65,"BANNER"
"Bracknell Forest Council","http://opendatacommunities.org/id/unitary-authority/bracknell-forest","Bracknell Forest Council","00MA","Service Management & Support Services","Service Management & Support Services","Departmental Office Services","Office Stationery",01/12/2010 00:00:00,"30164696",3.7,"BANNER"
"Bracknell Forest Council","http://opendatacommunities.org/id/unitary-authority/bracknell-forest","Bracknell Forest Council","00MA","Education Management & Support Service","Performance & Resources","Reception & Office Services","Office Stationery",01/12/2010 00:00:00,"30164696",3.7,"BANNER"
"Bracknell Forest Council","http://opendatacommunities.org/id/unitary-authority/bracknell-forest","Bracknell Forest Council","00MA","Non-School Funding","Youth Services","Youth & Community Administration","Office Stationery",01/12/2010 00:00:00,"30164696",3.72,"BANNER"
"Bracknell Forest Council","http://opendatacommunities.org/id/unitary-authority/bracknell-forest","Bracknell Forest Council","00MA","Recreation, Sports and Leisure","Indoor Sports & Recreation Facilities","Leisure DSO - Leisure Centre","Office Stationery",01/12/2010 00:00:00,"30164696",3.72,"BANNER"
"Bracknell Forest Council","http://opendatacommunities.org/id/unitary-authority/bracknell-forest","Bracknell Forest Council","00MA","Recreation, Sports and Leisure","Indoor Sports & Recreation Facilities","Leisure DSO - Leisure Centre","Office Stationery",01/12/2010 00:00:00,"30164696",3.72,"BANNER"
"Bracknell Forest Council","http://opendatacommunities.org/id/unitary-authority/bracknell-forest","Bracknell Forest Council","00MA","Education Management & Support Service","Education Department - Other","South East Grid for Learning","Office Stationery",01/12/2010 00:00:00,"30164696",3.85,"BANNER"
"Bracknell Forest Council","http://opendatacommunities.org/id/unitary-authority/bracknell-forest","Bracknell Forest Council","00MA","Non-School Funding","Pre-School Education","The Willows Children's Centre","Office Stationery",01/12/2010 00:00:00,"30164696",3.87,"BANNER"
"Bracknell Forest Council","http://opendatacommunities.org/id/unitary-authority/bracknell-forest","Bracknell Forest Council","00MA","Learning Disability (under 65)","Assessment & Care Management","Learning Disability Team","Office Stationery",01/12/2010 00:00:00,"30164696",3.94,"BANNER"
"Bracknell Forest Council","http://opendatacommunities.org/id/unitary-authority/bracknell-forest","Bracknell Forest Council","00MA","Non-School Funding","Pre-School Education","GSSG - Extended Schools","Office Stationery",01/12/2010 00:00:00,"30164696",3.94,"BANNER"
"Bracknell Forest Council","http://opendatacommunities.org/id/unitary-authority/bracknell-forest","Bracknell Forest Council","00MA","Non-School Funding","Pre-School Education","GSSG - Extended Schools","Office Stationery",01/12/2010 00:00:00,"30164696",3.94,"BANNER"
"Bracknell Forest Council","http://opendatacommunities.org/id/unitary-authority/bracknell-forest","Bracknell Forest Council","00MA","Recreation, Sports and Leisure","Indoor Sports & Recreation Facilities","Leisure DSO - Leisure Centre","Office Stationery",01/12/2010 00:00:00,"30164696",4.02,"BANNER"
"Bracknell Forest Council","http://opendatacommunities.org/id/unitary-authority/bracknell-forest","Bracknell Forest Council","00MA","Family Support Services","Other Family Support Services","FAST","Office Stationery",01/12/2010 00:00:00,"30164696",4.05,"BANNER"
"Bracknell Forest Council","http://opendatacommunities.org/id/unitary-authority/bracknell-forest","Bracknell Forest Council","00MA","Learning Disability (under 65)","Assessment & Care Management","Learning Disability Team","Office Stationery",01/12/2010 00:00:00,"30164696",4.07,"BANNER"
"Bracknell Forest Council","http://opendatacommunities.org/id/unitary-authority/bracknell-forest","Bracknell Forest Council","00MA","Service Management & Support Services","Service Management & Support Services","Departmental Office Services","Office Stationery",01/12/2010 00:00:00,"30164696",4.12,"BANNER"
"Bracknell Forest Council","http://opendatacommunities.org/id/unitary-authority/bracknell-forest","Bracknell Forest Council","00MA","Service Management & Support Services","Service Management & Support Services","Departmental Office Services","Office Stationery",01/12/2010 00:00:00,"30164696",4.18,"BANNER"
"Bracknell Forest Council","http://opendatacommunities.org/id/unitary-authority/bracknell-forest","Bracknell Forest Council","00MA","Service Management & Support Services","Service Management & Support Services","Departmental Office Services","Office Stationery",01/12/2010 00:00:00,"30164696",4.18,"BANNER"
"Bracknell Forest Council","http://opendatacommunities.org/id/unitary-authority/bracknell-forest","Bracknell Forest Council","00MA","Central Support Services - COF","Finance","Finance Departmental Administration","Office Stationery",01/12/2010 00:00:00,"30164696",4.18,"BANNER"
"Bracknell Forest Council","http://opendatacommunities.org/id/unitary-authority/bracknell-forest","Bracknell Forest Council","00MA","Central Support Services - COF","Finance","Finance Departmental Administration","Office Stationery",01/12/2010 00:00:00,"30164696",4.18,"BANNER"
"Bracknell Forest Council","http://opendatacommunities.org/id/unitary-authority/bracknell-forest","Bracknell Forest Council","00MA","Recreation, Sports and Leisure","Indoor Sports & Recreation Facilities","Leisure DSO - Leisure Centre","Office Stationery",01/12/2010 00:00:00,"30164696",4.18,"BANNER"
"Bracknell Forest Council","http://opendatacommunities.org/id/unitary-authority/bracknell-forest","Bracknell Forest Council","00MA","Support Services & Management Costs","Management and Administration","Head of Service -Adults","Office Stationery",01/12/2010 00:00:00,"30164696",4.2,"BANNER"
"Bracknell Forest Council","http://opendatacommunities.org/id/unitary-authority/bracknell-forest","Bracknell Forest Council","00MA","Central Support Services - COF","Customer Service Centre","Customer Services","Office Stationery",01/12/2010 00:00:00,"30164696",4.2,"BANNER"
"Bracknell Forest Council","http://opendatacommunities.org/id/unitary-authority/bracknell-forest","Bracknell Forest Council","00MA","Service Management & Support Services","Service Management & Support Services","Departmental Office Services","Office Stationery",01/12/2010 00:00:00,"30164696",4.2,"BANNER"
"Bracknell Forest Council","http://opendatacommunities.org/id/unitary-authority/bracknell-forest","Bracknell Forest Council","00MA","Support Services & Management Costs","Management and Administration","Head of Service -Adults","Office Stationery",01/12/2010 00:00:00,"30164696",4.2,"BANNER"
"Bracknell Forest Council","http://opendatacommunities.org/id/unitary-authority/bracknell-forest","Bracknell Forest Council","00MA","Support Services & Management Costs","Management and Administration","Head of Service -Adults","Office Stationery",01/12/2010 00:00:00,"30164696",4.27,"BANNER"
"Bracknell Forest Council","http://opendatacommunities.org/id/unitary-authority/bracknell-forest","Bracknell Forest Council","00MA","Holding Accounts in Budget Book COF","Corporate Services - Office Services","Office Services - General Expenses","Office Stationery",01/12/2010 00:00:00,"30164696",4.27,"BANNER"
"Bracknell Forest Council","http://opendatacommunities.org/id/unitary-authority/bracknell-forest","Bracknell Forest Council","00MA","Recreation, Sports and Leisure","Dual Use Centres","Edgbarrow/Sandhurst Joint Expenses","Office Stationery",01/12/2010 00:00:00,"30164696",4.27,"BANNER"
"Bracknell Forest Council","http://opendatacommunities.org/id/unitary-authority/bracknell-forest","Bracknell Forest Council","00MA","Support Services & Management Costs","Management and Administration","Head of Service -Adults","Office Stationery",01/12/2010 00:00:00,"30164696",4.27,"BANNER"
"Bracknell Forest Council","http://opendatacommunities.org/id/unitary-authority/bracknell-forest","Bracknell Forest Council","00MA","Support Services & Management Costs","Management and Administration","Head of Service -Adults","Office Stationery",01/12/2010 00:00:00,"30164696",4.28,"BANNER"
"Bracknell Forest Council","http://opendatacommunities.org/id/unitary-authority/bracknell-forest","Bracknell Forest Council","00MA","Family Support Services","Other Family Support Services","FAST","Office Stationery",01/12/2010 00:00:00,"30164696",4.5,"BANNER"
"Bracknell Forest Council","http://opendatacommunities.org/id/unitary-authority/bracknell-forest","Bracknell Forest Council","00MA","Holding Accounts in Budget Book COF","Corporate Services - Office Services","Office Services - General Expenses","Office Stationery",01/12/2010 00:00:00,"30164696",4.51,"BANNER"
"Bracknell Forest Council","http://opendatacommunities.org/id/unitary-authority/bracknell-forest","Bracknell Forest Council","00MA","Service Management & Support Services","Service Management & Support Services","Departmental Office Services","Office Stationery",01/12/2010 00:00:00,"30164696",4.52,"BANNER"
"Bracknell Forest Council","http://opendatacommunities.org/id/unitary-authority/bracknell-forest","Bracknell Forest Council","00MA","Support Services & Management Costs","Management and Administration","Head of Service -Adults","Office Stationery",01/12/2010 00:00:00,"30164696",4.56,"BANNER"
"Bracknell Forest Council","http://opendatacommunities.org/id/unitary-authority/bracknell-forest","Bracknell Forest Council","00MA","Holding Accounts in Budget Book COF","Corporate Serv - Reprographics & Printing","Reprographics & Printing","Office Stationery",01/12/2010 00:00:00,"30164696",4.65,"BANNER"
"Bracknell Forest Council","http://opendatacommunities.org/id/unitary-authority/bracknell-forest","Bracknell Forest Council","00MA","Central Support Services - COF","Legal","Legal Services","Office Stationery",01/12/2010 00:00:00,"30164696",4.71,"BANNER"
"Bracknell Forest Council","http://opendatacommunities.org/id/unitary-authority/bracknell-forest","Bracknell Forest Council","00MA","Support Services & Management Costs","Management and Administration","Head of Service -Adults","Office Stationery",01/12/2010 00:00:00,"30164696",4.8,"BANNER"
"Bracknell Forest Council","http://opendatacommunities.org/id/unitary-authority/bracknell-forest","Bracknell Forest Council","00MA","Service Management & Support Services","Service Management & Support Services","Departmental Office Services","Office Stationery",01/12/2010 00:00:00,"30164696",4.83,"BANNER"
"Bracknell Forest Council","http://opendatacommunities.org/id/unitary-authority/bracknell-forest","Bracknell Forest Council","00MA","Learning Disability (under 65)","Day Care","Bracknell Day Services","Office Stationery",01/12/2010 00:00:00,"30164696",4.9,"BANNER"
"Bracknell Forest Council","http://opendatacommunities.org/id/unitary-authority/bracknell-forest","Bracknell Forest Council","00MA","Support Services & Management Costs","Management and Administration","Head of Service -Adults","Office Stationery",01/12/2010 00:00:00,"30164696",4.95,"BANNER"
"Bracknell Forest Council","http://opendatacommunities.org/id/unitary-authority/bracknell-forest","Bracknell Forest Council","00MA","Community Safety (Crime Reduction)","Community Safety","Community Safety","Office Stationery",01/12/2010 00:00:00,"30164696",4.95,"BANNER"
"Bracknell Forest Council","http://opendatacommunities.org/id/unitary-authority/bracknell-forest","Bracknell Forest Council","00MA","Support Services & Management Costs","Management and Administration","Head of Service -Adults","Office Stationery",01/12/2010 00:00:00,"30164696",4.95,"BANNER"
"Bracknell Forest Council","http://opendatacommunities.org/id/unitary-authority/bracknell-forest","Bracknell Forest Council","00MA","Support Services & Management Costs","Management and Administration","Head of Service -Adults","Office Stationery",01/12/2010 00:00:00,"30164696",4.96,"BANNER"
"Bracknell Forest Council","http://opendatacommunities.org/id/unitary-authority/bracknell-forest","Bracknell Forest Council","00MA","Service Management & Support Services","Service Management & Support Services","Departmental Office Services","Office Stationery",01/12/2010 00:00:00,"30164696",5.01,"BANNER"
"Bracknell Forest Council","http://opendatacommunities.org/id/unitary-authority/bracknell-forest","Bracknell Forest Council","00MA","Recreation, Sports and Leisure","Indoor Sports & Recreation Facilities","Leisure DSO - Leisure Centre","Office Stationery",01/12/2010 00:00:00,"30164696",5.05,"BANNER"
"Bracknell Forest Council","http://opendatacommunities.org/id/unitary-authority/bracknell-forest","Bracknell Forest Council","00MA","Older People (Aged 65 or Over)","Assessment & Care Management","Emergency Duty Team (Out of Hours Serv)","Office Stationery",01/12/2010 00:00:00,"30164696",5.06,"BANNER"
"Bracknell Forest Council","http://opendatacommunities.org/id/unitary-authority/bracknell-forest","Bracknell Forest Council","00MA","Family Support Services","Other Family Support Services","FAST","Office Stationery",01/12/2010 00:00:00,"30164696",5.14,"BANNER"
"Bracknell Forest Council","http://opendatacommunities.org/id/unitary-authority/bracknell-forest","Bracknell Forest Council","00MA","Recreation, Sports and Leisure","Indoor Sports & Recreation Facilities","Leisure DSO - Leisure Centre","Office Stationery",01/12/2010 00:00:00,"30164696",5.16,"BANNER"
"Bracknell Forest Council","http://opendatacommunities.org/id/unitary-authority/bracknell-forest","Bracknell Forest Council","00MA","Recreation, Sports and Leisure","Indoor Sports & Recreation Facilities","Leisure DSO - Leisure Centre","Office Stationery",01/12/2010 00:00:00,"30164696",5.22,"BANNER"
"Bracknell Forest Council","http://opendatacommunities.org/id/unitary-authority/bracknell-forest","Bracknell Forest Council","00MA","Holding Accounts in Budget Book COF","Corporate Services - Office Services","Office Services - General Expenses","Office Stationery",01/12/2010 00:00:00,"30164696",5.24,"BANNER"
"Bracknell Forest Council","http://opendatacommunities.org/id/unitary-authority/bracknell-forest","Bracknell Forest Council","00MA","Holding Accounts in Budget Book COF","Corporate Services - Office Services","Office Services - General Expenses","Office Stationery",01/12/2010 00:00:00,"30164696",5.24,"BANNER"
"Bracknell Forest Council","http://opendatacommunities.org/id/unitary-authority/bracknell-forest","Bracknell Forest Council","00MA","Central Support Services - COF","Valuers","Property Services","Office Stationery",01/12/2010 00:00:00,"30164696",5.26,"BANNER"
"Bracknell Forest Council","http://opendatacommunities.org/id/unitary-authority/bracknell-forest","Bracknell Forest Council","00MA","Support Services & Management Costs","Management and Administration","Head of Service -Adults","Office Stationery",01/12/2010 00:00:00,"30164696",5.34,"BANNER"
"Bracknell Forest Council","http://opendatacommunities.org/id/unitary-authority/bracknell-forest","Bracknell Forest Council","00MA","Service Management & Support Services","Service Management & Support Services","Departmental Office Services","Office Stationery",01/12/2010 00:00:00,"30164696",5.37,"BANNER"
"Bracknell Forest Council","http://opendatacommunities.org/id/unitary-authority/bracknell-forest","Bracknell Forest Council","00MA","Non-School Funding","Adult & Community Learning","Open Learning Centre - Brakenhale","Office Stationery",01/12/2010 00:00:00,"30164696",5.4,"BANNER"
"Bracknell Forest Council","http://opendatacommunities.org/id/unitary-authority/bracknell-forest","Bracknell Forest Council","00MA","Service Management & Support Services","Service Management & Support Services","Departmental Office Services","Office Stationery",01/12/2010 00:00:00,"30164696",5.68,"BANNER"
"Bracknell Forest Council","http://opendatacommunities.org/id/unitary-authority/bracknell-forest","Bracknell Forest Council","00MA","Learning Disability (under 65)","Day Care","Bracknell Day Services","Office Stationery",01/12/2010 00:00:00,"30164696",5.72,"BANNER"
"Bracknell Forest Council","http://opendatacommunities.org/id/unitary-authority/bracknell-forest","Bracknell Forest Council","00MA","Recreation, Sports and Leisure","Dual Use Centres","Edgbarrow/Sandhurst Joint Expenses","Office Stationery",01/12/2010 00:00:00,"30164696",5.74,"BANNER"
"Bracknell Forest Council","http://opendatacommunities.org/id/unitary-authority/bracknell-forest","Bracknell Forest Council","00MA","Support Services & Management Costs","Management and Administration","Head of Service -Adults","Office Stationery",01/12/2010 00:00:00,"30164696",188.3,"BANNER"
"Bracknell Forest Council","http://opendatacommunities.org/id/unitary-authority/bracknell-forest","Bracknell Forest Council","00MA","Support Services & Management Costs","Management and Administration","Head of Service -Adults","Office Stationery",01/12/2010 00:00:00,"30164696",188.3,"BANNER"
"Bracknell Forest Council","http://opendatacommunities.org/id/unitary-authority/bracknell-forest","Bracknell Forest Council","00MA","Support Services & Management Costs","Management and Administration","Head of Service -Adults","Office Stationery",01/12/2010 00:00:00,"30164696",224.98,"BANNER"
"Bracknell Forest Council","http://opendatacommunities.org/id/unitary-authority/bracknell-forest","Bracknell Forest Council","00MA","Non-School Funding","Pre-School Education","SSEYCG Management & Admin","Office Stationery",01/12/2010 00:00:00,"30164696",270.53,"BANNER"
"Bracknell Forest Council","http://opendatacommunities.org/id/unitary-authority/bracknell-forest","Bracknell Forest Council","00MA","Non-School Funding","Pre-School Education","The Rowans Children's Centre","Office Stationery",01/12/2010 00:00:00,"30164696",796.59,"BANNER"
"Bracknell Forest Council","http://opendatacommunities.org/id/unitary-authority/bracknell-forest","Bracknell Forest Council","00MA","Holding Accounts not in Budget Book - COF","RW - Insurance Claims","R/W-  Insurance Claims","Other Expenses",25/10/2010 00:00:00,"6427998",-1140,"BARLOW LYDE & GILBERT"
"Bracknell Forest Council","http://opendatacommunities.org/id/unitary-authority/bracknell-forest","Bracknell Forest Council","00MA","Holding Accounts not in Budget Book - COF","RW - Insurance Claims","R/W-  Insurance Claims","Other Expenses",25/10/2010 00:00:00,"6427998",1140,"BARLOW LYDE & GILBERT"
"Bracknell Forest Council","http://opendatacommunities.org/id/unitary-authority/bracknell-forest","Bracknell Forest Council","00MA","Holding Accounts not in Budget Book - COF","RW - Insurance Claims","R/W-  Insurance Claims","Other Expenses",24/08/2010 00:00:00,"6428004",-1265,"BARLOW LYDE & GILBERT"
"Bracknell Forest Council","http://opendatacommunities.org/id/unitary-authority/bracknell-forest","Bracknell Forest Council","00MA","Holding Accounts not in Budget Book - COF","RW - Insurance Claims","R/W-  Insurance Claims","Other Expenses",24/08/2010 00:00:00,"6428004",1265,"BARLOW LYDE & GILBERT"
"Bracknell Forest Council","http://opendatacommunities.org/id/unitary-authority/bracknell-forest","Bracknell Forest Council","00MA","Older People (Aged 65 or Over)","Residential Care Home Placements","Residntial Placemnts LD Sec28a 65 & Over","Other Support to Clients",31/10/2010 00:00:00,"6430043",3380,"BARTRAM ASSOCIATES LTD"
"Bracknell Forest Council","http://opendatacommunities.org/id/unitary-authority/bracknell-forest","Bracknell Forest Council","00MA","Regulatory Services","Animal & Public Health","Dog Control","Contracted Services",27/10/2010 00:00:00,"6427857",760,"BATTERSEA DOGS & CATS HOME"
"Bracknell Forest Council","http://opendatacommunities.org/id/unitary-authority/bracknell-forest","Bracknell Forest Council","00MA","","","Bracknell Railway Station Forecourt Improvements","Construction - Other Direct Expenses",27/10/2010 00:00:00,"6428216",3000,"BDP LIGHTING"
"Bracknell Forest Council","http://opendatacommunities.org/id/unitary-authority/bracknell-forest","Bracknell Forest Council","00MA","Older People (Aged 65 or Over)","Nursing Home Placements","Nursing Home Placements-Elderly","Contracted Services",23/11/2010 00:00:00,"30164247",1919.52,"BEAUMONT LODGE"
"Bracknell Forest Council","http://opendatacommunities.org/id/unitary-authority/bracknell-forest","Bracknell Forest Council","00MA","Physical Disability/Sensory Impairment","Nursing Home Placements","Nursing Home Placements-Physical Disabty","Contracted Services",23/11/2010 00:00:00,"30164247",2165.2,"BEAUMONT LODGE"
"Bracknell Forest Council","http://opendatacommunities.org/id/unitary-authority/bracknell-forest","Bracknell Forest Council","00MA","Older People (Aged 65 or Over)","Nursing Home Placements","Nursing Home Placements PD 65 & Over","Contracted Services",23/11/2010 00:00:00,"30164247",2362.64,"BEAUMONT LODGE"
"Bracknell Forest Council","http://opendatacommunities.org/id/unitary-authority/bracknell-forest","Bracknell Forest Council","00MA","Older People (Aged 65 or Over)","Residential Care Home Placements","Residential Placements-Elderly","Contracted Services",23/11/2010 00:00:00,"30164247",1800,"BEECHVILLE CARE HOME"
"Bracknell Forest Council","http://opendatacommunities.org/id/unitary-authority/bracknell-forest","Bracknell Forest Council","00MA","Recreation, Sports and Leisure","Indoor Sports & Recreation Facilities","Leisure DSO - Coral Reef Maintenance","R&M - Service Contracts",17/11/2010 00:00:00,"6429367",880,"BELLS ENGINEERING PRODUCTS LTD"
"Bracknell Forest Council","http://opendatacommunities.org/id/unitary-authority/bracknell-forest","Bracknell Forest Council","00MA","Learning Disability (under 65)","Direct Payments - LD","Direct Payments - LD","Client Contributions Other",09/11/2010 00:00:00,"30163587",-68.2,"REDACTED PERSONAL DATA"
"Bracknell Forest Council","http://opendatacommunities.org/id/unitary-authority/bracknell-forest","Bracknell Forest Council","00MA","Learning Disability (under 65)","Direct Payments - LD","Direct Payments - LD","Direct Payments to Clients",09/11/2010 00:00:00,"30163587",1785.44,"REDACTED PERSONAL DATA"
"Bracknell Forest Council","http://opendatacommunities.org/id/unitary-authority/bracknell-forest","Bracknell Forest Council","00MA","Older People (Aged 65 or Over)","Nursing Home Placements","Nursing Home Placements-Elderly","Contracted Services",23/11/2010 00:00:00,"30164247",1850.24,"BENEDICT HOUSE NURSING HOME"
"Bracknell Forest Council","http://opendatacommunities.org/id/unitary-authority/bracknell-forest","Bracknell Forest Council","00MA","Children Looked After (CLA)","Children's Homes","Children's Home Placements","Contracted Services",08/10/2010 00:00:00,"6429272",12320,"BENJAMIN UK LTD"
"Bracknell Forest Council","http://opendatacommunities.org/id/unitary-authority/bracknell-forest","Bracknell Forest Council","00MA","Children Looked After (CLA)","Children's Homes","Children's Home Placements","Contracted Services",08/10/2010 00:00:00,"6429273",5440,"BENJAMIN UK LTD"
"Bracknell Forest Council","http://opendatacommunities.org/id/unitary-authority/bracknell-forest","Bracknell Forest Council","00MA","","","Improvements & Capitalised Repairs (Council Wide)","Construction - Contract Payments",07/10/2010 00:00:00,"6427167",2750,"BENVILLE AND MARSH LTD"
"Bracknell Forest Council","http://opendatacommunities.org/id/unitary-authority/bracknell-forest","Bracknell Forest Council","00MA","","","Improvements & Capitalised Repairs (Council Wide)","Construction - Contract Payments",19/10/2010 00:00:00,"6427168",1820,"BENVILLE AND MARSH LTD"
"Bracknell Forest Council","http://opendatacommunities.org/id/unitary-authority/bracknell-forest","Bracknell Forest Council","00MA","","","Improvements & Capitalised Repairs (Council Wide)","Construction - Contract Payments",19/10/2010 00:00:00,"6427169",820,"BENVILLE AND MARSH LTD"
"Bracknell Forest Council","http://opendatacommunities.org/id/unitary-authority/bracknell-forest","Bracknell Forest Council","00MA","Recreation, Sports and Leisure","Indoor Sports & Recreation Facilities","Leisure DSO - Leisure Centre","R&M - Service Contracts",20/10/2010 00:00:00,"6427253",695.6,"BERKS EXTINGUISHER SERVICE"
"Bracknell Forest Council","http://opendatacommunities.org/id/unitary-authority/bracknell-forest","Bracknell Forest Council","00MA","Other Adult Services","Substance Abuse (Addictions)","CMHT Joint Post","Contracted Services",27/10/2010 00:00:00,"6427542",511.25,"BERKS HEALTHCARE NHS FOUNDATION TRUST"
"Bracknell Forest Council","http://opendatacommunities.org/id/unitary-authority/bracknell-forest","Bracknell Forest Council","00MA","Mental Health Needs (Under 65)","Assessment & Care Management","(CMHT) Mental Illness Team","Rent of Property",27/10/2010 00:00:00,"6427543",2488,"BERKS HEALTHCARE NHS FOUNDATION TRUST"
"Bracknell Forest Council","http://opendatacommunities.org/id/unitary-authority/bracknell-forest","Bracknell Forest Council","00MA","Service Management & Support Services","Service Management & Support Services","Departmental Office Services","Office Stationery",01/12/2010 00:00:00,"30164696",5.76,"BANNER"
"Bracknell Forest Council","http://opendatacommunities.org/id/unitary-authority/bracknell-forest","Bracknell Forest Council","00MA","Central Support Services - COF","Policy Unit","Chief Executive's Office","Office Stationery",01/12/2010 00:00:00,"30164696",5.78,"BANNER"
"Bracknell Forest Council","http://opendatacommunities.org/id/unitary-authority/bracknell-forest","Bracknell Forest Council","00MA","Non-School Funding","Pre-School Education","The Oaks Children's Centre","Office Stationery",01/12/2010 00:00:00,"30164696",5.88,"BANNER"
"Bracknell Forest Council","http://opendatacommunities.org/id/unitary-authority/bracknell-forest","Bracknell Forest Council","00MA","Recreation, Sports and Leisure","Dual Use Centres","Edgbarrow/Sandhurst Joint Expenses","Office Stationery",01/12/2010 00:00:00,"30164696",5.9,"BANNER"
"Bracknell Forest Council","http://opendatacommunities.org/id/unitary-authority/bracknell-forest","Bracknell Forest Council","00MA","Learning Disability (under 65)","Day Care","Bracknell Day Services","Office Stationery",01/12/2010 00:00:00,"30164696",5.91,"BANNER"
"Bracknell Forest Council","http://opendatacommunities.org/id/unitary-authority/bracknell-forest","Bracknell Forest Council","00MA","Learning Disability (under 65)","Day Care","Bracknell Day Services","Office Stationery",01/12/2010 00:00:00,"30164696",5.91,"BANNER"
"Bracknell Forest Council","http://opendatacommunities.org/id/unitary-authority/bracknell-forest","Bracknell Forest Council","00MA","Older People (Aged 65 or Over)","Assessment & Care Management","Emergency Duty Team (Out of Hours Serv)","Office Stationery",01/12/2010 00:00:00,"30164696",5.97,"BANNER"
"Bracknell Forest Council","http://opendatacommunities.org/id/unitary-authority/bracknell-forest","Bracknell Forest Council","00MA","Service Management & Support Services","Service Management & Support Services","Departmental Office Services","Office Stationery",01/12/2010 00:00:00,"30164696",6.02,"BANNER"
"Bracknell Forest Council","http://opendatacommunities.org/id/unitary-authority/bracknell-forest","Bracknell Forest Council","00MA","Older People (Aged 65 or Over)","Assessment & Care Management","Emergency Duty Team (Out of Hours Serv)","Office Stationery",01/12/2010 00:00:00,"30164696",6.02,"BANNER"
"Bracknell Forest Council","http://opendatacommunities.org/id/unitary-authority/bracknell-forest","Bracknell Forest Council","00MA","Service Management & Support Services","Service Management & Support Services","Departmental Office Services","Office Stationery",01/12/2010 00:00:00,"30164696",6.15,"BANNER"
"Bracknell Forest Council","http://opendatacommunities.org/id/unitary-authority/bracknell-forest","Bracknell Forest Council","00MA","Service Management & Support Services","Service Management & Support Services","Departmental Office Services","Office Stationery",01/12/2010 00:00:00,"30164696",6.15,"BANNER"
"Bracknell Forest Council","http://opendatacommunities.org/id/unitary-authority/bracknell-forest","Bracknell Forest Council","00MA","Older People (Aged 65 or Over)","Residential Care Home Placements","Heathlands EPH","Office Stationery",01/12/2010 00:00:00,"30164696",6.25,"BANNER"
"Bracknell Forest Council","http://opendatacommunities.org/id/unitary-authority/bracknell-forest","Bracknell Forest Council","00MA","Service Management & Support Services","Service Management & Support Services","Departmental Office Services","Office Stationery",01/12/2010 00:00:00,"30164696",6.26,"BANNER"
"Bracknell Forest Council","http://opendatacommunities.org/id/unitary-authority/bracknell-forest","Bracknell Forest Council","00MA","Learning Disability (under 65)","Day Care","Bracknell Day Services","Office Stationery",01/12/2010 00:00:00,"30164696",6.29,"BANNER"
"Bracknell Forest Council","http://opendatacommunities.org/id/unitary-authority/bracknell-forest","Bracknell Forest Council","00MA","Learning Disability (under 65)","Day Care","Bracknell Day Services","Office Stationery",01/12/2010 00:00:00,"30164696",6.29,"BANNER"
"Bracknell Forest Council","http://opendatacommunities.org/id/unitary-authority/bracknell-forest","Bracknell Forest Council","00MA","Central Support Services - COF","Personnel","Personnel Services","Office Stationery",01/12/2010 00:00:00,"30164696",6.33,"BANNER"
"Bracknell Forest Council","http://opendatacommunities.org/id/unitary-authority/bracknell-forest","Bracknell Forest Council","00MA","Central Support Services - COF","Valuers","Property Services","Office Stationery",01/12/2010 00:00:00,"30164696",6.34,"BANNER"
"Bracknell Forest Council","http://opendatacommunities.org/id/unitary-authority/bracknell-forest","Bracknell Forest Council","00MA","Learning Disability (under 65)","Day Care","Bracknell Day Services","Office Stationery",01/12/2010 00:00:00,"30164696",6.38,"BANNER"
"Bracknell Forest Council","http://opendatacommunities.org/id/unitary-authority/bracknell-forest","Bracknell Forest Council","00MA","Non-School Funding","Adult & Community Learning","Open Learning Centre - Brakenhale","Office Stationery",01/12/2010 00:00:00,"30164696",6.42,"BANNER"
"Bracknell Forest Council","http://opendatacommunities.org/id/unitary-authority/bracknell-forest","Bracknell Forest Council","00MA","Holding Accounts in Budget Book COF","Corporate Services - Office Services","Courier Service","Office Stationery",01/12/2010 00:00:00,"30164696",6.45,"BANNER"
"Bracknell Forest Council","http://opendatacommunities.org/id/unitary-authority/bracknell-forest","Bracknell Forest Council","00MA","Service Management & Support Services","Service Management & Support Services","Departmental Office Services","Office Stationery",01/12/2010 00:00:00,"30164696",6.58,"BANNER"
"Bracknell Forest Council","http://opendatacommunities.org/id/unitary-authority/bracknell-forest","Bracknell Forest Council","00MA","Service Management & Support Services","Service Management & Support Services","Departmental Office Services","Office Stationery",01/12/2010 00:00:00,"30164696",6.61,"BANNER"
"Bracknell Forest Council","http://opendatacommunities.org/id/unitary-authority/bracknell-forest","Bracknell Forest Council","00MA","Service Management & Support Services","Service Management & Support Services","Departmental Office Services","Office Stationery",01/12/2010 00:00:00,"30164696",6.61,"BANNER"
"Bracknell Forest Council","http://opendatacommunities.org/id/unitary-authority/bracknell-forest","Bracknell Forest Council","00MA","Service Management & Support Services","Service Management & Support Services","Departmental Office Services","Office Stationery",01/12/2010 00:00:00,"30164696",6.64,"BANNER"
"Bracknell Forest Council","http://opendatacommunities.org/id/unitary-authority/bracknell-forest","Bracknell Forest Council","00MA","Support Services & Management Costs","Management and Administration","Head of Service -Adults","Office Stationery",01/12/2010 00:00:00,"30164696",6.64,"BANNER"
"Bracknell Forest Council","http://opendatacommunities.org/id/unitary-authority/bracknell-forest","Bracknell Forest Council","00MA","Non-School Funding","Adult & Community Learning","Open Learning Centre - Brakenhale","Office Stationery",01/12/2010 00:00:00,"30164696",6.67,"BANNER"
"Bracknell Forest Council","http://opendatacommunities.org/id/unitary-authority/bracknell-forest","Bracknell Forest Council","00MA","Holding Accounts in Budget Book COF","Corporate Services - Office Services","Courier Service","Office Stationery",01/12/2010 00:00:00,"30164696",6.84,"BANNER"
"Bracknell Forest Council","http://opendatacommunities.org/id/unitary-authority/bracknell-forest","Bracknell Forest Council","00MA","Support Services & Management Costs","Management and Administration","Head of Service -Adults","Office Stationery",01/12/2010 00:00:00,"30164696",6.88,"BANNER"
"Bracknell Forest Council","http://opendatacommunities.org/id/unitary-authority/bracknell-forest","Bracknell Forest Council","00MA","Central Support Services - COF","Customer Service Centre","Customer Services","Office Stationery",01/12/2010 00:00:00,"30164696",6.9,"BANNER"
"Bracknell Forest Council","http://opendatacommunities.org/id/unitary-authority/bracknell-forest","Bracknell Forest Council","00MA","Central Support Services - COF","Customer Service Centre","Customer Services","Office Stationery",01/12/2010 00:00:00,"30164696",6.9,"BANNER"
"Bracknell Forest Council","http://opendatacommunities.org/id/unitary-authority/bracknell-forest","Bracknell Forest Council","00MA","Family Support Services","Other Family Support Services","Portman Close Running Costs","Office Stationery",01/12/2010 00:00:00,"30164696",7,"BANNER"
"Bracknell Forest Council","http://opendatacommunities.org/id/unitary-authority/bracknell-forest","Bracknell Forest Council","00MA","Central Support Services - COF","Policy Unit","Chief Executive's Office","Office Stationery",01/12/2010 00:00:00,"30164696",7.03,"BANNER"
"Bracknell Forest Council","http://opendatacommunities.org/id/unitary-authority/bracknell-forest","Bracknell Forest Council","00MA","Support Services & Management Costs","Management and Administration","Head of Service -Adults","Office Stationery",01/12/2010 00:00:00,"30164696",7.1,"BANNER"
"Bracknell Forest Council","http://opendatacommunities.org/id/unitary-authority/bracknell-forest","Bracknell Forest Council","00MA","Non-School Funding","Youth Services","North Ascot Youth Centre","Office Stationery",01/12/2010 00:00:00,"30164696",7.12,"BANNER"
"Bracknell Forest Council","http://opendatacommunities.org/id/unitary-authority/bracknell-forest","Bracknell Forest Council","00MA","Central Support Services - COF","Policy Unit","Chief Executive's Office","Office Stationery",01/12/2010 00:00:00,"30164696",7.18,"BANNER"
"Bracknell Forest Council","http://opendatacommunities.org/id/unitary-authority/bracknell-forest","Bracknell Forest Council","00MA","Non-School Funding","Pre-School Education","GSSG - Extended Schools","Office Stationery",01/12/2010 00:00:00,"30164696",7.33,"BANNER"
"Bracknell Forest Council","http://opendatacommunities.org/id/unitary-authority/bracknell-forest","Bracknell Forest Council","00MA","Service Management & Support Services","Service Management & Support Services","Departmental Office Services","Office Stationery",01/12/2010 00:00:00,"30164696",7.44,"BANNER"
"Bracknell Forest Council","http://opendatacommunities.org/id/unitary-authority/bracknell-forest","Bracknell Forest Council","00MA","Service Management & Support Services","Service Management & Support Services","Departmental Office Services","Office Stationery",01/12/2010 00:00:00,"30164696",7.44,"BANNER"
"Bracknell Forest Council","http://opendatacommunities.org/id/unitary-authority/bracknell-forest","Bracknell Forest Council","00MA","Support Services & Management Costs","Management and Administration","Head of Service -Adults","Office Stationery",01/12/2010 00:00:00,"30164696",7.58,"BANNER"
"Bracknell Forest Council","http://opendatacommunities.org/id/unitary-authority/bracknell-forest","Bracknell Forest Council","00MA","Non-School Funding","Youth Services","Youth & Community Administration","Office Stationery",01/12/2010 00:00:00,"30164696",7.59,"BANNER"
"Bracknell Forest Council","http://opendatacommunities.org/id/unitary-authority/bracknell-forest","Bracknell Forest Council","00MA","Service Management & Support Services","Service Management & Support Services","Departmental Office Services","Office Stationery",01/12/2010 00:00:00,"30164696",7.59,"BANNER"
"Bracknell Forest Council","http://opendatacommunities.org/id/unitary-authority/bracknell-forest","Bracknell Forest Council","00MA","Recreation, Sports and Leisure","Indoor Sports & Recreation Facilities","Leisure DSO - Leisure Centre","Office Stationery",01/12/2010 00:00:00,"30164696",7.59,"BANNER"
"Bracknell Forest Council","http://opendatacommunities.org/id/unitary-authority/bracknell-forest","Bracknell Forest Council","00MA","Support Services & Management Costs","Management and Administration","Head of Service -Adults","Office Stationery",01/12/2010 00:00:00,"30164696",7.77,"BANNER"
"Bracknell Forest Council","http://opendatacommunities.org/id/unitary-authority/bracknell-forest","Bracknell Forest Council","00MA","Education Management & Support Service","Performance & Resources","Reception & Office Services","Office Stationery",01/12/2010 00:00:00,"30164696",7.84,"BANNER"
"Bracknell Forest Council","http://opendatacommunities.org/id/unitary-authority/bracknell-forest","Bracknell Forest Council","00MA","Learning Disability (under 65)","Day Care","Bracknell Day Services","Office Stationery",01/12/2010 00:00:00,"30164696",7.87,"BANNER"
"Bracknell Forest Council","http://opendatacommunities.org/id/unitary-authority/bracknell-forest","Bracknell Forest Council","00MA","Central Support Services - COF","Policy Unit","Chief Executive's Office","Office Stationery",01/12/2010 00:00:00,"30164696",8.16,"BANNER"
"Bracknell Forest Council","http://opendatacommunities.org/id/unitary-authority/bracknell-forest","Bracknell Forest Council","00MA","Service Management & Support Services","Service Management & Support Services","Departmental Office Services","Office Stationery",01/12/2010 00:00:00,"30164696",8.34,"BANNER"
"Bracknell Forest Council","http://opendatacommunities.org/id/unitary-authority/bracknell-forest","Bracknell Forest Council","00MA","Service Management & Support Services","Service Management & Support Services","Departmental Office Services","Office Stationery",01/12/2010 00:00:00,"30164696",8.36,"BANNER"
"Bracknell Forest Council","http://opendatacommunities.org/id/unitary-authority/bracknell-forest","Bracknell Forest Council","00MA","Service Management & Support Services","Service Management & Support Services","Departmental Office Services","Office Stationery",01/12/2010 00:00:00,"30164696",8.39,"BANNER"
"Bracknell Forest Council","http://opendatacommunities.org/id/unitary-authority/bracknell-forest","Bracknell Forest Council","00MA","Service Management & Support Services","Service Management & Support Services","Departmental Office Services","Office Stationery",01/12/2010 00:00:00,"30164696",8.4,"BANNER"
"Bracknell Forest Council","http://opendatacommunities.org/id/unitary-authority/bracknell-forest","Bracknell Forest Council","00MA","Central Support Services - COF","Policy Unit","Chief Executive's Office","Office Stationery",01/12/2010 00:00:00,"30164696",8.48,"BANNER"
"Bracknell Forest Council","http://opendatacommunities.org/id/unitary-authority/bracknell-forest","Bracknell Forest Council","00MA","Service Management & Support Services","Service Management & Support Services","Departmental Office Services","Office Stationery",01/12/2010 00:00:00,"30164696",8.6,"BANNER"
"Bracknell Forest Council","http://opendatacommunities.org/id/unitary-authority/bracknell-forest","Bracknell Forest Council","00MA","Service Management & Support Services","Service Management & Support Services","Departmental Office Services","Office Stationery",01/12/2010 00:00:00,"30164696",8.61,"BANNER"
"Bracknell Forest Council","http://opendatacommunities.org/id/unitary-authority/bracknell-forest","Bracknell Forest Council","00MA","Non-School Funding","Pre-School Education","The Oaks Children's Centre","Office Stationery",01/12/2010 00:00:00,"30164696",8.61,"BANNER"
"Bracknell Forest Council","http://opendatacommunities.org/id/unitary-authority/bracknell-forest","Bracknell Forest Council","00MA","Older People (Aged 65 or Over)","Residential Care Home Placements","Heathlands EPH","Office Stationery",01/12/2010 00:00:00,"30164696",8.7,"BANNER"
"Bracknell Forest Council","http://opendatacommunities.org/id/unitary-authority/bracknell-forest","Bracknell Forest Council","00MA","Holding Accounts in Budget Book COF","Corporate Serv - Reprographics & Printing","Reprographics & Printing","Office Stationery",01/12/2010 00:00:00,"30164696",8.73,"BANNER"
"Bracknell Forest Council","http://opendatacommunities.org/id/unitary-authority/bracknell-forest","Bracknell Forest Council","00MA","Non-School Funding","Youth Services","Whitegrove Youth Centre","Office Stationery",01/12/2010 00:00:00,"30164696",8.77,"BANNER"
"Bracknell Forest Council","http://opendatacommunities.org/id/unitary-authority/bracknell-forest","Bracknell Forest Council","00MA","Non-School Funding","Youth Services","Whitegrove Youth Centre","Office Stationery",01/12/2010 00:00:00,"30164696",8.77,"BANNER"
"Bracknell Forest Council","http://opendatacommunities.org/id/unitary-authority/bracknell-forest","Bracknell Forest Council","00MA","Service Management & Support Services","Service Management & Support Services","Departmental Office Services","Office Stationery",01/12/2010 00:00:00,"30164696",8.85,"BANNER"
"Bracknell Forest Council","http://opendatacommunities.org/id/unitary-authority/bracknell-forest","Bracknell Forest Council","00MA","Service Management & Support Services","Service Management & Support Services","Departmental Office Services","Office Stationery",01/12/2010 00:00:00,"30164696",8.85,"BANNER"
"Bracknell Forest Council","http://opendatacommunities.org/id/unitary-authority/bracknell-forest","Bracknell Forest Council","00MA","Registration of Electors","Registration of Electors","Electoral Registration","Office Stationery",01/12/2010 00:00:00,"30164696",9,"BANNER"
"Bracknell Forest Council","http://opendatacommunities.org/id/unitary-authority/bracknell-forest","Bracknell Forest Council","00MA","Learning Disability (under 65)","Assessment & Care Management","Learning Disability Team","Office Stationery",01/12/2010 00:00:00,"30164696",9.04,"BANNER"
"Bracknell Forest Council","http://opendatacommunities.org/id/unitary-authority/bracknell-forest","Bracknell Forest Council","00MA","Central Support Services - COF","Information Technology","Information Technology - Management","Office Stationery",01/12/2010 00:00:00,"30164696",9.12,"BANNER"
"Bracknell Forest Council","http://opendatacommunities.org/id/unitary-authority/bracknell-forest","Bracknell Forest Council","00MA","Central Support Services - COF","Finance","Finance Departmental Administration","Office Stationery",01/12/2010 00:00:00,"30164696",9.12,"BANNER"
"Bracknell Forest Council","http://opendatacommunities.org/id/unitary-authority/bracknell-forest","Bracknell Forest Council","00MA","Support Services & Management Costs","Management and Administration","Head of Service -Adults","Office Stationery",01/12/2010 00:00:00,"30164696",9.2,"BANNER"
"Bracknell Forest Council","http://opendatacommunities.org/id/unitary-authority/bracknell-forest","Bracknell Forest Council","00MA","Service Management & Support Services","Service Management & Support Services","Departmental Office Services","Office Stationery",01/12/2010 00:00:00,"30164696",9.21,"BANNER"
"Bracknell Forest Council","http://opendatacommunities.org/id/unitary-authority/bracknell-forest","Bracknell Forest Council","00MA","Central Support Services - COF","Valuers","Property Services","Office Stationery",01/12/2010 00:00:00,"30164696",9.31,"BANNER"
"Bracknell Forest Council","http://opendatacommunities.org/id/unitary-authority/bracknell-forest","Bracknell Forest Council","00MA","Central Support Services - COF","Personnel","Personnel Services","Office Stationery",01/12/2010 00:00:00,"30164696",9.61,"BANNER"
"Bracknell Forest Council","http://opendatacommunities.org/id/unitary-authority/bracknell-forest","Bracknell Forest Council","00MA","Mental Health Needs (Under 65)","Supported and Other Accommodation","Group Homes","Office Stationery",01/12/2010 00:00:00,"30164696",9.63,"BANNER"
"Bracknell Forest Council","http://opendatacommunities.org/id/unitary-authority/bracknell-forest","Bracknell Forest Council","00MA","Support Services & Management Costs","Management and Administration","Head of Service -Adults","Office Stationery",01/12/2010 00:00:00,"30164696",9.69,"BANNER"
"Bracknell Forest Council","http://opendatacommunities.org/id/unitary-authority/bracknell-forest","Bracknell Forest Council","00MA","Education Management & Support Service","Performance & Resources","Reception & Office Services","Office Stationery",01/12/2010 00:00:00,"30164696",9.76,"BANNER"
"Bracknell Forest Council","http://opendatacommunities.org/id/unitary-authority/bracknell-forest","Bracknell Forest Council","00MA","Non-School Funding","Pre-School Education","The Willows Children's Centre","Office Stationery",01/12/2010 00:00:00,"30164696",9.9,"BANNER"
"Bracknell Forest Council","http://opendatacommunities.org/id/unitary-authority/bracknell-forest","Bracknell Forest Council","00MA","Holding Accounts in Budget Book COF","Corporate Serv - Reprographics & Printing","Reprographics & Printing","Office Stationery",01/12/2010 00:00:00,"30164696",9.96,"BANNER"
"Bracknell Forest Council","http://opendatacommunities.org/id/unitary-authority/bracknell-forest","Bracknell Forest Council","00MA","Older People (Aged 65 or Over)","Assessment & Care Management","Emergency Duty Team (Out of Hours Serv)","Office Stationery",01/12/2010 00:00:00,"30164696",10.02,"BANNER"
"Bracknell Forest Council","http://opendatacommunities.org/id/unitary-authority/bracknell-forest","Bracknell Forest Council","00MA","Central Support Services - COF","Finance","Finance Departmental Administration","Office Stationery",01/12/2010 00:00:00,"30164696",10.25,"BANNER"
"Bracknell Forest Council","http://opendatacommunities.org/id/unitary-authority/bracknell-forest","Bracknell Forest Council","00MA","Support Services & Management Costs","Management and Administration","Head of Service -Adults","Office Stationery",01/12/2010 00:00:00,"30164696",10.26,"BANNER"
"Bracknell Forest Council","http://opendatacommunities.org/id/unitary-authority/bracknell-forest","Bracknell Forest Council","00MA","Education Management & Support Service","Performance & Resources","Reception & Office Services","Office Stationery",01/12/2010 00:00:00,"30164696",10.28,"BANNER"
"Bracknell Forest Council","http://opendatacommunities.org/id/unitary-authority/bracknell-forest","Bracknell Forest Council","00MA","Service Management & Support Services","Service Management & Support Services","Departmental Office Services","Office Stationery",01/12/2010 00:00:00,"30164696",10.43,"BANNER"
"Bracknell Forest Council","http://opendatacommunities.org/id/unitary-authority/bracknell-forest","Bracknell Forest Council","00MA","Support Services & Management Costs","Management and Administration","Head of Service -Adults","Office Stationery",01/12/2010 00:00:00,"30164696",10.56,"BANNER"
"Bracknell Forest Council","http://opendatacommunities.org/id/unitary-authority/bracknell-forest","Bracknell Forest Council","00MA","Holding Accounts in Budget Book COF","Corporate Services - Office Services","Office Services - General Expenses","Office Stationery",01/12/2010 00:00:00,"30164696",10.75,"BANNER"
"Bracknell Forest Council","http://opendatacommunities.org/id/unitary-authority/bracknell-forest","Bracknell Forest Council","00MA","Service Management & Support Services","Service Management & Support Services","Departmental Office Services","Office Stationery",01/12/2010 00:00:00,"30164696",10.75,"BANNER"
"Bracknell Forest Council","http://opendatacommunities.org/id/unitary-authority/bracknell-forest","Bracknell Forest Council","00MA","Central Support Services - COF","Personnel","Personnel Services","Office Stationery",01/12/2010 00:00:00,"30164696",10.75,"BANNER"
"Bracknell Forest Council","http://opendatacommunities.org/id/unitary-authority/bracknell-forest","Bracknell Forest Council","00MA","Service Management & Support Services","Service Management & Support Services","Departmental Office Services","Office Stationery",01/12/2010 00:00:00,"30164696",10.8,"BANNER"
"Bracknell Forest Council","http://opendatacommunities.org/id/unitary-authority/bracknell-forest","Bracknell Forest Council","00MA","Support Services & Management Costs","Management and Administration","Head of Service -Adults","Office Stationery",01/12/2010 00:00:00,"30164696",10.95,"BANNER"
"Bracknell Forest Council","http://opendatacommunities.org/id/unitary-authority/bracknell-forest","Bracknell Forest Council","00MA","Older People (Aged 65 or Over)","Assessment & Care Management","Emergency Duty Team (Out of Hours Serv)","Office Stationery",01/12/2010 00:00:00,"30164696",10.96,"BANNER"
"Bracknell Forest Council","http://opendatacommunities.org/id/unitary-authority/bracknell-forest","Bracknell Forest Council","00MA","Non-School Funding","Youth Services","NRG","Office Stationery",01/12/2010 00:00:00,"30164696",10.99,"BANNER"
"Bracknell Forest Council","http://opendatacommunities.org/id/unitary-authority/bracknell-forest","Bracknell Forest Council","00MA","Education Management & Support Service","Standards Fund","SF 1.12 Playing for Success","Office Stationery",01/12/2010 00:00:00,"30164696",10.99,"BANNER"
"Bracknell Forest Council","http://opendatacommunities.org/id/unitary-authority/bracknell-forest","Bracknell Forest Council","00MA","Central Support Services - COF","Customer Service Centre","Customer Services","Office Stationery",01/12/2010 00:00:00,"30164696",11.17,"BANNER"
"Bracknell Forest Council","http://opendatacommunities.org/id/unitary-authority/bracknell-forest","Bracknell Forest Council","00MA","Learning Disability (under 65)","Assessment & Care Management","Learning Disability Team","Office Stationery",01/12/2010 00:00:00,"30164696",11.34,"BANNER"
"Bracknell Forest Council","http://opendatacommunities.org/id/unitary-authority/bracknell-forest","Bracknell Forest Council","00MA","Holding Accounts in Budget Book COF","Corporate Serv - Reprographics & Printing","Reprographics & Printing","Office Stationery",01/12/2010 00:00:00,"30164696",11.34,"BANNER"
"Bracknell Forest Council","http://opendatacommunities.org/id/unitary-authority/bracknell-forest","Bracknell Forest Council","00MA","Central Support Services - COF","Finance","Finance Departmental Administration","Office Stationery",01/12/2010 00:00:00,"30164696",11.35,"BANNER"
"Bracknell Forest Council","http://opendatacommunities.org/id/unitary-authority/bracknell-forest","Bracknell Forest Council","00MA","Service Management & Support Services","Service Management & Support Services","Departmental Office Services","Office Stationery",01/12/2010 00:00:00,"30164696",11.37,"BANNER"
"Bracknell Forest Council","http://opendatacommunities.org/id/unitary-authority/bracknell-forest","Bracknell Forest Council","00MA","Central Support Services - COF","Personnel","Personnel Services","Office Stationery",01/12/2010 00:00:00,"30164696",11.39,"BANNER"
"Bracknell Forest Council","http://opendatacommunities.org/id/unitary-authority/bracknell-forest","Bracknell Forest Council","00MA","Recreation, Sports and Leisure","Dual Use Centres","Edgbarrow/Sandhurst Joint Expenses","Office Stationery",01/12/2010 00:00:00,"30164696",11.49,"BANNER"
"Bracknell Forest Council","http://opendatacommunities.org/id/unitary-authority/bracknell-forest","Bracknell Forest Council","00MA","Family Support Services","Other Family Support Services","FAST","Office Stationery",01/12/2010 00:00:00,"30164696",11.9,"BANNER"
"Bracknell Forest Council","http://opendatacommunities.org/id/unitary-authority/bracknell-forest","Bracknell Forest Council","00MA","Learning Disability (under 65)","Assessment & Care Management","Learning Disability Team","Office Stationery",01/12/2010 00:00:00,"30164696",12,"BANNER"
"Bracknell Forest Council","http://opendatacommunities.org/id/unitary-authority/bracknell-forest","Bracknell Forest Council","00MA","Central Support Services - COF","Finance","Finance Departmental Administration","Office Stationery",01/12/2010 00:00:00,"30164696",12,"BANNER"
"Bracknell Forest Council","http://opendatacommunities.org/id/unitary-authority/bracknell-forest","Bracknell Forest Council","00MA","Central Support Services - COF","Finance","Finance Departmental Administration","Office Stationery",01/12/2010 00:00:00,"30164696",12,"BANNER"
"Bracknell Forest Council","http://opendatacommunities.org/id/unitary-authority/bracknell-forest","Bracknell Forest Council","00MA","Central Support Services - COF","Valuers","Property Services","Office Stationery",01/12/2010 00:00:00,"30164696",12.02,"BANNER"
"Bracknell Forest Council","http://opendatacommunities.org/id/unitary-authority/bracknell-forest","Bracknell Forest Council","00MA","Central Support Services - COF","Fleet & Workshops","Integrated Transport Unit","Office Stationery",01/12/2010 00:00:00,"30164696",12.11,"BANNER"
"Bracknell Forest Council","http://opendatacommunities.org/id/unitary-authority/bracknell-forest","Bracknell Forest Council","00MA","Central Support Services - COF","Policy Unit","Chief Executive's Office","Office Stationery",01/12/2010 00:00:00,"30164696",12.13,"BANNER"
"Bracknell Forest Council","http://opendatacommunities.org/id/unitary-authority/bracknell-forest","Bracknell Forest Council","00MA","Service Management & Support Services","Service Management & Support Services","Departmental Office Services","Office Stationery",01/12/2010 00:00:00,"30164696",12.3,"BANNER"
"Bracknell Forest Council","http://opendatacommunities.org/id/unitary-authority/bracknell-forest","Bracknell Forest Council","00MA","Holding Accounts in Budget Book COF","Corporate Serv - Reprographics & Printing","Reprographics & Printing","Office Stationery",01/12/2010 00:00:00,"30164696",12.36,"BANNER"
"Bracknell Forest Council","http://opendatacommunities.org/id/unitary-authority/bracknell-forest","Bracknell Forest Council","00MA","Mental Health Needs (Under 65)","Assessment & Care Management","(CMHT) Mental Illness Team","Contracted Services",27/10/2010 00:00:00,"6427545",2322.74,"BERKS HEALTHCARE NHS FOUNDATION TRUST"
"Bracknell Forest Council","http://opendatacommunities.org/id/unitary-authority/bracknell-forest","Bracknell Forest Council","00MA","Childrens services-Commissioning & SW","Commissioning & Social Work","CAMHS Grant","Primary Care Trust",29/10/2010 00:00:00,"6428078",7322.69,"BERKS HEALTHCARE NHS FOUNDATION TRUST"
"Bracknell Forest Council","http://opendatacommunities.org/id/unitary-authority/bracknell-forest","Bracknell Forest Council","00MA","Education Management & Support Service","School Related Expenditure","HTS Interim","Taxi Fares - Home/School Transport",01/11/2010 00:00:00,"6428141",1934.15,"BERKSHIRE EDUCATION TRAVEL"
"Bracknell Forest Council","http://opendatacommunities.org/id/unitary-authority/bracknell-forest","Bracknell Forest Council","00MA","Education Management & Support Service","School Related Expenditure","HTS Interim","Taxi Fares - Home/School Transport",01/11/2010 00:00:00,"6428141",6276.33,"BERKSHIRE EDUCATION TRAVEL"
"Bracknell Forest Council","http://opendatacommunities.org/id/unitary-authority/bracknell-forest","Bracknell Forest Council","00MA","Education Management & Support Service","School Related Expenditure","HTS Interim","Taxi Fares - Home/School Transport",07/11/2010 00:00:00,"6428142",1636.2,"BERKSHIRE EDUCATION TRAVEL"
"Bracknell Forest Council","http://opendatacommunities.org/id/unitary-authority/bracknell-forest","Bracknell Forest Council","00MA","Education Management & Support Service","School Related Expenditure","HTS Interim","Taxi Fares - Home/School Transport",07/11/2010 00:00:00,"6428142",5667.88,"BERKSHIRE EDUCATION TRAVEL"
"Bracknell Forest Council","http://opendatacommunities.org/id/unitary-authority/bracknell-forest","Bracknell Forest Council","00MA","Education Management & Support Service","School Related Expenditure","HTS Interim","Taxi Fares - Home/School Transport",01/11/2010 00:00:00,"6428143",1680,"BERKSHIRE EDUCATION TRAVEL"
"Bracknell Forest Council","http://opendatacommunities.org/id/unitary-authority/bracknell-forest","Bracknell Forest Council","00MA","Education Management & Support Service","School Related Expenditure","HTS Interim","Taxi Fares - Home/School Transport",01/11/2010 00:00:00,"6428143",9660.74,"BERKSHIRE EDUCATION TRAVEL"
"Bracknell Forest Council","http://opendatacommunities.org/id/unitary-authority/bracknell-forest","Bracknell Forest Council","00MA","Education Management & Support Service","School Related Expenditure","HTS Interim","Taxi Fares - Home/School Transport",07/11/2010 00:00:00,"6428144",1280,"BERKSHIRE EDUCATION TRAVEL"
"Bracknell Forest Council","http://opendatacommunities.org/id/unitary-authority/bracknell-forest","Bracknell Forest Council","00MA","Education Management & Support Service","School Related Expenditure","HTS Interim","Taxi Fares - Home/School Transport",07/11/2010 00:00:00,"6428144",7950.79,"BERKSHIRE EDUCATION TRAVEL"
"Bracknell Forest Council","http://opendatacommunities.org/id/unitary-authority/bracknell-forest","Bracknell Forest Council","00MA","Education Management & Support Service","School Related Expenditure","HTS Interim","Taxi Fares - Home/School Transport",01/11/2010 00:00:00,"6428145",14637.59,"BERKSHIRE EDUCATION TRAVEL"
"Bracknell Forest Council","http://opendatacommunities.org/id/unitary-authority/bracknell-forest","Bracknell Forest Council","00MA","Education Management & Support Service","School Related Expenditure","HTS Interim","Taxi Fares - Home/School Transport",07/11/2010 00:00:00,"6428146",13082.39,"BERKSHIRE EDUCATION TRAVEL"
"Bracknell Forest Council","http://opendatacommunities.org/id/unitary-authority/bracknell-forest","Bracknell Forest Council","00MA","Education Management & Support Service","School Related Expenditure","HTS Interim","Taxi Fares - Home/School Transport",01/11/2010 00:00:00,"6428147",10682.56,"BERKSHIRE EDUCATION TRAVEL"
"Bracknell Forest Council","http://opendatacommunities.org/id/unitary-authority/bracknell-forest","Bracknell Forest Council","00MA","Education Management & Support Service","School Related Expenditure","HTS Interim","Taxi Fares - Home/School Transport",07/11/2010 00:00:00,"6428148",9814.43,"BERKSHIRE EDUCATION TRAVEL"
"Bracknell Forest Council","http://opendatacommunities.org/id/unitary-authority/bracknell-forest","Bracknell Forest Council","00MA","Education Management & Support Service","School Related Expenditure","HTS Interim","Taxi Fares - Home/School Transport",01/11/2010 00:00:00,"6428149",7464.95,"BERKSHIRE EDUCATION TRAVEL"
"Bracknell Forest Council","http://opendatacommunities.org/id/unitary-authority/bracknell-forest","Bracknell Forest Council","00MA","Education Management & Support Service","School Related Expenditure","HTS Interim","Taxi Fares - Home/School Transport",07/11/2010 00:00:00,"6428150",5697.68,"BERKSHIRE EDUCATION TRAVEL"
"Bracknell Forest Council","http://opendatacommunities.org/id/unitary-authority/bracknell-forest","Bracknell Forest Council","00MA","Education Management & Support Service","School Related Expenditure","HTS Interim","Taxi Fares - Home/School Transport",01/11/2010 00:00:00,"6428151",12131.22,"BERKSHIRE EDUCATION TRAVEL"
"Bracknell Forest Council","http://opendatacommunities.org/id/unitary-authority/bracknell-forest","Bracknell Forest Council","00MA","Education Management & Support Service","School Related Expenditure","HTS Interim","Taxi Fares - Home/School Transport",07/11/2010 00:00:00,"6428152",10383.28,"BERKSHIRE EDUCATION TRAVEL"
"Bracknell Forest Council","http://opendatacommunities.org/id/unitary-authority/bracknell-forest","Bracknell Forest Council","00MA","Education Management & Support Service","School Related Expenditure","HTS Interim","Taxi Fares - Home/School Transport",01/11/2010 00:00:00,"6428153",5712,"BERKSHIRE EDUCATION TRAVEL"
"Bracknell Forest Council","http://opendatacommunities.org/id/unitary-authority/bracknell-forest","Bracknell Forest Council","00MA","Education Management & Support Service","School Related Expenditure","HTS Interim","Taxi Fares - Home/School Transport",07/11/2010 00:00:00,"6428154",4319.38,"BERKSHIRE EDUCATION TRAVEL"
"Bracknell Forest Council","http://opendatacommunities.org/id/unitary-authority/bracknell-forest","Bracknell Forest Council","00MA","Education Management & Support Service","School Related Expenditure","Home to School Transport","Taxi Fares - Home/School Transport",01/11/2010 00:00:00,"6428807",700,"BERKSHIRE EDUCATION TRAVEL"
"Bracknell Forest Council","http://opendatacommunities.org/id/unitary-authority/bracknell-forest","Bracknell Forest Council","00MA","Education Management & Support Service","School Related Expenditure","Home to School Transport","Taxi Fares - Home/School Transport",11/11/2010 00:00:00,"6428816",525,"BERKSHIRE EDUCATION TRAVEL"
"Bracknell Forest Council","http://opendatacommunities.org/id/unitary-authority/bracknell-forest","Bracknell Forest Council","00MA","Education Management & Support Service","School Related Expenditure","Home to School Transport","Taxi Fares - Home/School Transport",31/10/2010 00:00:00,"6428806",570,"BERKSHIRE EXECUTIVE TRAVEL"
"Bracknell Forest Council","http://opendatacommunities.org/id/unitary-authority/bracknell-forest","Bracknell Forest Council","00MA","Education Management & Support Service","Standards Fund","SF 1.11 Music Services","External Agency Services",07/10/2010 00:00:00,"6426595",12334,"BERKSHIRE MAESTROS"
"Bracknell Forest Council","http://opendatacommunities.org/id/unitary-authority/bracknell-forest","Bracknell Forest Council","00MA","Education Management & Support Service","Standards Fund","SF 1.11 Music Services","External Agency Services",09/11/2010 00:00:00,"6428960",3000,"BERKSHIRE MAESTROS"
"Bracknell Forest Council","http://opendatacommunities.org/id/unitary-authority/bracknell-forest","Bracknell Forest Council","00MA","Central Support Services - COF","Policy Unit","Town & Country","Printing and Design",06/11/2010 00:00:00,"6429364",1440,"BERKSHIRE MEDIA GROUP"
"Bracknell Forest Council","http://opendatacommunities.org/id/unitary-authority/bracknell-forest","Bracknell Forest Council","00MA","Education Management & Support Service","Standards Fund","SF 1.12 Playing for Success","Office Stationery",01/12/2010 00:00:00,"30164696",12.58,"BANNER"
"Bracknell Forest Council","http://opendatacommunities.org/id/unitary-authority/bracknell-forest","Bracknell Forest Council","00MA","Service Management & Support Services","Service Management & Support Services","Departmental Office Services","Office Stationery",01/12/2010 00:00:00,"30164696",12.74,"BANNER"
"Bracknell Forest Council","http://opendatacommunities.org/id/unitary-authority/bracknell-forest","Bracknell Forest Council","00MA","Service Management & Support Services","Service Management & Support Services","Departmental Office Services","Office Stationery",01/12/2010 00:00:00,"30164696",12.88,"BANNER"
"Bracknell Forest Council","http://opendatacommunities.org/id/unitary-authority/bracknell-forest","Bracknell Forest Council","00MA","Non-School Funding","Pre-School Education","The Oaks Children's Centre","Office Stationery",01/12/2010 00:00:00,"30164696",13,"BANNER"
"Bracknell Forest Council","http://opendatacommunities.org/id/unitary-authority/bracknell-forest","Bracknell Forest Council","00MA","Non-School Funding","Pre-School Education","GSSG - Extended Schools","Office Stationery",01/12/2010 00:00:00,"30164696",13.2,"BANNER"
"Bracknell Forest Council","http://opendatacommunities.org/id/unitary-authority/bracknell-forest","Bracknell Forest Council","00MA","Education Management & Support Service","Performance & Resources","Reception & Office Services","Office Stationery",01/12/2010 00:00:00,"30164696",13.29,"BANNER"
"Bracknell Forest Council","http://opendatacommunities.org/id/unitary-authority/bracknell-forest","Bracknell Forest Council","00MA","Holding Accounts in Budget Book COF","Corporate Serv - Reprographics & Printing","Reprographics & Printing","Office Stationery",01/12/2010 00:00:00,"30164696",13.35,"BANNER"
"Bracknell Forest Council","http://opendatacommunities.org/id/unitary-authority/bracknell-forest","Bracknell Forest Council","00MA","Central Support Services - COF","Valuers","Property Services","Office Stationery",01/12/2010 00:00:00,"30164696",13.54,"BANNER"
"Bracknell Forest Council","http://opendatacommunities.org/id/unitary-authority/bracknell-forest","Bracknell Forest Council","00MA","Registration of Electors","Registration of Electors","Electoral Registration","Office Stationery",01/12/2010 00:00:00,"30164696",13.54,"BANNER"
"Bracknell Forest Council","http://opendatacommunities.org/id/unitary-authority/bracknell-forest","Bracknell Forest Council","00MA","Registration of Electors","Registration of Electors","Electoral Registration","Office Stationery",01/12/2010 00:00:00,"30164696",13.54,"BANNER"
"Bracknell Forest Council","http://opendatacommunities.org/id/unitary-authority/bracknell-forest","Bracknell Forest Council","00MA","Central Support Services - COF","Policy Unit","Chief Executive's Office","Office Stationery",01/12/2010 00:00:00,"30164696",13.54,"BANNER"
"Bracknell Forest Council","http://opendatacommunities.org/id/unitary-authority/bracknell-forest","Bracknell Forest Council","00MA","Central Support Services - COF","Policy Unit","Chief Executive's Office","Office Stationery",01/12/2010 00:00:00,"30164696",13.54,"BANNER"
"Bracknell Forest Council","http://opendatacommunities.org/id/unitary-authority/bracknell-forest","Bracknell Forest Council","00MA","Learning Disability (under 65)","Day Care","Bracknell Day Services","Office Stationery",01/12/2010 00:00:00,"30164696",13.56,"BANNER"
"Bracknell Forest Council","http://opendatacommunities.org/id/unitary-authority/bracknell-forest","Bracknell Forest Council","00MA","Support Services & Management Costs","Management and Administration","Head of Service -Adults","Office Stationery",01/12/2010 00:00:00,"30164696",13.56,"BANNER"
"Bracknell Forest Council","http://opendatacommunities.org/id/unitary-authority/bracknell-forest","Bracknell Forest Council","00MA","Central Support Services - COF","Legal","Legal Services","Office Stationery",01/12/2010 00:00:00,"30164696",13.66,"BANNER"
"Bracknell Forest Council","http://opendatacommunities.org/id/unitary-authority/bracknell-forest","Bracknell Forest Council","00MA","Central Support Services - COF","Legal","Legal Services","Office Stationery",01/12/2010 00:00:00,"30164696",13.66,"BANNER"
"Bracknell Forest Council","http://opendatacommunities.org/id/unitary-authority/bracknell-forest","Bracknell Forest Council","00MA","Culture and Heritage","Heritage Museums & Galleries","The Look Out","Office Stationery",01/12/2010 00:00:00,"30164696",13.66,"BANNER"
"Bracknell Forest Council","http://opendatacommunities.org/id/unitary-authority/bracknell-forest","Bracknell Forest Council","00MA","Education Management & Support Service","Performance & Resources","Reception & Office Services","Office Stationery",01/12/2010 00:00:00,"30164696",13.66,"BANNER"
"Bracknell Forest Council","http://opendatacommunities.org/id/unitary-authority/bracknell-forest","Bracknell Forest Council","00MA","Education Management & Support Service","Performance & Resources","Reception & Office Services","Office Stationery",01/12/2010 00:00:00,"30164696",13.66,"BANNER"
"Bracknell Forest Council","http://opendatacommunities.org/id/unitary-authority/bracknell-forest","Bracknell Forest Council","00MA","Education Management & Support Service","School Related Expenditure","Education Centre","Office Stationery",01/12/2010 00:00:00,"30164696",13.66,"BANNER"
"Bracknell Forest Council","http://opendatacommunities.org/id/unitary-authority/bracknell-forest","Bracknell Forest Council","00MA","Education Management & Support Service","School Related Expenditure","Education Centre","Office Stationery",01/12/2010 00:00:00,"30164696",13.66,"BANNER"
"Bracknell Forest Council","http://opendatacommunities.org/id/unitary-authority/bracknell-forest","Bracknell Forest Council","00MA","Education Management & Support Service","School Related Expenditure","Education Centre","Office Stationery",01/12/2010 00:00:00,"30164696",13.66,"BANNER"
"Bracknell Forest Council","http://opendatacommunities.org/id/unitary-authority/bracknell-forest","Bracknell Forest Council","00MA","Education Management & Support Service","School Related Expenditure","Education Centre","Office Stationery",01/12/2010 00:00:00,"30164696",13.66,"BANNER"
"Bracknell Forest Council","http://opendatacommunities.org/id/unitary-authority/bracknell-forest","Bracknell Forest Council","00MA","Support Services & Management Costs","Management and Administration","Head of Service -Adults","Office Stationery",01/12/2010 00:00:00,"30164696",13.77,"BANNER"
"Bracknell Forest Council","http://opendatacommunities.org/id/unitary-authority/bracknell-forest","Bracknell Forest Council","00MA","Non-School Funding","Pre-School Education","The Willows Children's Centre","Office Stationery",01/12/2010 00:00:00,"30164696",13.93,"BANNER"
"Bracknell Forest Council","http://opendatacommunities.org/id/unitary-authority/bracknell-forest","Bracknell Forest Council","00MA","Service Management & Support Services","Service Management & Support Services","Departmental Office Services","Office Stationery",01/12/2010 00:00:00,"30164696",14.24,"BANNER"
"Bracknell Forest Council","http://opendatacommunities.org/id/unitary-authority/bracknell-forest","Bracknell Forest Council","00MA","Family Support Services","Other Family Support Services","Portman Close Running Costs","Office Stationery",01/12/2010 00:00:00,"30164696",14.29,"BANNER"
"Bracknell Forest Council","http://opendatacommunities.org/id/unitary-authority/bracknell-forest","Bracknell Forest Council","00MA","Non-School Funding","Pre-School Education","GSSG - Extended Schools","Office Stationery",01/12/2010 00:00:00,"30164696",14.29,"BANNER"
"Bracknell Forest Council","http://opendatacommunities.org/id/unitary-authority/bracknell-forest","Bracknell Forest Council","00MA","Non-School Funding","Pre-School Education","GSSG - Extended Schools","Office Stationery",01/12/2010 00:00:00,"30164696",14.29,"BANNER"
"Bracknell Forest Council","http://opendatacommunities.org/id/unitary-authority/bracknell-forest","Bracknell Forest Council","00MA","Central Support Services - COF","Information Technology","Information Technology - Management","Office Stationery",01/12/2010 00:00:00,"30164696",14.33,"BANNER"
"Bracknell Forest Council","http://opendatacommunities.org/id/unitary-authority/bracknell-forest","Bracknell Forest Council","00MA","Central Support Services - COF","Information Technology","Information Technology - Management","Office Stationery",01/12/2010 00:00:00,"30164696",14.33,"BANNER"
"Bracknell Forest Council","http://opendatacommunities.org/id/unitary-authority/bracknell-forest","Bracknell Forest Council","00MA","Support Services & Management Costs","Management and Administration","Head of Service -Adults","Office Stationery",01/12/2010 00:00:00,"30164696",14.44,"BANNER"
"Bracknell Forest Council","http://opendatacommunities.org/id/unitary-authority/bracknell-forest","Bracknell Forest Council","00MA","Other Adult Services","Substance Abuse (Addictions)","TA Running Costs","Office Stationery",01/12/2010 00:00:00,"30164696",14.72,"BANNER"
"Bracknell Forest Council","http://opendatacommunities.org/id/unitary-authority/bracknell-forest","Bracknell Forest Council","00MA","Support Services & Management Costs","Management and Administration","Head of Service -Adults","Office Stationery",01/12/2010 00:00:00,"30164696",14.88,"BANNER"
"Bracknell Forest Council","http://opendatacommunities.org/id/unitary-authority/bracknell-forest","Bracknell Forest Council","00MA","Democratic Representation & Management COF","Democratic Representation & Management - COF","Committee Servicing","Office Stationery",01/12/2010 00:00:00,"30164696",14.91,"BANNER"
"Bracknell Forest Council","http://opendatacommunities.org/id/unitary-authority/bracknell-forest","Bracknell Forest Council","00MA","Education Management & Support Service","Education Department - Other","Education Library Service","Office Stationery",01/12/2010 00:00:00,"30164696",15.08,"BANNER"
"Bracknell Forest Council","http://opendatacommunities.org/id/unitary-authority/bracknell-forest","Bracknell Forest Council","00MA","Childrens services-Commissioning & SW","Commissioning & Social Work","Administration -C&F","Office Stationery",01/12/2010 00:00:00,"30164696",15.1,"BANNER"
"Bracknell Forest Council","http://opendatacommunities.org/id/unitary-authority/bracknell-forest","Bracknell Forest Council","00MA","Education Management & Support Service","Performance & Resources","Reception & Office Services","Office Stationery",01/12/2010 00:00:00,"30164696",15.16,"BANNER"
"Bracknell Forest Council","http://opendatacommunities.org/id/unitary-authority/bracknell-forest","Bracknell Forest Council","00MA","Holding Accounts in Budget Book COF","Corporate Services - Office Services","Office Services - General Expenses","Office Stationery",01/12/2010 00:00:00,"30164696",15.26,"BANNER"
"Bracknell Forest Council","http://opendatacommunities.org/id/unitary-authority/bracknell-forest","Bracknell Forest Council","00MA","Service Management & Support Services","Service Management & Support Services","Departmental Office Services","Office Stationery",01/12/2010 00:00:00,"30164696",15.72,"BANNER"
"Bracknell Forest Council","http://opendatacommunities.org/id/unitary-authority/bracknell-forest","Bracknell Forest Council","00MA","Service Management & Support Services","Service Management & Support Services","Departmental Office Services","Office Stationery",01/12/2010 00:00:00,"30164696",15.9,"BANNER"
"Bracknell Forest Council","http://opendatacommunities.org/id/unitary-authority/bracknell-forest","Bracknell Forest Council","00MA","Education Management & Support Service","Standards Fund","SF 1.12 Playing for Success","Office Stationery",01/12/2010 00:00:00,"30164696",16.11,"BANNER"
"Bracknell Forest Council","http://opendatacommunities.org/id/unitary-authority/bracknell-forest","Bracknell Forest Council","00MA","Holding Accounts in Budget Book COF","Corporate Services - Office Services","Courier Service","Office Stationery",01/12/2010 00:00:00,"30164696",16.3,"BANNER"
"Bracknell Forest Council","http://opendatacommunities.org/id/unitary-authority/bracknell-forest","Bracknell Forest Council","00MA","Central Support Services - COF","Valuers","Property Services","Office Stationery",01/12/2010 00:00:00,"30164696",16.3,"BANNER"
"Bracknell Forest Council","http://opendatacommunities.org/id/unitary-authority/bracknell-forest","Bracknell Forest Council","00MA","Central Support Services - COF","Valuers","Property Services","Office Stationery",01/12/2010 00:00:00,"30164696",16.3,"BANNER"
"Bracknell Forest Council","http://opendatacommunities.org/id/unitary-authority/bracknell-forest","Bracknell Forest Council","00MA","Central Support Services - COF","Valuers","Property Services","Office Stationery",01/12/2010 00:00:00,"30164696",16.3,"BANNER"
"Bracknell Forest Council","http://opendatacommunities.org/id/unitary-authority/bracknell-forest","Bracknell Forest Council","00MA","Central Support Services - COF","Valuers","Property Services","Office Stationery",01/12/2010 00:00:00,"30164696",16.3,"BANNER"
"Bracknell Forest Council","http://opendatacommunities.org/id/unitary-authority/bracknell-forest","Bracknell Forest Council","00MA","Central Support Services - COF","Personnel","Personnel Services","Office Stationery",01/12/2010 00:00:00,"30164696",16.3,"BANNER"
"Bracknell Forest Council","http://opendatacommunities.org/id/unitary-authority/bracknell-forest","Bracknell Forest Council","00MA","Central Support Services - COF","Finance","Finance Departmental Administration","Office Stationery",01/12/2010 00:00:00,"30164696",16.53,"BANNER"
"Bracknell Forest Council","http://opendatacommunities.org/id/unitary-authority/bracknell-forest","Bracknell Forest Council","00MA","Education Management & Support Service","Performance & Resources","Reception & Office Services","Office Stationery",01/12/2010 00:00:00,"30164696",16.7,"BANNER"
"Bracknell Forest Council","http://opendatacommunities.org/id/unitary-authority/bracknell-forest","Bracknell Forest Council","00MA","Service Management & Support Services","Service Management & Support Services","Departmental Office Services","Office Stationery",01/12/2010 00:00:00,"30164696",16.79,"BANNER"
"Bracknell Forest Council","http://opendatacommunities.org/id/unitary-authority/bracknell-forest","Bracknell Forest Council","00MA","Education Management & Support Service","Performance & Resources","Reception & Office Services","Office Stationery",01/12/2010 00:00:00,"30164696",16.79,"BANNER"
"Bracknell Forest Council","http://opendatacommunities.org/id/unitary-authority/bracknell-forest","Bracknell Forest Council","00MA","Holding Accounts in Budget Book COF","Corporate Serv - Reprographics & Printing","Reprographics & Printing","Office Stationery",01/12/2010 00:00:00,"30164696",16.9,"BANNER"
"Bracknell Forest Council","http://opendatacommunities.org/id/unitary-authority/bracknell-forest","Bracknell Forest Council","00MA","Learning Disability (under 65)","Day Care","Bracknell Day Services","Office Stationery",01/12/2010 00:00:00,"30164696",17.04,"BANNER"
"Bracknell Forest Council","http://opendatacommunities.org/id/unitary-authority/bracknell-forest","Bracknell Forest Council","00MA","Older People (Aged 65 or Over)","Assessment & Care Management","Emergency Duty Team (Out of Hours Serv)","Office Stationery",01/12/2010 00:00:00,"30164696",17.18,"BANNER"
"Bracknell Forest Council","http://opendatacommunities.org/id/unitary-authority/bracknell-forest","Bracknell Forest Council","00MA","Non-School Funding","Pre-School Education","The Oaks Children's Centre","Office Stationery",01/12/2010 00:00:00,"30164696",17.43,"BANNER"
"Bracknell Forest Council","http://opendatacommunities.org/id/unitary-authority/bracknell-forest","Bracknell Forest Council","00MA","Support Services & Management Costs","Management and Administration","Head of Service -Adults","Office Stationery",01/12/2010 00:00:00,"30164696",17.44,"BANNER"
"Bracknell Forest Council","http://opendatacommunities.org/id/unitary-authority/bracknell-forest","Bracknell Forest Council","00MA","Education Management & Support Service","Education Department - Other","Education Library Service","Office Stationery",01/12/2010 00:00:00,"30164696",17.47,"BANNER"
"Bracknell Forest Council","http://opendatacommunities.org/id/unitary-authority/bracknell-forest","Bracknell Forest Council","00MA","Holding Accounts in Budget Book COF","Corporate Serv - Reprographics & Printing","Reprographics & Printing","Office Stationery",01/12/2010 00:00:00,"30164696",17.92,"BANNER"
"Bracknell Forest Council","http://opendatacommunities.org/id/unitary-authority/bracknell-forest","Bracknell Forest Council","00MA","Central Support Services - COF","Customer Service Centre","Customer Services","Office Stationery",01/12/2010 00:00:00,"30164696",18.18,"BANNER"
"Bracknell Forest Council","http://opendatacommunities.org/id/unitary-authority/bracknell-forest","Bracknell Forest Council","00MA","Holding Accounts in Budget Book COF","Corporate Serv - Reprographics & Printing","Reprographics & Printing","Office Stationery",01/12/2010 00:00:00,"30164696",18.19,"BANNER"
"Bracknell Forest Council","http://opendatacommunities.org/id/unitary-authority/bracknell-forest","Bracknell Forest Council","00MA","Service Management & Support Services","Service Management & Support Services","Departmental Office Services","Office Stationery",01/12/2010 00:00:00,"30164696",18.34,"BANNER"
"Bracknell Forest Council","http://opendatacommunities.org/id/unitary-authority/bracknell-forest","Bracknell Forest Council","00MA","Youth Justice","Youth Offender Teams","YJB Core Funding","Office Stationery",01/12/2010 00:00:00,"30164696",18.34,"BANNER"
"Bracknell Forest Council","http://opendatacommunities.org/id/unitary-authority/bracknell-forest","Bracknell Forest Council","00MA","Support Services & Management Costs","Management and Administration","Head of Service -Adults","Office Stationery",01/12/2010 00:00:00,"30164696",18.36,"BANNER"
"Bracknell Forest Council","http://opendatacommunities.org/id/unitary-authority/bracknell-forest","Bracknell Forest Council","00MA","Holding Accounts in Budget Book COF","Corporate Serv - Reprographics & Printing","Reprographics & Printing","Office Stationery",01/12/2010 00:00:00,"30164696",18.6,"BANNER"
"Bracknell Forest Council","http://opendatacommunities.org/id/unitary-authority/bracknell-forest","Bracknell Forest Council","00MA","Service Management & Support Services","Service Management & Support Services","Departmental Office Services","Office Stationery",01/12/2010 00:00:00,"30164696",21.2,"BANNER"
"Bracknell Forest Council","http://opendatacommunities.org/id/unitary-authority/bracknell-forest","Bracknell Forest Council","00MA","Learning Disability (under 65)","Day Care","Bracknell Day Services","Office Stationery",01/12/2010 00:00:00,"30164696",21.39,"BANNER"
"Bracknell Forest Council","http://opendatacommunities.org/id/unitary-authority/bracknell-forest","Bracknell Forest Council","00MA","Learning Disability (under 65)","Day Care","Bracknell Day Services","Office Stationery",01/12/2010 00:00:00,"30164696",21.39,"BANNER"
"Bracknell Forest Council","http://opendatacommunities.org/id/unitary-authority/bracknell-forest","Bracknell Forest Council","00MA","Learning Disability (under 65)","Day Care","Bracknell Day Services","Office Stationery",01/12/2010 00:00:00,"30164696",21.39,"BANNER"
"Bracknell Forest Council","http://opendatacommunities.org/id/unitary-authority/bracknell-forest","Bracknell Forest Council","00MA","Support Services & Management Costs","Management and Administration","Head of Service -Adults","Office Stationery",01/12/2010 00:00:00,"30164696",21.46,"BANNER"
"Bracknell Forest Council","http://opendatacommunities.org/id/unitary-authority/bracknell-forest","Bracknell Forest Council","00MA","Recreation, Sports and Leisure","Indoor Sports & Recreation Facilities","Leisure DSO - Leisure Centre","Office Stationery",01/12/2010 00:00:00,"30164696",21.56,"BANNER"
"Bracknell Forest Council","http://opendatacommunities.org/id/unitary-authority/bracknell-forest","Bracknell Forest Council","00MA","Older People (Aged 65 or Over)","Residential Care Home Placements","Heathlands EPH","Office Stationery",01/12/2010 00:00:00,"30164696",21.72,"BANNER"
"Bracknell Forest Council","http://opendatacommunities.org/id/unitary-authority/bracknell-forest","Bracknell Forest Council","00MA","Registration Births, Deaths & Marriages","Registration births, deaths and marriages","Registration  Births","Office Stationery",01/12/2010 00:00:00,"30164696",21.75,"BANNER"
"Bracknell Forest Council","http://opendatacommunities.org/id/unitary-authority/bracknell-forest","Bracknell Forest Council","00MA","Non-School Funding","Youth Services","Priestwood Youth Centre","Office Stationery",01/12/2010 00:00:00,"30164696",21.98,"BANNER"
"Bracknell Forest Council","http://opendatacommunities.org/id/unitary-authority/bracknell-forest","Bracknell Forest Council","00MA","Learning Disability (under 65)","Day Care","Bracknell Day Services","Office Stationery",01/12/2010 00:00:00,"30164696",22.18,"BANNER"
"Bracknell Forest Council","http://opendatacommunities.org/id/unitary-authority/bracknell-forest","Bracknell Forest Council","00MA","Older People (Aged 65 or Over)","Assessment & Care Management","Emergency Duty Team (Out of Hours Serv)","Office Stationery",01/12/2010 00:00:00,"30164696",22.36,"BANNER"
"Bracknell Forest Council","http://opendatacommunities.org/id/unitary-authority/bracknell-forest","Bracknell Forest Council","00MA","Non-School Funding","Pre-School Education","The Oaks Children's Centre","Office Stationery",01/12/2010 00:00:00,"30164696",22.63,"BANNER"
"Bracknell Forest Council","http://opendatacommunities.org/id/unitary-authority/bracknell-forest","Bracknell Forest Council","00MA","Education Management & Support Service","Performance & Resources","Reception & Office Services","Office Stationery",01/12/2010 00:00:00,"30164696",22.75,"BANNER"
"Bracknell Forest Council","http://opendatacommunities.org/id/unitary-authority/bracknell-forest","Bracknell Forest Council","00MA","Learning Disability (under 65)","Assessment & Care Management","Learning Disability Team","Office Stationery",01/12/2010 00:00:00,"30164696",22.86,"BANNER"
"Bracknell Forest Council","http://opendatacommunities.org/id/unitary-authority/bracknell-forest","Bracknell Forest Council","00MA","Support Services & Management Costs","Management and Administration","Head of Service -Adults","Office Stationery",01/12/2010 00:00:00,"30164696",22.95,"BANNER"
"Bracknell Forest Council","http://opendatacommunities.org/id/unitary-authority/bracknell-forest","Bracknell Forest Council","00MA","Learning Disability (under 65)","Day Care","Bracknell Day Services","Office Stationery",01/12/2010 00:00:00,"30164696",22.98,"BANNER"
"Bracknell Forest Council","http://opendatacommunities.org/id/unitary-authority/bracknell-forest","Bracknell Forest Council","00MA","Support Services & Management Costs","Management and Administration","Head of Service -Adults","Office Stationery",01/12/2010 00:00:00,"30164696",23,"BANNER"
"Bracknell Forest Council","http://opendatacommunities.org/id/unitary-authority/bracknell-forest","Bracknell Forest Council","00MA","Education Management & Support Service","Performance & Resources","Reception & Office Services","Office Stationery",01/12/2010 00:00:00,"30164696",23.05,"BANNER"
